Workbook

Sheet Cover
A2: Cap and Floor Financial Model 2 (CFFM2)
C3: =MID(CELL("filename"),SEARCH("[",CELL("filename"))+1,SEARCH("]",CELL("filename"))-SEARCH("[",CELL("filename"))-1) -> Appendix 7 - NLCFFM2.xlsm
C4: DISCLAIMER: The inputs used in this model (with the exception of those imported from the NLCFFM1 used to set cap and floor levels and PCA adjustments at PCR) are purely illustrative and no inference should be made about any future regulatory settlement for Nemo Link beyond PCR.
B6: Model key
E8: Sample | G8: Calculated value
E9: Sample | G9: Formula changes in cells to the right
E10: Sample | G10: Import from other sheet
E11: Sample | G11: Export to other sheet
E12: Sample | G12: Import from & export to other sheet
E13: Sample | G13: Initial input
E14: Sample | G14: Initial input for non-GB indexed portion (to be left empty if GB-indexed only)
E15: Sample | G15: Updated input
E16: Sample | G16: Notes and instructions
E17: Sample | G17: Cell intentionally blank
B19: Contents
E21: Cover | G21: Model key and content directory
E22: Version Control | G22: Version control and log of changes
E23: Inputs | G23: Inputs
E24: Cost | G24: Baseline cost summary and currency conversion of nominal actual costs
E25: Revenue | G25: Currency conversion of nominal actual revenues
E26: ORA Adjustment | G26: Controllable Opex adjustment
E27: DC Adjustment | G27: Decommissioning costs adjustment
E28: Indexation | G28: Cap and floor inflation indexation
E29: Availability | G29: Availability incentive calculations
E30: Assessment | G30: Revenue assessment relative to cap and floor and non-controllable Opex assessment relative to baseline level
E31: Revenue Adjustment | G31: Cap and floor levels and revenue adjustments
B33: End of sheet

Sheet Version Control
A1: Data Sources
B2: Version number | C2: File pathname | D2: Based on version | E2: Author or editor | F2: Date | G2: Description of changes | H2: Rationale for changes | I2: Location of changes | J2: Impact of changes on outputs | K2: Quality assurance performed? By? | L2: Comments on QA performed
B4: 1.1 | C4: link | D4: N/a | E4: Martin Namor | F4: 2019-07-05 | G4: New model | H4: N/a | I4: N/a | J4: N/a | K4: Nick Clitheroe & Tadeos Shahbazia, GAD | L4: Multiple high, medium and low priority issues identified
B5: 1.2 | D5: 1.1 | E5: Martin Namor | F5: 2019-09-05 | G5: Multiple structural changes | H5: Addressing main concerns raised by GAD | I5: Multiple sheets | J5: Potential | K5: Nick Clitheroe & Tadeos Shahbazia (GAD), Svitlana Voronkova (ORE) | L5: High and main medium priority issues addressed satisfactorily

Sheet Inputs
A1: Inputs | H1: Licence
E2: Parameter | G2: Units | H2: Terminology | I2: Constant | O2: Annual values
E3: Year commencing | O3: =I20 -> 2018-01-01 | P3: =O4+1 -> 2019-01-01 | Q3: =P4+1 -> 2020-01-01 | R3: 2021-01-01 | S3: 2022-01-01 | T3: 2023-01-01 | U3: 2024-01-01 | V3: 2025-01-01 | W3: 2026-01-01 | X3: 2027-01-01 | Y3: 2028-01-01 | Z3: 2029-01-01 | AA3: 2030-01-01 | AB3: =AA4+1 -> 2031-01-01 | AC3: 2032-01-01 | AD3: 2033-01-01 | AE3: 2034-01-01 | AF3: 2035-01-01 | AG3: 2036-01-01 | AH3: 2037-01-01 | AI3: 2038-01-01 | AJ3: 2039-01-01 | AK3: 2040-01-01 | AL3: 2041-01-01 | AM3: 2042-01-01 | AN3: 2043-01-01 | AO3: 2044-01-01 | AP3: 2045-01-01 | AQ3: 2046-01-01 | AR3: 2047-01-01 | AS3: 2048-01-01 | AT3: 2049-01-01 | AU3: 2050-01-01 | AV3: 2051-01-01 | AW3: 2052-01-01 | AX3: 2053-01-01 | AY3: 2054-01-01 | AZ3: 2055-01-01 | BA3: 2056-01-01 | BB3: 2057-01-01
E4: Year ending | O4: =EOMONTH(O3,11) -> 2018-12-31 | P4: =EOMONTH(P3,11) -> 2019-12-31 | Q4: =EOMONTH(Q3,11) -> 2020-12-31 | R4: 2021-12-31 | S4: 2022-12-31 | T4: 2023-12-31 | U4: 2024-12-31 | V4: 2025-12-31 | W4: 2026-12-31 | X4: 2027-12-31 | Y4: 2028-12-31 | Z4: 2029-12-31 | AA4: 2030-12-31 | AB4: 2031-12-31 | AC4: 2032-12-31 | AD4: 2033-12-31 | AE4: 2034-12-31 | AF4: 2035-12-31 | AG4: 2036-12-31 | AH4: 2037-12-31 | AI4: 2038-12-31 | AJ4: 2039-12-31 | AK4: 2040-12-31 | AL4: 2041-12-31 | AM4: 2042-12-31 | AN4: 2043-12-31 | AO4: 2044-12-31 | AP4: 2045-12-31 | AQ4: 2046-12-31 | AR4: 2047-12-31 | AS4: 2048-12-31 | AT4: 2049-12-31 | AU4: 2050-12-31 | AV4: 2051-12-31 | AW4: 2052-12-31 | AX4: 2053-12-31 | AY4: 2054-12-31 | AZ4: 2055-12-31 | BA4: 2056-12-31 | BB4: 2057-12-31
E5: Operational year | O5: 0 | P5: =+O5+1 -> 1 | Q5: =+P5+1 -> 2 | R5: 3 | S5: 4 | T5: 5 | U5: 6 | V5: 7 | W5: 8 | X5: 9 | Y5: 10 | Z5: 11 | AA5: 12 | AB5: 13 | AC5: 14 | AD5: 15 | AE5: 16 | AF5: 17 | AG5: 18 | AH5: 19 | AI5: 20 | AJ5: 21 | AK5: 22 | AL5: 23 | AM5: 24 | AN5: 25 | AO5: 26 | AP5: 27 | AQ5: 28 | AR5: 29 | AS5: 30 | AT5: 31 | AU5: 32 | AV5: 33 | AW5: 34 | AX5: 35 | AY5: 36 | AZ5: 37 | BA5: 38 | BB5: 39
B7: Items transferred from CFFM1
C9: Base year and currency
E11: Base year price term | I11: £m 13/14 prices
E13: Currency of revenue and cost inputs | I13: €
C15: Model operation
E17: Regime start date | G17: date | I17: 2019-01-31
E18: Start of financial year of regime start date | G18: date | I18: 2019-01-01
E19: End of financial year of regime start date | G19: date | I19: =EOMONTH(I18,11) -> 2019-12-31
E20: Start of preceding financial year | G20: date | I20: =DATE(YEAR(I18)-1,MONTH(I18),DAY(I18)) -> 2018-01-01
E21: Number of operational years | G21: full years | I21: 25
E22: Month number of start of financial year of operations start date | G22: value | I22: =MONTH(I18) -> 1
C24: Cap and Floor levels
E26: Preliminary Cap including tax | G26: =$I$11 -> £m 13/14 prices | H26: PCL | I26: 83.80640211
E27: Preliminary Floor including tax | G27: =$I$11 -> £m 13/14 prices | H27: PFL | I27: 48.80731676
E29: Cap PCA adjustment | G29: =$I$11 -> £m 13/14 prices | H29: PCAC | I29: -7.649490424
E30: Floor PCA adjustment | G30: £m 13/14 prices | H30: PCAF | I30: -6.028649286
C32: Baseline cost inputs during operations
E34: Decommissioning (baseline) | G34: =$I$11 -> £m 13/14 prices | P34: 0.0003004123828 | Q34: 0.0006023268275 | R34: 0.001522645135 | S34: 0.002478395103 | T34: 0.003471273212 | U34: 0.004503060766 | V34: 0.005575628134 | W34: 0.006690939203 | X34: 0.007851056056 | Y34: 0.009058143879 | Z34: 0.01125683427 | AA34: 0.0135589859 | AB34: 0.01596969671 | AC34: 0.01849431958 | AD34: 0.02113847498 | AE34: 0.02390806446 | AF34: 0.02680928461 | AG34: 0.02984864185 | AH34: 0.03303296795 | AI34: 0.03636943624 | AJ34: 0.03800590639 | AK34: 0.03972269799 | AL34: 0.0415238271 | AM34: 0.04341351061 | AN34: 11.35738881 | AO34: 0 | AP34: 0 | AQ34: 0 | AR34: 0 | AS34: 0 | AT34: 0 | AU34: 0 | AV34: 0 | AW34: 0 | AX34: 0 | AY34: 0 | AZ34: 0 | BA34: 0 | BB34: 0
E35: Controllable Opex (baseline) | G35: £m 13/14 prices | P35: 14.49679782 | Q35: 13.65203375 | R35: 12.88494287 | S35: 12.89662711 | T35: 12.90732178 | U35: 13.96681878 | V35: 13.764977 | W35: 13.80892058 | X35: 13.86507966 | Y35: 13.89807956 | Z35: 14.22379803 | AA35: 14.02025334 | AB35: 14.06558781 | AC35: 14.12315933 | AD35: 14.15759344 | AE35: 14.48476811 | AF35: 14.28270183 | AG35: 14.32646467 | AH35: 14.38248722 | AI35: 14.41539525 | AJ35: 14.72062579 | AK35: 14.51707986 | AL35: 14.56322353 | AM35: 14.64687195 | AN35: 14.68220865 | AO35: 0 | AP35: 0 | AQ35: 0 | AR35: 0 | AS35: 0 | AT35: 0 | AU35: 0 | AV35: 0 | AW35: 0 | AX35: 0 | AY35: 0 | AZ35: 0 | BA35: 0 | BB35: 0
E36: Non-controllable Opex (baseline) | G36: £m 13/14 prices | H36: BNCOA | P36: 1.222279301 | Q36: 1.222279301 | R36: 1.222279301 | S36: 1.222279301 | T36: 1.222279301 | U36: 1.222279301 | V36: 1.222279301 | W36: 1.222279301 | X36: 1.222279301 | Y36: 1.222279301 | Z36: 1.222279301 | AA36: 1.222279301 | AB36: 1.222279301 | AC36: 1.222279301 | AD36: 1.222279301 | AE36: 1.222279301 | AF36: 1.222279301 | AG36: 1.222279301 | AH36: 1.222279301 | AI36: 1.222279301 | AJ36: 1.222279301 | AK36: 1.222279301 | AL36: 1.222279301 | AM36: 1.222279301 | AN36: 1.222279301 | AO36: 0 | AP36: 0 | AQ36: 0 | AR36: 0 | AS36: 0 | AT36: 0 | AU36: 0 | AV36: 0 | AW36: 0 | AX36: 0 | AY36: 0 | AZ36: 0 | BA36: 0 | BB36: 0
C38: Financial returns
E40: Cap return rate | G40: real annual % | I40: 0.0734
E41: Floor return rate | G41: real annual % | I41: 0.0042
E42: Operational discount rate | G42: real annual % | H42: ODR | I42: =(I40 + I41) / 2 -> 0.0388
C44: Base year indices
E46: Base year RPI inflation index value (CHAW) | G46: Jan 1987 = 100 | H46: UK RPI index 2013/14 | I46: 251.7333333
E47: Base year Belgium CPI inflation index value | G47: 2004 = 100 | H47: Belgium CPI index 2013/14 | I47: 122.7016667
E48: Base year average exchange rate (XUMAERS) | G48: GBP / EUR | H48: GBP2013/14 / EUR2013/14 | I48: 1.186008333
B50: Regime timings and design
C52: Model operation
C53: Note: changes to these variables may require structural changes to the model
E55: =E17 -> Regime start date | G55: date | I55: =I17 -> 2019-01-31
E56: =E18 -> Start of financial year of regime start date | G56: date | I56: =I18 -> 2019-01-01
E57: =E19 -> End of financial year of regime start date | G57: date | I57: =I19 -> 2019-12-31
E58: Days in year | G58: days | O58: =O4-O3+1 -> 365 | P58: 365 | Q58: 366 | R58: 365 | S58: 365 | T58: 365 | U58: 366 | V58: 365 | W58: 365 | X58: 365 | Y58: 366 | Z58: 365 | AA58: 365 | AB58: 365 | AC58: 366 | AD58: 365 | AE58: 365 | AF58: 365 | AG58: 366 | AH58: 365 | AI58: 365 | AJ58: 365 | AK58: 366 | AL58: 365 | AM58: 365 | AN58: 365 | AO58: 366 | AP58: 365 | AQ58: 365 | AR58: 365 | AS58: 366 | AT58: 365 | AU58: 365 | AV58: 365 | AW58: 366 | AX58: 365 | AY58: 365 | AZ58: 365 | BA58: 366 | BB58: 365
E60: Regime start date flag | G60: flag | O60: =IF($I$57=O$4,1,0) -> 0 | P60: 1 | Q60: 0 | R60: 0 | S60: 0 | T60: 0 | U60: 0 | V60: 0 | W60: 0 | X60: 0 | Y60: 0 | Z60: 0 | AA60: 0 | AB60: 0 | AC60: 0 | AD60: 0 | AE60: 0 | AF60: 0 | AG60: 0 | AH60: 0 | AI60: 0 | AJ60: 0 | AK60: 0 | AL60: 0 | AM60: 0 | AN60: 0 | AO60: 0 | AP60: 0 | AQ60: 0 | AR60: 0 | AS60: 0 | AT60: 0 | AU60: 0 | AV60: 0 | AW60: 0 | AX60: 0 | AY60: 0 | AZ60: 0 | BA60: 0 | BB60: 0
E61: Regime end date | G61: date | I61: =DATE(YEAR($I$55)+I21,MONTH($I$55),DAY($I$55))-1 -> 2044-01-30
E62: Regime end date flag | G62: flag | O62: =IF(AND($I61<O$4,$I61>=N$4),1,0) -> 0 | P62: =IF(AND($I61<P$4,$I61>=O$4),1,0) -> 0 | Q62: 0 | R62: 0 | S62: 0 | T62: 0 | U62: 0 | V62: 0 | W62: 0 | X62: 0 | Y62: 0 | Z62: 0 | AA62: 0 | AB62: 0 | AC62: 0 | AD62: 0 | AE62: 0 | AF62: 0 | AG62: 0 | AH62: 0 | AI62: 0 | AJ62: 0 | AK62: 0 | AL62: 0 | AM62: 0 | AN62: =IF(AND($I61<AN$4,$I61>=AM$4),1,0) -> 0 | AO62: 1 | AP62: 0 | AQ62: 0 | AR62: 0 | AS62: 0 | AT62: 0 | AU62: 0 | AV62: 0 | AW62: 0 | AX62: 0 | AY62: 0 | AZ62: 0 | BA62: 0 | BB62: 0
E63: Number of days cap term | G63: days | H63: NDC | I63: =+I57-I55+1 -> 335
E64: Partial year cap adjustment factor | G64: flag | H64: PYCt | O64: =+IF(SUM($O60:O60)<1,0,IF(O$5=1,$I$63/365.25,IF(O$5=25,1+(365.25-$I$63)/365.25,IF(O$5>25,0,1)))) -> 0 | P64: =+IF(SUM($O60:P60)<1,0,IF(P$5=1,$I$63/365.25,IF(P$5=25,1+(365.25-$I$63)/365.25,IF(P$5>25,0,1)))) -> 0.9171800137 | Q64: =+IF(SUM($O60:Q60)<1,0,IF(Q$5=1,$I$63/365.25,IF(Q$5=25,1+(365.25-$I$63)/365.25,IF(Q$5>25,0,1)))) -> 1 | R64: =+IF(SUM($O60:R60)<1,0,IF(R$5=1,$I$63/365.25,IF(R$5=25,1+(365.25-$I$63)/365.25,IF(R$5>25,0,1)))) -> 1 | S64: =+IF(SUM($O60:S60)<1,0,IF(S$5=1,$I$63/365.25,IF(S$5=25,1+(365.25-$I$63)/365.25,IF(S$5>25,0,1)))) -> 1 | T64: =+IF(SUM($O60:T60)<1,0,IF(T$5=1,$I$63/365.25,IF(T$5=25,1+(365.25-$I$63)/365.25,IF(T$5>25,0,1)))) -> 1 | U64: =+IF(SUM($O60:U60)<1,0,IF(U$5=1,$I$63/365.25,IF(U$5=25,1+(365.25-$I$63)/365.25,IF(U$5>25,0,1)))) -> 1 | V64: =+IF(SUM($O60:V60)<1,0,IF(V$5=1,$I$63/365.25,IF(V$5=25,1+(365.25-$I$63)/365.25,IF(V$5>25,0,1)))) -> 1 | W64: =+IF(SUM($O60:W60)<1,0,IF(W$5=1,$I$63/365.25,IF(W$5=25,1+(365.25-$I$63)/365.25,IF(W$5>25,0,1)))) -> 1 | X64: =+IF(SUM($O60:X60)<1,0,IF(X$5=1,$I$63/365.25,IF(X$5=25,1+(365.25-$I$63)/365.25,IF(X$5>25,0,1)))) -> 1 | Y64: =+IF(SUM($O60:Y60)<1,0,IF(Y$5=1,$I$63/365.25,IF(Y$5=25,1+(365.25-$I$63)/365.25,IF(Y$5>25,0,1)))) -> 1 | Z64: =+IF(SUM($O60:Z60)<1,0,IF(Z$5=1,$I$63/365.25,IF(Z$5=25,1+(365.25-$I$63)/365.25,IF(Z$5>25,0,1)))) -> 1 | AA64: =+IF(SUM($O60:AA60)<1,0,IF(AA$5=1,$I$63/365.25,IF(AA$5=25,1+(365.25-$I$63)/365.25,IF(AA$5>25,0,1)))) -> 1 | AB64: =+IF(SUM($O60:AB60)<1,0,IF(AB$5=1,$I$63/365.25,IF(AB$5=25,1+(365.25-$I$63)/365.25,IF(AB$5>25,0,1)))) -> 1 | AC64: =+IF(SUM($O60:AC60)<1,0,IF(AC$5=1,$I$63/365.25,IF(AC$5=25,1+(365.25-$I$63)/365.25,IF(AC$5>25,0,1)))) -> 1 | AD64: =+IF(SUM($O60:AD60)<1,0,IF(AD$5=1,$I$63/365.25,IF(AD$5=25,1+(365.25-$I$63)/365.25,IF(AD$5>25,0,1)))) -> 1 | AE64: =+IF(SUM($O60:AE60)<1,0,IF(AE$5=1,$I$63/365.25,IF(AE$5=25,1+(365.25-$I$63)/365.25,IF(AE$5>25,0,1)))) -> 1 | AF64: =+IF(SUM($O60:AF60)<1,0,IF(AF$5=1,$I$63/365.25,IF(AF$5=25,1+(365.25-$I$63)/365.25,IF(AF$5>25,0,1)))) -> 1 | AG64: =+IF(SUM($O60:AG60)<1,0,IF(AG$5=1,$I$63/365.25,IF(AG$5=25,1+(365.25-$I$63)/365.25,IF(AG$5>25,0,1)))) -> 1 | AH64: =+IF(SUM($O60:AH60)<1,0,IF(AH$5=1,$I$63/365.25,IF(AH$5=25,1+(365.25-$I$63)/365.25,IF(AH$5>25,0,1)))) -> 1 | AI64: =+IF(SUM($O60:AI60)<1,0,IF(AI$5=1,$I$63/365.25,IF(AI$5=25,1+(365.25-$I$63)/365.25,IF(AI$5>25,0,1)))) -> 1 | AJ64: =+IF(SUM($O60:AJ60)<1,0,IF(AJ$5=1,$I$63/365.25,IF(AJ$5=25,1+(365.25-$I$63)/365.25,IF(AJ$5>25,0,1)))) -> 1 | AK64: =+IF(SUM($O60:AK60)<1,0,IF(AK$5=1,$I$63/365.25,IF(AK$5=25,1+(365.25-$I$63)/365.25,IF(AK$5>25,0,1)))) -> 1 | AL64: =+IF(SUM($O60:AL60)<1,0,IF(AL$5=1,$I$63/365.25,IF(AL$5=25,1+(365.25-$I$63)/365.25,IF(AL$5>25,0,1)))) -> 1 | AM64: =+IF(SUM($O60:AM60)<1,0,IF(AM$5=1,$I$63/365.25,IF(AM$5=25,1+(365.25-$I$63)/365.25,IF(AM$5>25,0,1)))) -> 1 | AN64: =+IF(SUM($O60:AN60)<1,0,IF(AN$5=1,$I$63/365.25,IF(AN$5=25,1+(365.25-$I$63)/365.25,IF(AN$5>25,0,1)))) -> 1.082819986 | AO64: =+IF(SUM($O60:AO60)<1,0,IF(AO$5=1,$I$63/365.25,IF(AO$5=25,1+(365.25-$I$63)/365.25,IF(AO$5>25,0,1)))) -> 0 | AP64: =+IF(SUM($O60:AP60)<1,0,IF(AP$5=1,$I$63/365.25,IF(AP$5=25,1+(365.25-$I$63)/365.25,IF(AP$5>25,0,1)))) -> 0 | AQ64: =+IF(SUM($O60:AQ60)<1,0,IF(AQ$5=1,$I$63/365.25,IF(AQ$5=25,1+(365.25-$I$63)/365.25,IF(AQ$5>25,0,1)))) -> 0 | AR64: =+IF(SUM($O60:AR60)<1,0,IF(AR$5=1,$I$63/365.25,IF(AR$5=25,1+(365.25-$I$63)/365.25,IF(AR$5>25,0,1)))) -> 0 | AS64: =+IF(SUM($O60:AS60)<1,0,IF(AS$5=1,$I$63/365.25,IF(AS$5=25,1+(365.25-$I$63)/365.25,IF(AS$5>25,0,1)))) -> 0 | AT64: =+IF(SUM($O60:AT60)<1,0,IF(AT$5=1,$I$63/365.25,IF(AT$5=25,1+(365.25-$I$63)/365.25,IF(AT$5>25,0,1)))) -> 0 | AU64: =+IF(SUM($O60:AU60)<1,0,IF(AU$5=1,$I$63/365.25,IF(AU$5=25,1+(365.25-$I$63)/365.25,IF(AU$5>25,0,1)))) -> 0 | AV64: =+IF(SUM($O60:AV60)<1,0,IF(AV$5=1,$I$63/365.25,IF(AV$5=25,1+(365.25-$I$63)/365.25,IF(AV$5>25,0,1)))) -> 0 | AW64: =+IF(SUM($O60:AW60)<1,0,IF(AW$5=1,$I$63/365.25,IF(AW$5=25,1+(365.25-$I$63)/365.25,IF(AW$5>25,0,1)))) -> 0 | AX64: =+IF(SUM($O60:AX60)<1,0,IF(AX$5=1,$I$63/365.25,IF(AX$5=25,1+(365.25-$I$63)/365.25,IF(AX$5>25,0,1)))) -> 0 | AY64: =+IF(SUM($O60:AY60)<1,0,IF(AY$5=1,$I$63/365.25,IF(AY$5=25,1+(365.25-$I$63)/365.25,IF(AY$5>25,0,1)))) -> 0 | AZ64: =+IF(SUM($O60:AZ60)<1,0,IF(AZ$5=1,$I$63/365.25,IF(AZ$5=25,1+(365.25-$I$63)/365.25,IF(AZ$5>25,0,1)))) -> 0 | BA64: =+IF(SUM($O60:BA60)<1,0,IF(BA$5=1,$I$63/365.25,IF(BA$5=25,1+(365.25-$I$63)/365.25,IF(BA$5>25,0,1)))) -> 0 | BB64: =+IF(SUM($O60:BB60)<1,0,IF(BB$5=1,$I$63/365.25,IF(BB$5=25,1+(365.25-$I$63)/365.25,IF(BB$5>25,0,1)))) -> 0
E65: Check | I65: =SUM(O64:BB64)-I74 -> 0
E67: Floor start date | G67: date | I67: 2019-01-31
E68: Start of financial year of floor start date | G68: date | I68: =IF(MONTH(I67)<$I$22,DATE(YEAR(I67)-1,$I$22,1),DATE(YEAR(I67),$I$22,1)) -> 2019-01-01
E69: End of financial year of floor start date | G69: date | I69: =EOMONTH(I68,11) -> 2019-12-31
E70: Floor start date flag | G70: flag | O70: =IF(AND($I67<=O$4,$I67>=O$3),1,0) -> 0 | P70: 1 | Q70: =IF(AND($I67<=Q$4,$I67>=Q$3),1,0) -> 0 | R70: =IF(AND($I67<=R$4,$I67>=R$3),1,0) -> 0 | S70: 0 | T70: 0 | U70: 0 | V70: 0 | W70: 0 | X70: 0 | Y70: 0 | Z70: 0 | AA70: 0 | AB70: 0 | AC70: 0 | AD70: 0 | AE70: 0 | AF70: 0 | AG70: 0 | AH70: 0 | AI70: 0 | AJ70: 0 | AK70: 0 | AL70: 0 | AM70: 0 | AN70: 0 | AO70: 0 | AP70: 0 | AQ70: 0 | AR70: 0 | AS70: 0 | AT70: 0 | AU70: 0 | AV70: 0 | AW70: 0 | AX70: 0 | AY70: 0 | AZ70: 0 | BA70: 0 | BB70: 0
E71: Number of days floor term | G71: days | H71: NDF | I71: =+I69-I67+1 -> 335
E72: Partial year foor adjustment factor | G72: flag | H72: PYFt | O72: =IF(O$70=1,$I$71/365.25,IF(SUM($O70:O70)>=1,O64,0)) -> 0 | P72: =IF(P$70=1,$I$71/365.25,IF(SUM($O70:P70)>=1,P64,0)) -> 0.9171800137 | Q72: =IF(Q$70=1,$I$71/365.25,IF(SUM($O70:Q70)>=1,Q64,0)) -> 1 | R72: =IF(R$70=1,$I$71/365.25,IF(SUM($O70:R70)>=1,R64,0)) -> 1 | S72: =IF(S$70=1,$I$71/365.25,IF(SUM($O70:S70)>=1,S64,0)) -> 1 | T72: =IF(T$70=1,$I$71/365.25,IF(SUM($O70:T70)>=1,T64,0)) -> 1 | U72: =IF(U$70=1,$I$71/365.25,IF(SUM($O70:U70)>=1,U64,0)) -> 1 | V72: =IF(V$70=1,$I$71/365.25,IF(SUM($O70:V70)>=1,V64,0)) -> 1 | W72: =IF(W$70=1,$I$71/365.25,IF(SUM($O70:W70)>=1,W64,0)) -> 1 | X72: =IF(X$70=1,$I$71/365.25,IF(SUM($O70:X70)>=1,X64,0)) -> 1 | Y72: =IF(Y$70=1,$I$71/365.25,IF(SUM($O70:Y70)>=1,Y64,0)) -> 1 | Z72: =IF(Z$70=1,$I$71/365.25,IF(SUM($O70:Z70)>=1,Z64,0)) -> 1 | AA72: =IF(AA$70=1,$I$71/365.25,IF(SUM($O70:AA70)>=1,AA64,0)) -> 1 | AB72: =IF(AB$70=1,$I$71/365.25,IF(SUM($O70:AB70)>=1,AB64,0)) -> 1 | AC72: =IF(AC$70=1,$I$71/365.25,IF(SUM($O70:AC70)>=1,AC64,0)) -> 1 | AD72: =IF(AD$70=1,$I$71/365.25,IF(SUM($O70:AD70)>=1,AD64,0)) -> 1 | AE72: =IF(AE$70=1,$I$71/365.25,IF(SUM($O70:AE70)>=1,AE64,0)) -> 1 | AF72: =IF(AF$70=1,$I$71/365.25,IF(SUM($O70:AF70)>=1,AF64,0)) -> 1 | AG72: =IF(AG$70=1,$I$71/365.25,IF(SUM($O70:AG70)>=1,AG64,0)) -> 1 | AH72: =IF(AH$70=1,$I$71/365.25,IF(SUM($O70:AH70)>=1,AH64,0)) -> 1 | AI72: =IF(AI$70=1,$I$71/365.25,IF(SUM($O70:AI70)>=1,AI64,0)) -> 1 | AJ72: =IF(AJ$70=1,$I$71/365.25,IF(SUM($O70:AJ70)>=1,AJ64,0)) -> 1 | AK72: =IF(AK$70=1,$I$71/365.25,IF(SUM($O70:AK70)>=1,AK64,0)) -> 1 | AL72: =IF(AL$70=1,$I$71/365.25,IF(SUM($O70:AL70)>=1,AL64,0)) -> 1 | AM72: =IF(AM$70=1,$I$71/365.25,IF(SUM($O70:AM70)>=1,AM64,0)) -> 1 | AN72: =IF(AN$70=1,$I$71/365.25,IF(SUM($O70:AN70)>=1,AN64,0)) -> 1.082819986 | AO72: =IF(AO$70=1,$I$71/365.25,IF(SUM($O70:AO70)>=1,AO64,0)) -> 0 | AP72: =IF(AP$70=1,$I$71/365.25,IF(SUM($O70:AP70)>=1,AP64,0)) -> 0 | AQ72: =IF(AQ$70=1,$I$71/365.25,IF(SUM($O70:AQ70)>=1,AQ64,0)) -> 0 | AR72: =IF(AR$70=1,$I$71/365.25,IF(SUM($O70:AR70)>=1,AR64,0)) -> 0 | AS72: =IF(AS$70=1,$I$71/365.25,IF(SUM($O70:AS70)>=1,AS64,0)) -> 0 | AT72: =IF(AT$70=1,$I$71/365.25,IF(SUM($O70:AT70)>=1,AT64,0)) -> 0 | AU72: =IF(AU$70=1,$I$71/365.25,IF(SUM($O70:AU70)>=1,AU64,0)) -> 0 | AV72: =IF(AV$70=1,$I$71/365.25,IF(SUM($O70:AV70)>=1,AV64,0)) -> 0 | AW72: =IF(AW$70=1,$I$71/365.25,IF(SUM($O70:AW70)>=1,AW64,0)) -> 0 | AX72: =IF(AX$70=1,$I$71/365.25,IF(SUM($O70:AX70)>=1,AX64,0)) -> 0 | AY72: =IF(AY$70=1,$I$71/365.25,IF(SUM($O70:AY70)>=1,AY64,0)) -> 0 | AZ72: =IF(AZ$70=1,$I$71/365.25,IF(SUM($O70:AZ70)>=1,AZ64,0)) -> 0 | BA72: =IF(BA$70=1,$I$71/365.25,IF(SUM($O70:BA70)>=1,BA64,0)) -> 0 | BB72: =IF(BB$70=1,$I$71/365.25,IF(SUM($O70:BB70)>=1,BB64,0)) -> 0
E74: Number of operational years | G74: full years | I74: =I21 -> 25
E75: Assessment period length | G75: full years | I75: 5
E77: GB indexed portion of interconnector | G77: % | I77: 0.5
B79: Variables to be updated
C81: Cost items to be updated up to and beyond PCA stage (actual)
E83: Non-controllable Opex (actual) | G83: =CONCATENATE($I$13,"m nominal prices") -> €m nominal prices | P83: 1 | Q83: =P83*1.05 -> 1.05 | R83: =Q83*1.05 -> 1.1025 | S83: 1.157625 | T83: 1.21550625 | U83: 1.276281563 | V83: 1.340095641 | W83: 1.407100423 | X83: 1.477455444 | Y83: 1.551328216 | Z83: 1.628894627 | AA83: 1.710339358 | AB83: 1.795856326 | AC83: 1.885649142 | AD83: 1.979931599 | AE83: 2.078928179 | AF83: 2.182874588 | AG83: 2.292018318 | AH83: 2.406619234 | AI83: 2.526950195 | AJ83: 2.653297705 | AK83: 2.78596259 | AL83: 2.92526072 | AM83: 3.071523756 | AN83: 3.225099944 | AO83: 0 | AP83: 0 | AQ83: 0 | AR83: 0 | AS83: 0 | AT83: 0 | AU83: 0 | AV83: 0 | AW83: 0 | AX83: 0 | AY83: 0 | AZ83: 0 | BA83: 0 | BB83: 0
E84: Non-controllable Opex adjustment following NRA review (actual) | G84: =CONCATENATE($I$13,"m nominal prices") -> €m nominal prices | P84: 0 | Q84: 0 | R84: 0 | S84: 0 | T84: 0 | U84: 0 | V84: 0 | W84: 0 | X84: 0 | Y84: 0 | Z84: 0 | AA84: 0 | AB84: 0 | AC84: 0 | AD84: 0 | AE84: 0 | AF84: 0 | AG84: 0 | AH84: 0 | AI84: 0 | AJ84: 0 | AK84: 0 | AL84: 0 | AM84: 0 | AN84: 0 | AO84: 0 | AP84: 0 | AQ84: 0 | AR84: 0 | AS84: 0 | AT84: 0 | AU84: 0 | AV84: 0 | AW84: 0 | AX84: 0 | AY84: 0 | AZ84: 0 | BA84: 0 | BB84: 0
C86: Revenue items to be updated (actual)
E88: Capacity allocation revenue | G88: =CONCATENATE($I$13,"m nominal prices") -> €m nominal prices | H88: CARt | P88: 100 | Q88: =P88*1.02 -> 102 | R88: =Q88*1.02 -> 104.04 | S88: 106.1208 | T88: 108.243216 | U88: 110.4080803 | V88: 112.6162419 | W88: 114.8685668 | X88: 117.1659381 | Y88: 119.5092569 | Z88: 121.899442 | AA88: 124.3374308 | AB88: 126.8241795 | AC88: 129.360663 | AD88: 131.9478763 | AE88: 134.5868338 | AF88: 137.2785705 | AG88: 140.0241419 | AH88: 142.8246248 | AI88: 145.6811173 | AJ88: 148.5947396 | AK88: 151.5666344 | AL88: 154.5979671 | AM88: 157.6899264 | AN88: 160.8437249 | AO88: 0 | AP88: 0 | AQ88: 0 | AR88: 0 | AS88: 0 | AT88: 0 | AU88: 0 | AV88: 0 | AW88: 0 | AX88: 0 | AY88: 0 | AZ88: 0 | BA88: 0 | BB88: 0
E89: Ancillary services revenue (GB) | G89: €m nominal prices | H89: ASRGBt | P89: 0 | Q89: 0 | R89: 0 | S89: 0 | T89: 0 | U89: 0 | V89: 0 | W89: 0 | X89: 0 | Y89: 0 | Z89: 0 | AA89: 0 | AB89: 0 | AC89: 0 | AD89: 0 | AE89: 0 | AF89: 0 | AG89: 0 | AH89: 0 | AI89: 0 | AJ89: 0 | AK89: 0 | AL89: 0 | AM89: 0 | AN89: 0 | AO89: 0 | AP89: 0 | AQ89: 0 | AR89: 0 | AS89: 0 | AT89: 0 | AU89: 0 | AV89: 0 | AW89: 0 | AX89: 0 | AY89: 0 | AZ89: 0 | BA89: 0 | BB89: 0
E90: Ancillary services revenue (Belgium) | G90: €m nominal prices | H90: ASRBt | P90: 0 | Q90: 0 | R90: 0 | S90: 0 | T90: 0 | U90: 0 | V90: 0 | W90: 0 | X90: 0 | Y90: 0 | Z90: 0 | AA90: 0 | AB90: 0 | AC90: 0 | AD90: 0 | AE90: 0 | AF90: 0 | AG90: 0 | AH90: 0 | AI90: 0 | AJ90: 0 | AK90: 0 | AL90: 0 | AM90: 0 | AN90: 0 | AO90: 0 | AP90: 0 | AQ90: 0 | AR90: 0 | AS90: 0 | AT90: 0 | AU90: 0 | AV90: 0 | AW90: 0 | AX90: 0 | AY90: 0 | AZ90: 0 | BA90: 0 | BB90: 0
E91: Capacity market revenue | G91: €m nominal prices | H91: CMRt | P91: 0 | Q91: 0 | R91: 0 | S91: 0 | T91: 0 | U91: 0 | V91: 0 | W91: 0 | X91: 0 | Y91: 0 | Z91: 0 | AA91: 0 | AB91: 0 | AC91: 0 | AD91: 0 | AE91: 0 | AF91: 0 | AG91: 0 | AH91: 0 | AI91: 0 | AJ91: 0 | AK91: 0 | AL91: 0 | AM91: 0 | AN91: 0 | AO91: 0 | AP91: 0 | AQ91: 0 | AR91: 0 | AS91: 0 | AT91: 0 | AU91: 0 | AV91: 0 | AW91: 0 | AX91: 0 | AY91: 0 | AZ91: 0 | BA91: 0 | BB91: 0
E92: Receipts from insurance | G92: €m nominal prices | H92: RIt | P92: 0 | Q92: 0 | R92: 0 | S92: 0 | T92: 0 | U92: 0 | V92: 0 | W92: 0 | X92: 0 | Y92: 0 | Z92: 0 | AA92: 0 | AB92: 0 | AC92: 0 | AD92: 0 | AE92: 0 | AF92: 0 | AG92: 0 | AH92: 0 | AI92: 0 | AJ92: 0 | AK92: 0 | AL92: 0 | AM92: 0 | AN92: 0 | AO92: 0 | AP92: 0 | AQ92: 0 | AR92: 0 | AS92: 0 | AT92: 0 | AU92: 0 | AV92: 0 | AW92: 0 | AX92: 0 | AY92: 0 | AZ92: 0 | BA92: 0 | BB92: 0
E93: Constraint payments (GB) | G93: €m nominal prices | H93: CPGBt | P93: 0 | Q93: 0 | R93: 0 | S93: 0 | T93: 0 | U93: 0 | V93: 0 | W93: 0 | X93: 0 | Y93: 0 | Z93: 0 | AA93: 0 | AB93: 0 | AC93: 0 | AD93: 0 | AE93: 0 | AF93: 0 | AG93: 0 | AH93: 0 | AI93: 0 | AJ93: 0 | AK93: 0 | AL93: 0 | AM93: 0 | AN93: 0 | AO93: 0 | AP93: 0 | AQ93: 0 | AR93: 0 | AS93: 0 | AT93: 0 | AU93: 0 | AV93: 0 | AW93: 0 | AX93: 0 | AY93: 0 | AZ93: 0 | BA93: 0 | BB93: 0
E94: Constraint payments (Belgium) | G94: €m nominal prices | H94: CPBt | P94: 0 | Q94: 0 | R94: 0 | S94: 0 | T94: 0 | U94: 0 | V94: 0 | W94: 0 | X94: 0 | Y94: 0 | Z94: 0 | AA94: 0 | AB94: 0 | AC94: 0 | AD94: 0 | AE94: 0 | AF94: 0 | AG94: 0 | AH94: 0 | AI94: 0 | AJ94: 0 | AK94: 0 | AL94: 0 | AM94: 0 | AN94: 0 | AO94: 0 | AP94: 0 | AQ94: 0 | AR94: 0 | AS94: 0 | AT94: 0 | AU94: 0 | AV94: 0 | AW94: 0 | AX94: 0 | AY94: 0 | AZ94: 0 | BA94: 0 | BB94: 0
E95: Additional revenue (net of relevant costs) | G95: €m nominal prices | H95: ADRt | P95: 0 | Q95: 0 | R95: 0 | S95: 0 | T95: 0 | U95: 0 | V95: 0 | W95: 0 | X95: 0 | Y95: 0 | Z95: 0 | AA95: 0 | AB95: 0 | AC95: 0 | AD95: 0 | AE95: 0 | AF95: 0 | AG95: 0 | AH95: 0 | AI95: 0 | AJ95: 0 | AK95: 0 | AL95: 0 | AM95: 0 | AN95: 0 | AO95: 0 | AP95: 0 | AQ95: 0 | AR95: 0 | AS95: 0 | AT95: 0 | AU95: 0 | AV95: 0 | AW95: 0 | AX95: 0 | AY95: 0 | AZ95: 0 | BA95: 0 | BB95: 0
E96: Gross congestion revenues | G96: €m nominal prices | H96: GCRt | P96: =SUM(P88:P95) -> 100 | Q96: 102 | R96: 104.04 | S96: 106.1208 | T96: 108.243216 | U96: 110.4080803 | V96: 112.6162419 | W96: 114.8685668 | X96: 117.1659381 | Y96: 119.5092569 | Z96: =SUM(Z88:Z95) -> 121.899442 | AA96: 124.3374308 | AB96: 126.8241795 | AC96: 129.360663 | AD96: 131.9478763 | AE96: 134.5868338 | AF96: 137.2785705 | AG96: 140.0241419 | AH96: 142.8246248 | AI96: 145.6811173 | AJ96: 148.5947396 | AK96: 151.5666344 | AL96: 154.5979671 | AM96: 157.6899264 | AN96: 160.8437249 | AO96: 0 | AP96: 0 | AQ96: 0 | AR96: 0 | AS96: 0 | AT96: 0 | AU96: 0 | AV96: 0 | AW96: 0 | AX96: 0 | AY96: 0 | AZ96: 0 | BA96: 0 | BB96: 0
E98: Error accounting costs | G98: =CONCATENATE($I$13,"m nominal prices") -> €m nominal prices | H98: EACt | P98: 0 | Q98: 0 | R98: 0 | S98: 0 | T98: 0 | U98: 0 | V98: 0 | W98: 0 | X98: 0 | Y98: 0 | Z98: 0 | AA98: 0 | AB98: 0 | AC98: 0 | AD98: 0 | AE98: 0 | AF98: 0 | AG98: 0 | AH98: 0 | AI98: 0 | AJ98: 0 | AK98: 0 | AL98: 0 | AM98: 0 | AN98: 0 | AO98: 0 | AP98: 0 | AQ98: 0 | AR98: 0 | AS98: 0 | AT98: 0 | AU98: 0 | AV98: 0 | AW98: 0 | AX98: 0 | AY98: 0 | AZ98: 0 | BA98: 0 | BB98: 0
E99: Firmness costs | G99: €m nominal prices | H99: FCt | P99: 0 | Q99: 0 | R99: 0 | S99: 0 | T99: 0 | U99: 0 | V99: 0 | W99: 0 | X99: 0 | Y99: 0 | Z99: 0 | AA99: 0 | AB99: 0 | AC99: 0 | AD99: 0 | AE99: 0 | AF99: 0 | AG99: 0 | AH99: 0 | AI99: 0 | AJ99: 0 | AK99: 0 | AL99: 0 | AM99: 0 | AN99: 0 | AO99: 0 | AP99: 0 | AQ99: 0 | AR99: 0 | AS99: 0 | AT99: 0 | AU99: 0 | AV99: 0 | AW99: 0 | AX99: 0 | AY99: 0 | AZ99: 0 | BA99: 0 | BB99: 0
E100: Trip contract costs | G100: €m nominal prices | H100: TCCt | P100: 0 | Q100: 0 | R100: 0 | S100: 0 | T100: 0 | U100: 0 | V100: 0 | W100: 0 | X100: 0 | Y100: 0 | Z100: 0 | AA100: 0 | AB100: 0 | AC100: 0 | AD100: 0 | AE100: 0 | AF100: 0 | AG100: 0 | AH100: 0 | AI100: 0 | AJ100: 0 | AK100: 0 | AL100: 0 | AM100: 0 | AN100: 0 | AO100: 0 | AP100: 0 | AQ100: 0 | AR100: 0 | AS100: 0 | AT100: 0 | AU100: 0 | AV100: 0 | AW100: 0 | AX100: 0 | AY100: 0 | AZ100: 0 | BA100: 0 | BB100: 0
E101: Market related costs | G101: €m nominal prices | H101: MRCt | P101: =SUM(P98:P100) -> 0 | Q101: 0 | R101: 0 | S101: 0 | T101: 0 | U101: 0 | V101: 0 | W101: 0 | X101: 0 | Y101: 0 | Z101: 0 | AA101: 0 | AB101: 0 | AC101: 0 | AD101: 0 | AE101: 0 | AF101: 0 | AG101: 0 | AH101: 0 | AI101: 0 | AJ101: 0 | AK101: 0 | AL101: 0 | AM101: 0 | AN101: 0 | AO101: 0 | AP101: 0 | AQ101: 0 | AR101: 0 | AS101: 0 | AT101: 0 | AU101: 0 | AV101: 0 | AW101: 0 | AX101: 0 | AY101: 0 | AZ101: =SUM(AZ98:AZ100) -> 0 | BA101: =SUM(BA98:BA100) -> 0 | BB101: 0
E103: Income adjusting event | G103: =CONCATENATE($I$13,"m nominal prices") -> €m nominal prices | H103: IATt | P103: 0 | Q103: 0 | R103: 0 | S103: 0 | T103: 0 | U103: 0 | V103: 0 | W103: 0 | X103: 0 | Y103: 0 | Z103: 0 | AA103: 0 | AB103: 0 | AC103: 0 | AD103: 0 | AE103: 0 | AF103: 0 | AG103: 0 | AH103: 0 | AI103: 0 | AJ103: 0 | AK103: 0 | AL103: 0 | AM103: 0 | AN103: 0 | AO103: 0 | AP103: 0 | AQ103: 0 | AR103: 0 | AS103: 0 | AT103: 0 | AU103: 0 | AV103: 0 | AW103: 0 | AX103: 0 | AY103: 0 | AZ103: 0 | BA103: 0 | BB103: 0
E105: Notional assessed revenue | G105: =CONCATENATE($I$13,"m nominal prices") -> €m nominal prices | H105: NARt | P105: =P96-P101-P103 -> 100 | Q105: 102 | R105: 104.04 | S105: 106.1208 | T105: 108.243216 | U105: 110.4080803 | V105: 112.6162419 | W105: 114.8685668 | X105: 117.1659381 | Y105: 119.5092569 | Z105: =Z96-Z101-Z103 -> 121.899442 | AA105: 124.3374308 | AB105: =AB96-AB101-AB103 -> 126.8241795 | AC105: 129.360663 | AD105: 131.9478763 | AE105: 134.5868338 | AF105: 137.2785705 | AG105: 140.0241419 | AH105: 142.8246248 | AI105: 145.6811173 | AJ105: 148.5947396 | AK105: 151.5666344 | AL105: 154.5979671 | AM105: 157.6899264 | AN105: 160.8437249 | AO105: 0 | AP105: 0 | AQ105: 0 | AR105: 0 | AS105: 0 | AT105: 0 | AU105: 0 | AV105: 0 | AW105: 0 | AX105: 0 | AY105: 0 | AZ105: 0 | BA105: 0 | BB105: 0
E107: Assessed revenue | G107: =CONCATENATE($I$13,"m nominal prices") -> €m nominal prices | H107: ARt | P107: =IF(P105>0,P105,0) -> 100 | Q107: 102 | R107: 104.04 | S107: 106.1208 | T107: 108.243216 | U107: 110.4080803 | V107: 112.6162419 | W107: 114.8685668 | X107: 117.1659381 | Y107: 119.5092569 | Z107: =IF(Z105>0,Z105,0) -> 121.899442 | AA107: 124.3374308 | AB107: =IF(AB105>0,AB105,0) -> 126.8241795 | AC107: 129.360663 | AD107: 131.9478763 | AE107: 134.5868338 | AF107: 137.2785705 | AG107: 140.0241419 | AH107: 142.8246248 | AI107: 145.6811173 | AJ107: 148.5947396 | AK107: 151.5666344 | AL107: 154.5979671 | AM107: 157.6899264 | AN107: 160.8437249 | AO107: 0 | AP107: 0 | AQ107: 0 | AR107: 0 | AS107: 0 | AT107: 0 | AU107: 0 | AV107: 0 | AW107: 0 | AX107: 0 | AY107: 0 | AZ107: 0 | BA107: 0 | BB107: 0
E109: Within-period adjustment (assessed) (negative value: payment to consumers; positive value: payment from consumers) | G109: £m nominal prices | H109: WPAt
B111: Adjustment to Cap and Floor levels
C113: Availability incentive
E115: Cap availability incentive ratio | G115: ratio | I115: 1
E116: Cap availability incentive target | G116: % | I116: 0.9705
E117: Cap availability incentive upper limit | G117: % | I117: =I115*(1+2%) -> 1.02
E118: Cap availability incentive lower limit | G118: % | I118: =I115*(1-2%) -> 0.98
E120: Interconnector rated capacity | G120: MW | H120: RC | I120: 1000
E121: Number of hours in relevant year | G121: hours pa | I121: =365.25*24 -> 8766
E123: Total interconnector outages during active Cap period | G123: MWh | P123: 0 | Q123: 0 | R123: 0 | S123: 0 | T123: 0 | U123: 0 | V123: 0 | W123: 0 | X123: 0 | Y123: 0 | Z123: 0 | AA123: 0 | AB123: 0 | AC123: 0 | AD123: 0 | AE123: 0 | AF123: 0 | AG123: 0 | AH123: 0 | AI123: 0 | AJ123: 0 | AK123: 0 | AL123: 0 | AM123: 0 | AN123: 0 | AO123: 0 | AP123: 0 | AQ123: 0 | AR123: 0 | AS123: 0 | AT123: 0 | AU123: 0 | AV123: 0 | AW123: 0 | AX123: 0 | AY123: 0 | AZ123: 0 | BA123: 0 | BB123: 0
E124: Allowed outages during active Cap period | G124: MWh | P124: 0 | Q124: 0 | R124: 0 | S124: 0 | T124: 0 | U124: 0 | V124: 0 | W124: 0 | X124: 0 | Y124: 0 | Z124: 0 | AA124: 0 | AB124: 0 | AC124: 0 | AD124: 0 | AE124: 0 | AF124: 0 | AG124: 0 | AH124: 0 | AI124: 0 | AJ124: 0 | AK124: 0 | AL124: 0 | AM124: 0 | AN124: 0 | AO124: 0 | AP124: 0 | AQ124: 0 | AR124: 0 | AS124: 0 | AT124: 0 | AU124: 0 | AV124: 0 | AW124: 0 | AX124: 0 | AY124: 0 | AZ124: 0 | BA124: 0 | BB124: 0
E125: Total interconnector outages less allowed outages during active Cap period | G125: MWh | H125: IOt | P125: =P123-P124 -> 0 | Q125: 0 | R125: 0 | S125: 0 | T125: 0 | U125: 0 | V125: 0 | W125: 0 | X125: 0 | Y125: 0 | Z125: 0 | AA125: 0 | AB125: 0 | AC125: 0 | AD125: 0 | AE125: 0 | AF125: 0 | AG125: 0 | AH125: 0 | AI125: 0 | AJ125: 0 | AK125: 0 | AL125: 0 | AM125: 0 | AN125: 0 | AO125: 0 | AP125: 0 | AQ125: 0 | AR125: 0 | AS125: 0 | AT125: 0 | AU125: 0 | AV125: 0 | AW125: 0 | AX125: 0 | AY125: 0 | AZ125: 0 | BA125: 0 | BB125: 0
E126: Total Interconnector outages during active Floor period | G126: MWh | P126: 0 | Q126: 0 | R126: 0 | S126: 0 | T126: 0 | U126: 0 | V126: 0 | W126: 0 | X126: 0 | Y126: 0 | Z126: 0 | AA126: 0 | AB126: 0 | AC126: 0 | AD126: 0 | AE126: 0 | AF126: 0 | AG126: 0 | AH126: 0 | AI126: 0 | AJ126: 0 | AK126: 0 | AL126: 0 | AM126: 0 | AN126: 0 | AO126: 0 | AP126: 0 | AQ126: 0 | AR126: 0 | AS126: 0 | AT126: 0 | AU126: 0 | AV126: 0 | AW126: 0 | AX126: 0 | AY126: 0 | AZ126: 0 | BA126: 0 | BB126: 0
E127: Allowed outages during active Floor period | G127: MWh | P127: 0 | Q127: 0 | R127: 0 | S127: 0 | T127: 0 | U127: 0 | V127: 0 | W127: 0 | X127: 0 | Y127: 0 | Z127: 0 | AA127: 0 | AB127: 0 | AC127: 0 | AD127: 0 | AE127: 0 | AF127: 0 | AG127: 0 | AH127: 0 | AI127: 0 | AJ127: 0 | AK127: 0 | AL127: 0 | AM127: 0 | AN127: 0 | AO127: 0 | AP127: 0 | AQ127: 0 | AR127: 0 | AS127: 0 | AT127: 0 | AU127: 0 | AV127: 0 | AW127: 0 | AX127: 0 | AY127: 0 | AZ127: 0 | BA127: 0 | BB127: 0
E128: Total interconnector outages less allowed outages during active Floor period | G128: MWh | H128: IOt | P128: =P126-P127 -> 0 | Q128: 0 | R128: 0 | S128: 0 | T128: 0 | U128: 0 | V128: 0 | W128: 0 | X128: 0 | Y128: 0 | Z128: 0 | AA128: 0 | AB128: 0 | AC128: 0 | AD128: 0 | AE128: 0 | AF128: 0 | AG128: 0 | AH128: 0 | AI128: 0 | AJ128: 0 | AK128: 0 | AL128: 0 | AM128: 0 | AN128: =AN126-AN127 -> 0 | AO128: 0 | AP128: 0 | AQ128: 0 | AR128: 0 | AS128: 0 | AT128: 0 | AU128: 0 | AV128: 0 | AW128: 0 | AX128: 0 | AY128: 0 | AZ128: 0 | BA128: 0 | BB128: 0
E129: Outages associated with exceptional events | G129: MWh | P129: 0 | Q129: 0 | R129: 0 | S129: 0 | T129: 0 | U129: 0 | V129: 0 | W129: 0 | X129: 0 | Y129: 0 | Z129: 0 | AA129: 0 | AB129: 0 | AC129: 0 | AD129: 0 | AE129: 0 | AF129: 0 | AG129: 0 | AH129: 0 | AI129: 0 | AJ129: 0 | AK129: 0 | AL129: 0 | AM129: 0 | AN129: 0 | AO129: 0 | AP129: 0 | AQ129: 0 | AR129: 0 | AS129: 0 | AT129: 0 | AU129: 0 | AV129: 0 | AW129: 0 | AX129: 0 | AY129: 0 | AZ129: 0 | BA129: 0 | BB129: 0
E131: Floor availability incentive target | G131: % | I131: 0.8
C133: Inflation & exchange rate
E135: Base year RPI inflation index value (CHAW) | G135: Jan 1987 = 100 | H135: UK RPI index 2013/14 | I135: =I46 -> 251.7333333
E136: Base year Belgium CPI inflation index value | G136: 2004 = 100 | H136: Belgium CPI index 2013/14 | I136: =I47 -> 122.7016667
E137: Base year average exchange rate (XUMAERS) | G137: GBP / EUR | H137: GBP2013/14 / EUR2013/14 | I137: =I48 -> 1.186008333
E139: 12 month average UK RPI inflation index value (CHAW) | G139: Jan 1987 = 100 | H139: UK RPI index t | O139: 281.5833333 | P139: 289.2995228 | Q139: 297.9785085 | R139: 306.9178638 | S139: 316.1253997 | T139: 325.6091617 | U139: 335.3774365 | V139: 345.4387596 | W139: 355.8019224 | X139: 366.4759801 | Y139: 377.4702595 | Z139: 388.7943673 | AA139: 400.4581983 | AB139: 412.4719442 | AC139: 424.8461026 | AD139: 437.5914856 | AE139: 450.7192302 | AF139: 464.2408071 | AG139: 478.1680313 | AH139: 492.5130723 | AI139: 507.2884644 | AJ139: 522.5071184 | AK139: 538.1823319 | AL139: 554.3278019 | AM139: 570.9576359 | AN139: 588.086365 | AO139: 605.728956 | AP139: 623.9008247 | AQ139: 642.6178494 | AR139: 661.8963849 | AS139: 681.7532764 | AT139: 702.2058747 | AU139: 723.272051 | AV139: 744.9702125 | AW139: 767.3193189 | AX139: 790.3388984 | AY139: 814.0490654 | AZ139: 838.4705373 | BA139: 863.6246535 | BB139: 889.5333931
E140: 12 month average Belgian CPI inflation index value | G140: 2004 = 100 | H140: Belgium CPI index t | O140: 131.2608333 | P140: 133.8129199 | Q140: 136.4891783 | R140: 139.2189618 | S140: 142.0033411 | T140: 144.8434079 | U140: 147.740276 | V140: 150.6950816 | W140: 153.7089832 | X140: 156.7831629 | Y140: 159.9188261 | Z140: 163.1172026 | AA140: 166.3795467 | AB140: 169.7071376 | AC140: 173.1012804 | AD140: 176.563306 | AE140: 180.0945721 | AF140: 183.6964635 | AG140: 187.3703928 | AH140: 191.1178007 | AI140: 194.9401567 | AJ140: 198.8389598 | AK140: 202.815739 | AL140: 206.8720538 | AM140: 211.0094949 | AN140: 215.2296848 | AO140: 219.5342785 | AP140: 223.924964 | AQ140: 228.4034633 | AR140: 232.9715326 | AS140: 237.6309632 | AT140: 242.3835825 | AU140: 247.2312542 | AV140: 252.1758792 | AW140: 257.2193968 | AX140: 262.3637848 | AY140: 267.6110605 | AZ140: 272.9632817 | BA140: 278.4225473 | BB140: 283.9909982
E142: Average exchange rate (XUMAERS) | G142: GBP / EUR | H142: GBPt/EURt | O142: 1.130441667 | P142: 1.1407 | Q142: 1.1118 | R142: 1.1118 | S142: 1.1118 | T142: 1.1118 | U142: 1.1118 | V142: 1.1118 | W142: 1.1118 | X142: 1.1118 | Y142: 1.1118 | Z142: 1.1118 | AA142: 1.1118 | AB142: 1.1118 | AC142: 1.1118 | AD142: 1.1118 | AE142: 1.1118 | AF142: 1.1118 | AG142: 1.1118 | AH142: 1.1118 | AI142: 1.1118 | AJ142: 1.1118 | AK142: 1.1118 | AL142: 1.1118 | AM142: 1.1118 | AN142: 1.1118 | AO142: 1.1118 | AP142: 1.1118 | AQ142: 1.1118 | AR142: 1.1118 | AS142: 1.1118 | AT142: 1.1118 | AU142: 1.1118 | AV142: 1.1118 | AW142: 1.1118 | AX142: 1.1118 | AY142: 1.1118 | AZ142: 1.1118 | BA142: 1.1118 | BB142: 1.1118
E144: Indexation Factor | H144: PPPIt | O144: 1.130441667 | P144: 1.1407 | Q144: 1.1118 | R144: 1.1118 | S144: 1.1118 | T144: 1.1118 | U144: 1.1118 | V144: 1.1118 | W144: 1.1118 | X144: 1.1118 | Y144: 1.1118 | Z144: 1.1118 | AA144: 1.1118 | AB144: 1.1118 | AC144: 1.1118 | AD144: 1.1118 | AE144: 1.1118 | AF144: 1.1118 | AG144: 1.1118 | AH144: 1.1118 | AI144: 1.1118 | AJ144: 1.1118 | AK144: 1.1118 | AL144: 1.1118 | AM144: 1.1118 | AN144: 1.1118 | AO144: 1.1118 | AP144: 1.1118 | AQ144: 1.1118 | AR144: =IF($I$77=100%,AR139/$I$135,($I$77*(AR139/$I$135)+(1-$I$77)*(AR140/$I$136)/(AR142/$I$137))) -> 2.327383874 | AS144: 2.387078328 | AT144: 2.448361075 | AU144: 2.511275712 | AV144: 2.575867064 | AW144: 2.642181218 | AX144: 2.71026556 | AY144: 2.78016881 | AZ144: 2.851941063 | BA144: 2.925633828 | BB144: 3.001300066
C146: PCA adjustment
E148: PCA/PFA adjustment - Ofgem start date | G148: date | I148: 2019-01-31
E149: Later of PCA/PFA start date and Regime start date | G149: date | I149: =MAX(I148,I55) -> 2019-01-31
E150: Later of PCA/PFA start date and Floor start date | G150: date | I150: =MAX(I148,I67) -> 2019-01-31
E151: Apply PCA adjustment factor? | G151: switch | I151: Yes
E152: PCA adjustment factor | G152: flag | O152: =IF(AND($I149<=O$4,$I149>N4),(O$4-$I149+1)/365.25,IF($I149>O$4,0,O$64)) -> 0 | P152: 0.9171800137 | Q152: 1 | R152: 1 | S152: 1 | T152: 1 | U152: 1 | V152: 1 | W152: 1 | X152: 1 | Y152: 1 | Z152: 1 | AA152: 1 | AB152: 1 | AC152: 1 | AD152: 1 | AE152: 1 | AF152: 1 | AG152: 1 | AH152: 1 | AI152: 1 | AJ152: 1 | AK152: 1 | AL152: 1 | AM152: 1 | AN152: 1.082819986 | AO152: 0 | AP152: 0 | AQ152: 0 | AR152: 0 | AS152: 0 | AT152: 0 | AU152: 0 | AV152: 0 | AW152: 0 | AX152: 0 | AY152: 0 | AZ152: 0 | BA152: 0 | BB152: 0
E153: PFA adjustment factor | G153: flag | O153: =IF(AND($I150<=O$4,$I150>N$4),(O$4-$I150+1)/365.25,IF($I150>O$4,0,O$72)) -> 0 | P153: 0.9171800137 | Q153: 1 | R153: 1 | S153: 1 | T153: 1 | U153: 1 | V153: 1 | W153: 1 | X153: 1 | Y153: 1 | Z153: 1 | AA153: 1 | AB153: 1 | AC153: 1 | AD153: 1 | AE153: 1 | AF153: 1 | AG153: 1 | AH153: 1 | AI153: 1 | AJ153: 1 | AK153: 1 | AL153: 1 | AM153: 1 | AN153: 1.082819986 | AO153: 0 | AP153: 0 | AQ153: 0 | AR153: 0 | AS153: 0 | AT153: 0 | AU153: 0 | AV153: 0 | AW153: 0 | AX153: 0 | AY153: 0 | AZ153: 0 | BA153: 0 | BB153: 0
C155: ORA adjustment
E157: Apply ORA adjustment factor? | G157: flag | I157: Yes
E159: ORA start date | G159: date | I159: 2030-01-01
E160: ORA Cap effective flag | G160: flag | O160: =IF(AND($I159<=O$4,$I159>N$4),(O$4-$I159+1)/365.25,IF($I159>O$4,0,O$64)) -> 0 | P160: 0 | Q160: 0 | R160: 0 | S160: 0 | T160: 0 | U160: 0 | V160: 0 | W160: 0 | X160: 0 | Y160: 0 | Z160: 0 | AA160: 0.9993155373 | AB160: 1 | AC160: 1 | AD160: 1 | AE160: 1 | AF160: 1 | AG160: 1 | AH160: 1 | AI160: 1 | AJ160: 1 | AK160: 1 | AL160: 1 | AM160: 1 | AN160: 1.082819986 | AO160: 0 | AP160: 0 | AQ160: 0 | AR160: 0 | AS160: 0 | AT160: 0 | AU160: 0 | AV160: 0 | AW160: 0 | AX160: 0 | AY160: 0 | AZ160: 0 | BA160: 0 | BB160: 0
E161: ORA Floor effective flag | G161: flag | O161: =IF(AND($I159<=O$4,$I159>N$4),(O$4-$I159+1)/365.25,IF($I159>O$4,0,O$72)) -> 0 | P161: 0 | Q161: 0 | R161: 0 | S161: 0 | T161: 0 | U161: 0 | V161: 0 | W161: 0 | X161: 0 | Y161: 0 | Z161: 0 | AA161: 0.9993155373 | AB161: 1 | AC161: 1 | AD161: 1 | AE161: 1 | AF161: 1 | AG161: 1 | AH161: 1 | AI161: 1 | AJ161: 1 | AK161: 1 | AL161: 1 | AM161: 1 | AN161: 1.082819986 | AO161: 0 | AP161: 0 | AQ161: 0 | AR161: 0 | AS161: 0 | AT161: 0 | AU161: 0 | AV161: 0 | AW161: 0 | AX161: 0 | AY161: 0 | AZ161: 0 | BA161: 0 | BB161: 0
E163: Revised controllable Opex at date of ORA submission | G163: =$I$11 -> £m 13/14 prices | P163: 13 | Q163: 13 | R163: 13 | S163: 13 | T163: 13 | U163: 13 | V163: 13 | W163: 13 | X163: 13 | Y163: 13 | Z163: 13 | AA163: 13 | AB163: 13 | AC163: 13 | AD163: 13 | AE163: 13 | AF163: 13 | AG163: 13 | AH163: 13 | AI163: 13 | AJ163: 13 | AK163: 13 | AL163: 13 | AM163: 13 | AN163: 13 | AO163: 0 | AP163: 0 | AQ163: 0 | AR163: 0 | AS163: 0 | AT163: 0 | AU163: 0 | AV163: 0 | AW163: 0 | AX163: 0 | AY163: 0 | AZ163: 0 | BA163: 0 | BB163: 0
E165: Amendment to Cap rate | G165: =$I$11 -> £m 13/14 prices | H165: ORAC | I165: ='ORA Adjustment'!I27 -> -1.327795218
E166: Amendment to Floor rate | G166: =$I$11 -> £m 13/14 prices | H166: ORAF | I166: ='ORA Adjustment'!I37 -> -1.383164603
C168: DC adjustments
E170: Apply DC adjustment factor? | G170: flag | I170: Yes
D172: Current DC adjustment
E174: Current DC start date | G174: date | I174: 2041-06-01
E175: Current DC Cap and Floor effective flag | G175: flag | P175: =IF(AND($I174<=P$4,$I174>O$4),(P$4-$I174+1)/365.25,IF($I174>P$4,0,P$64)) -> 0 | Q175: 0 | R175: 0 | S175: 0 | T175: 0 | U175: 0 | V175: 0 | W175: 0 | X175: 0 | Y175: 0 | Z175: 0 | AA175: 0 | AB175: 0 | AC175: 0 | AD175: 0 | AE175: 0 | AF175: 0 | AG175: 0 | AH175: 0 | AI175: 0 | AJ175: 0 | AK175: =IF(AND($I174<=AK$4,$I174>AJ$4),(AK$4-$I174+1)/365.25,IF($I174>AK$4,0,AK$64)) -> 0 | AL175: 0.5859000684 | AM175: 1 | AN175: 1.082819986 | AO175: 0 | AP175: 0 | AQ175: 0 | AR175: 0 | AS175: 0 | AT175: 0 | AU175: 0 | AV175: 0 | AW175: 0 | AX175: 0 | AY175: 0 | AZ175: 0 | BA175: 0 | BB175: 0
E177: Decommissioning Costs (latest view at submission of DCt adjustment) | G177: =$I$11 -> £m 13/14 prices | P177: 0.01 | Q177: 0.01 | R177: 0.01 | S177: 0.01 | T177: 0.01 | U177: 0.01 | V177: 0.01 | W177: 0.01 | X177: 0.01 | Y177: 0.01 | Z177: 0.01 | AA177: 0.01 | AB177: 0.01 | AC177: 0.01 | AD177: 0.01 | AE177: 0.01 | AF177: 0.01 | AG177: 0.01 | AH177: 0.01 | AI177: 0.01 | AJ177: 0.01 | AK177: 0.01 | AL177: 0.01 | AM177: 0.01 | AN177: 15 | AO177: 0 | AP177: 0 | AQ177: 0 | AR177: 0 | AS177: 0 | AT177: 0 | AU177: 0 | AV177: 0 | AW177: 0 | AX177: 0 | AY177: 0 | AZ177: 0 | BA177: 0 | BB177: 0
E179: Amendment to Cap rate | G179: =$I$11 -> £m 13/14 prices | H179: DCCt | I179: ='DC Adjustment'!I67 -> -0.4926412061
E180: Amendment to Floor rate | G180: £m 13/14 prices | H180: DCFt | I180: ='DC Adjustment'!I80 -> -0.3890118224
D182: Previous DC adjustments
E184: First DCt adjustment
E185: Start date | G185: date | I185: 2038-06-01
E186: Cap value | G186: =$I$11 -> £m 13/14 prices | I186: 1.269872319
E187: Floor value | G187: £m 13/14 prices | I187: 1.474327566
E189: Second DCt adjustment
E190: Start date | G190: date
E191: Cap value | G191: =$I$11 -> £m 13/14 prices
E192: Floor value | G192: £m 13/14 prices
E194: Third DCt adjustment
E195: Start date | G195: date
E196: Cap value | G196: =$I$11 -> £m 13/14 prices
E197: Floor value | G197: £m 13/14 prices
E199: Fourth DCt adjustment
E200: Start date | G200: date
E201: Cap value | G201: =$I$11 -> £m 13/14 prices
E202: Floor value | G202: £m 13/14 prices
E204: Latest start date | G204: date | I204: =MAX(I200,I195,I190,I185) -> 2038-06-01
E206: DCt adjustment flags - Cap and Floor | H206: start | I206: end
E207: First DCCt adjustment | G207: flag | H207: =IF(I185="","",I185) -> 2038-06-01 | I207: =IF(H207="","",IF(H208="",$I$174-1,H208-1)) -> 2041-05-31 | P207: =IF(OR($H207>P$4,$I207<=O$4),0,IF(AND($H207<=O$4,$I207>=P$4,Q$62=1),($I207-O$4+1)/365.25,IF(AND($H207<=O$4,$I207>=P$4),1,IF(AND($H207<=O$4,$I207<P$4,P$62=0),($I207-O$4)/365.25,IF(AND($H207<=P$4,$I207>=P$4,Q$62=1),($I207-$H207+1)/365.25,IF(AND($H207<=P$4,$I207>=P$4),(P$4-$H207+1)/365.25,IF(AND($H207<=P$4,$I207<P$4,P$62=0),($I207-$H207+1)/365.25,0))))))) -> 0 | Q207: =IF(OR($H207>Q$4,$I207<=P$4),0,IF(AND($H207<=P$4,$I207>=Q$4,R$62=1),($I207-P$4+1)/365.25,IF(AND($H207<=P$4,$I207>=Q$4),1,IF(AND($H207<=P$4,$I207<Q$4,Q$62=0),($I207-P$4)/365.25,IF(AND($H207<=Q$4,$I207>=Q$4,R$62=1),($I207-$H207+1)/365.25,IF(AND($H207<=Q$4,$I207>=Q$4),(Q$4-$H207+1)/365.25,IF(AND($H207<=Q$4,$I207<Q$4,Q$62=0),($I207-$H207+1)/365.25,0))))))) -> 0 | R207: 0 | S207: 0 | T207: 0 | U207: 0 | V207: 0 | W207: 0 | X207: 0 | Y207: 0 | Z207: 0 | AA207: 0 | AB207: 0 | AC207: 0 | AD207: 0 | AE207: 0 | AF207: 0 | AG207: 0 | AH207: 0 | AI207: 0.5859000684 | AJ207: 1 | AK207: 1 | AL207: 0.4134154689 | AM207: 0 | AN207: 0 | AO207: 0 | AP207: 0 | AQ207: 0 | AR207: 0 | AS207: 0 | AT207: 0 | AU207: 0 | AV207: 0 | AW207: 0 | AX207: 0 | AY207: 0 | AZ207: 0 | BA207: 0 | BB207: 0
E208: Second DCCt adjustment | G208: flag | H208: =IF(I190="","",I190) ->  | I208: =IF(H208="","",IF(H209="",$I$174-1,H209-1)) ->  | P208: =IF(OR($H208>P$4,$I208<=O$4),0,IF(AND($H208<=O$4,$I208>=P$4,Q$62=1),($I208-O$4+1)/365.25,IF(AND($H208<=O$4,$I208>=P$4),1,IF(AND($H208<=O$4,$I208<P$4,P$62=0),($I208-O$4)/365.25,IF(AND($H208<=P$4,$I208>=P$4,Q$62=1),($I208-$H208+1)/365.25,IF(AND($H208<=P$4,$I208>=P$4),(P$4-$H208+1)/365.25,IF(AND($H208<=P$4,$I208<P$4,P$62=0),($I208-$H208+1)/365.25,0))))))) -> 0 | Q208: =IF(OR($H208>Q$4,$I208<=P$4),0,IF(AND($H208<=P$4,$I208>=Q$4,R$62=1),($I208-P$4+1)/365.25,IF(AND($H208<=P$4,$I208>=Q$4),1,IF(AND($H208<=P$4,$I208<Q$4,Q$62=0),($I208-P$4)/365.25,IF(AND($H208<=Q$4,$I208>=Q$4,R$62=1),($I208-$H208+1)/365.25,IF(AND($H208<=Q$4,$I208>=Q$4),(Q$4-$H208+1)/365.25,IF(AND($H208<=Q$4,$I208<Q$4,Q$62=0),($I208-$H208+1)/365.25,0))))))) -> 0 | R208: 0 | S208: 0 | T208: 0 | U208: 0 | V208: 0 | W208: 0 | X208: 0 | Y208: 0 | Z208: 0 | AA208: 0 | AB208: 0 | AC208: 0 | AD208: 0 | AE208: 0 | AF208: 0 | AG208: 0 | AH208: 0 | AI208: 0 | AJ208: 0 | AK208: 0 | AL208: 0 | AM208: 0 | AN208: 0 | AO208: 0 | AP208: 0 | AQ208: 0 | AR208: 0 | AS208: 0 | AT208: 0 | AU208: 0 | AV208: 0 | AW208: 0 | AX208: 0 | AY208: 0 | AZ208: 0 | BA208: 0 | BB208: 0
E209: Third DCCt adjustment | G209: flag | H209: =IF(I195="","",I195) ->  | I209: =IF(H209="","",IF(H210="",$I$174-1,H210-1)) ->  | P209: =IF(OR($H209>P$4,$I209<=O$4),0,IF(AND($H209<=O$4,$I209>=P$4,Q$62=1),($I209-O$4+1)/365.25,IF(AND($H209<=O$4,$I209>=P$4),1,IF(AND($H209<=O$4,$I209<P$4,P$62=0),($I209-O$4)/365.25,IF(AND($H209<=P$4,$I209>=P$4,Q$62=1),($I209-$H209+1)/365.25,IF(AND($H209<=P$4,$I209>=P$4),(P$4-$H209+1)/365.25,IF(AND($H209<=P$4,$I209<P$4,P$62=0),($I209-$H209+1)/365.25,0))))))) -> 0 | Q209: =IF(OR($H209>Q$4,$I209<=P$4),0,IF(AND($H209<=P$4,$I209>=Q$4,R$62=1),($I209-P$4+1)/365.25,IF(AND($H209<=P$4,$I209>=Q$4),1,IF(AND($H209<=P$4,$I209<Q$4,Q$62=0),($I209-P$4)/365.25,IF(AND($H209<=Q$4,$I209>=Q$4,R$62=1),($I209-$H209+1)/365.25,IF(AND($H209<=Q$4,$I209>=Q$4),(Q$4-$H209+1)/365.25,IF(AND($H209<=Q$4,$I209<Q$4,Q$62=0),($I209-$H209+1)/365.25,0))))))) -> 0 | R209: 0 | S209: 0 | T209: 0 | U209: 0 | V209: 0 | W209: 0 | X209: 0 | Y209: 0 | Z209: 0 | AA209: 0 | AB209: 0 | AC209: 0 | AD209: 0 | AE209: 0 | AF209: 0 | AG209: 0 | AH209: 0 | AI209: 0 | AJ209: 0 | AK209: 0 | AL209: 0 | AM209: 0 | AN209: 0 | AO209: 0 | AP209: 0 | AQ209: 0 | AR209: 0 | AS209: 0 | AT209: 0 | AU209: 0 | AV209: 0 | AW209: 0 | AX209: 0 | AY209: 0 | AZ209: 0 | BA209: 0 | BB209: 0
E210: Fourth DCCt adjustment | G210: flag | H210: =IF(I200="","",I200) ->  | I210: =IF(H210="","",$I$174-1) ->  | P210: =IF(OR($H210>P$4,$I210<=O$4),0,IF(AND($H210<=O$4,$I210>=P$4,Q$62=1),($I210-O$4+1)/365.25,IF(AND($H210<=O$4,$I210>=P$4),1,IF(AND($H210<=O$4,$I210<P$4,P$62=0),($I210-O$4)/365.25,IF(AND($H210<=P$4,$I210>=P$4,Q$62=1),($I210-$H210+1)/365.25,IF(AND($H210<=P$4,$I210>=P$4),(P$4-$H210+1)/365.25,IF(AND($H210<=P$4,$I210<P$4,P$62=0),($I210-$H210+1)/365.25,0))))))) -> 0 | Q210: =IF(OR($H210>Q$4,$I210<=P$4),0,IF(AND($H210<=P$4,$I210>=Q$4,R$62=1),($I210-P$4+1)/365.25,IF(AND($H210<=P$4,$I210>=Q$4),1,IF(AND($H210<=P$4,$I210<Q$4,Q$62=0),($I210-P$4)/365.25,IF(AND($H210<=Q$4,$I210>=Q$4,R$62=1),($I210-$H210+1)/365.25,IF(AND($H210<=Q$4,$I210>=Q$4),(Q$4-$H210+1)/365.25,IF(AND($H210<=Q$4,$I210<Q$4,Q$62=0),($I210-$H210+1)/365.25,0))))))) -> 0 | R210: 0 | S210: 0 | T210: 0 | U210: 0 | V210: 0 | W210: 0 | X210: 0 | Y210: 0 | Z210: 0 | AA210: 0 | AB210: 0 | AC210: 0 | AD210: 0 | AE210: 0 | AF210: 0 | AG210: 0 | AH210: 0 | AI210: 0 | AJ210: 0 | AK210: 0 | AL210: 0 | AM210: 0 | AN210: 0 | AO210: 0 | AP210: 0 | AQ210: 0 | AR210: 0 | AS210: 0 | AT210: 0 | AU210: 0 | AV210: 0 | AW210: 0 | AX210: 0 | AY210: 0 | AZ210: 0 | BA210: 0 | BB210: 0
B212: End of sheet

Sheet Data Sources
A1: Data Sources | H1: Licence | I1: Reference row in
E2: Parameter | G2: Units | H2: Terminology | I2: Inputs sheet | K2: Source | L2: Link
B4: Items transferred from CFFM1
C6: Base year and currency
E8: =Inputs!E11 -> Base year price term | I8: =ROW(Inputs!E11) -> 11
E9: =Inputs!E13 -> Currency of revenue and cost inputs | I9: =ROW(Inputs!E13) -> 13
C11: Model operation
E13: =Inputs!E17 -> Regime start date | G13: =Inputs!G17 -> date | I13: =ROW(Inputs!I17) -> 17
E14: =Inputs!E18 -> Start of financial year of regime start date | G14: =Inputs!G18 -> date | I14: =ROW(Inputs!I18) -> 18
E15: =Inputs!E21 -> Number of operational years | G15: =Inputs!G21 -> full years | I15: =ROW(Inputs!I21) -> 21
C17: Cap and Floor levels
E19: =Inputs!E26 -> Preliminary Cap including tax | G19: =Inputs!G26 -> £m 13/14 prices | H19: =Inputs!H26 -> PCL | I19: =ROW(Inputs!E26) -> 26
E20: =Inputs!E27 -> Preliminary Floor including tax | G20: =Inputs!G27 -> £m 13/14 prices | H20: =Inputs!H27 -> PFL | I20: =ROW(Inputs!E27) -> 27
E21: =Inputs!E29 -> Cap PCA adjustment | G21: =Inputs!G29 -> £m 13/14 prices | H21: =Inputs!H29 -> PCAC | I21: =ROW(Inputs!E29) -> 29
E22: =Inputs!E30 -> Floor PCA adjustment | G22: =Inputs!G30 -> £m 13/14 prices | H22: =Inputs!H30 -> PCAF | I22: =ROW(Inputs!E30) -> 30
C24: Baseline cost inputs during operations
E26: =Inputs!E34 -> Decommissioning (baseline) | G26: =Inputs!G34 -> £m 13/14 prices | I26: =ROW(Inputs!E34) -> 34
E27: =Inputs!E35 -> Controllable Opex (baseline) | G27: =Inputs!G35 -> £m 13/14 prices | I27: =ROW(Inputs!E35) -> 35
E28: =Inputs!E36 -> Non-controllable Opex (baseline) | G28: =Inputs!G36 -> £m 13/14 prices | H28: =Inputs!H36 -> BNCOA | I28: =ROW(Inputs!E36) -> 36
C30: Financial returns
E32: =Inputs!E40 -> Cap return rate | G32: =Inputs!G40 -> real annual % | I32: =ROW(Inputs!E40) -> 40
E33: =Inputs!E41 -> Floor return rate | G33: =Inputs!G41 -> real annual % | I33: =ROW(Inputs!E41) -> 41
E34: =Inputs!E42 -> Operational discount rate | G34: =Inputs!G42 -> real annual % | H34: =Inputs!H42 -> ODR | I34: =ROW(Inputs!E42) -> 42
C36: Base year indices
E38: =Inputs!E46 -> Base year RPI inflation index value (CHAW) | G38: =Inputs!G46 -> Jan 1987 = 100 | H38: =Inputs!H46 -> UK RPI index 2013/14 | I38: =ROW(Inputs!E46) -> 46
E39: =Inputs!E47 -> Base year Belgium CPI inflation index value | G39: =Inputs!G47 -> 2004 = 100 | H39: =Inputs!H47 -> Belgium CPI index 2013/14 | I39: =ROW(Inputs!E47) -> 47
E40: =Inputs!E48 -> Base year average exchange rate (XUMAERS) | G40: =Inputs!G48 -> GBP / EUR | H40: =Inputs!H48 -> GBP2013/14 / EUR2013/14 | I40: =ROW(Inputs!E48) -> 48
B42: Regime timings and design
C44: Model operation
E46: =Inputs!E67 -> Floor start date | G46: =Inputs!G67 -> date | I46: =ROW(Inputs!E67) -> 67
E47: =Inputs!E75 -> Assessment period length | G47: =Inputs!G75 -> full years | I47: =ROW(Inputs!E75) -> 75
E48: =Inputs!E77 -> GB indexed portion of interconnector | G48: =Inputs!G77 -> % | I48: =ROW(Inputs!E77) -> 77
B50: Variables to be updated
C52: Cost items to be updated up to and beyond PCA stage (actual)
E54: =Inputs!E83 -> Non-controllable Opex (actual) | G54: =Inputs!G83 -> €m nominal prices | I54: =ROW(Inputs!E83) -> 83
E55: =Inputs!E84 -> Non-controllable Opex adjustment following NRA review (actual) | G55: =Inputs!G84 -> €m nominal prices | I55: =ROW(Inputs!E84) -> 84
C57: Revenue items to be updated (actual)
E59: =Inputs!E88 -> Capacity allocation revenue | G59: =Inputs!G88 -> €m nominal prices | H59: =Inputs!H88 -> CARt | I59: =ROW(Inputs!E88) -> 88
E60: =Inputs!E89 -> Ancillary services revenue (GB) | G60: =Inputs!G89 -> €m nominal prices | H60: =Inputs!H89 -> ASRGBt | I60: =ROW(Inputs!E89) -> 89
E61: =Inputs!E90 -> Ancillary services revenue (Belgium) | G61: =Inputs!G90 -> €m nominal prices | H61: =Inputs!H90 -> ASRBt | I61: =ROW(Inputs!E90) -> 90
E62: =Inputs!E91 -> Capacity market revenue | G62: =Inputs!G91 -> €m nominal prices | H62: =Inputs!H91 -> CMRt | I62: =ROW(Inputs!E91) -> 91
E63: =Inputs!E92 -> Receipts from insurance | G63: =Inputs!G92 -> €m nominal prices | H63: =Inputs!H92 -> RIt | I63: =ROW(Inputs!E92) -> 92
E64: =Inputs!E93 -> Constraint payments (GB) | G64: =Inputs!G93 -> €m nominal prices | H64: =Inputs!H93 -> CPGBt | I64: =ROW(Inputs!E93) -> 93
E65: =Inputs!E94 -> Constraint payments (Belgium) | G65: =Inputs!G94 -> €m nominal prices | H65: =Inputs!H94 -> CPBt | I65: =ROW(Inputs!E94) -> 94
E66: =Inputs!E95 -> Additional revenue (net of relevant costs) | G66: =Inputs!G95 -> €m nominal prices | H66: =Inputs!H95 -> ADRt | I66: =ROW(Inputs!E95) -> 95
E67: =Inputs!E98 -> Error accounting costs | G67: =Inputs!G98 -> €m nominal prices | H67: =Inputs!H98 -> EACt | I67: =ROW(Inputs!E98) -> 98
E68: =Inputs!E99 -> Firmness costs | G68: =Inputs!G99 -> €m nominal prices | H68: =Inputs!H99 -> FCt | I68: =ROW(Inputs!E99) -> 99
E69: =Inputs!E100 -> Trip contract costs | G69: =Inputs!G100 -> €m nominal prices | H69: =Inputs!H100 -> TCCt | I69: =ROW(Inputs!E100) -> 100
E70: =Inputs!E103 -> Income adjusting event | G70: =Inputs!G103 -> €m nominal prices | H70: =Inputs!H103 -> IATt | I70: =ROW(Inputs!E103) -> 103
E71: =Inputs!E109 -> Within-period adjustment (assessed) (negative value: payment to consumers; positive value: payment from consumers) | G71: =Inputs!G109 -> £m nominal prices | H71: =Inputs!H109 -> WPAt | I71: =ROW(Inputs!E109) -> 109
B73: Adjustment to Cap and Floor levels
C75: Availability incentive
E77: =Inputs!E115 -> Cap availability incentive ratio | G77: =Inputs!G115 -> ratio | I77: =ROW(Inputs!E115) -> 115
E78: =Inputs!E116 -> Cap availability incentive target | G78: =Inputs!G116 -> % | I78: =ROW(Inputs!E116) -> 116
E79: =Inputs!E117 -> Cap availability incentive upper limit | G79: =Inputs!G117 -> % | I79: =ROW(Inputs!E117) -> 117
E80: =Inputs!E118 -> Cap availability incentive lower limit | G80: =Inputs!G118 -> % | I80: =ROW(Inputs!E118) -> 118
E81: =Inputs!E120 -> Interconnector rated capacity | G81: =Inputs!G120 -> MW | H81: =Inputs!H120 -> RC | I81: =ROW(Inputs!E120) -> 120
E82: =Inputs!E131 -> Floor availability incentive target | G82: =Inputs!G131 -> % | I82: =ROW(Inputs!E131) -> 131
C84: Inflation & exchange rate
E86: =Inputs!E139 -> 12 month average UK RPI inflation index value (CHAW) | G86: =Inputs!G139 -> Jan 1987 = 100 | H86: =Inputs!H139 -> UK RPI index t | I86: =ROW(Inputs!E139) -> 139
E87: =Inputs!E140 -> 12 month average Belgian CPI inflation index value | G87: =Inputs!G140 -> 2004 = 100 | H87: =Inputs!H140 -> Belgium CPI index t | I87: =ROW(Inputs!E140) -> 140
E88: =Inputs!E142 -> Average exchange rate (XUMAERS) | G88: =Inputs!G142 -> GBP / EUR | H88: =Inputs!H142 -> GBPt/EURt | I88: =ROW(Inputs!E142) -> 142
C90: PCA adjustment
E92: =Inputs!E148 -> PCA/PFA adjustment - Ofgem start date | G92: =Inputs!G148 -> date | I92: =ROW(Inputs!E148) -> 148
E93: =Inputs!E151 -> Apply PCA adjustment factor? | G93: =Inputs!G151 -> switch | I93: =ROW(Inputs!E151) -> 151
C95: ORA adjustment
E97: =Inputs!E157 -> Apply ORA adjustment factor? | G97: =Inputs!G157 -> flag | I97: =ROW(Inputs!E157) -> 157
E98: =Inputs!E159 -> ORA start date | G98: =Inputs!G159 -> date | I98: =ROW(Inputs!I159) -> 159
E99: =Inputs!E163 -> Revised controllable Opex at date of ORA submission | G99: =Inputs!G163 -> £m 13/14 prices | I99: =ROW(Inputs!E163) -> 163
C101: DC adjustments
E103: =Inputs!E170 -> Apply DC adjustment factor? | G103: =Inputs!G170 -> flag | I103: =ROW(Inputs!E170) -> 170
D105: Current DC adjustment
E107: =Inputs!E174 -> Current DC start date | G107: =Inputs!G174 -> date | I107: =ROW(Inputs!E174) -> 174
E108: =Inputs!E177 -> Decommissioning Costs (latest view at submission of DCt adjustment) | G108: =Inputs!G177 -> £m 13/14 prices | I108: =ROW(Inputs!E177) -> 177
D110: Previous DC adjustments
E112: =Inputs!E184 -> First DCt adjustment
E113: =Inputs!E185 -> Start date | G113: =Inputs!G185 -> date | I113: =ROW(Inputs!E185) -> 185
E114: =Inputs!E186 -> Cap value | G114: =Inputs!G186 -> £m 13/14 prices | I114: =ROW(Inputs!E186) -> 186
E115: =Inputs!E187 -> Floor value | G115: =Inputs!G187 -> £m 13/14 prices | I115: =ROW(Inputs!E187) -> 187
E116: =Inputs!E189 -> Second DCt adjustment
E117: =Inputs!E190 -> Start date | G117: =Inputs!G190 -> date | I117: =ROW(Inputs!E190) -> 190
E118: =Inputs!E191 -> Cap value | G118: =Inputs!G191 -> £m 13/14 prices | I118: =ROW(Inputs!E191) -> 191
E119: =Inputs!E192 -> Floor value | G119: =Inputs!G192 -> £m 13/14 prices | I119: =ROW(Inputs!E192) -> 192
E120: =Inputs!E194 -> Third DCt adjustment
E121: =Inputs!E195 -> Start date | G121: =Inputs!G195 -> date | I121: =ROW(Inputs!E195) -> 195
E122: =Inputs!E196 -> Cap value | G122: =Inputs!G196 -> £m 13/14 prices | I122: =ROW(Inputs!E196) -> 196
E123: =Inputs!E197 -> Floor value | G123: =Inputs!G197 -> £m 13/14 prices | I123: =ROW(Inputs!E197) -> 197
E124: =Inputs!E199 -> Fourth DCt adjustment
E125: =Inputs!E200 -> Start date | G125: =Inputs!G200 -> date | I125: =ROW(Inputs!E200) -> 200
E126: =Inputs!E201 -> Cap value | G126: =Inputs!G201 -> £m 13/14 prices | I126: =ROW(Inputs!E201) -> 201
E127: =Inputs!E202 -> Floor value | G127: =Inputs!G202 -> £m 13/14 prices | I127: =ROW(Inputs!E202) -> 202
B129: End of sheet | K129: `

Sheet Costs
A1: Costs | H1: Licence
E2: Parameter | G2: Units | H2: Terminology | I2: Constant | O2: Annual values
E3: Year commencing | O3: =Inputs!O3 -> 2018-01-01 | P3: =Inputs!P3 -> 2019-01-01 | Q3: =Inputs!Q3 -> 2020-01-01 | R3: =Inputs!R3 -> 2021-01-01 | S3: =Inputs!S3 -> 2022-01-01 | T3: =Inputs!T3 -> 2023-01-01 | U3: =Inputs!U3 -> 2024-01-01 | V3: =Inputs!V3 -> 2025-01-01 | W3: =Inputs!W3 -> 2026-01-01 | X3: =Inputs!X3 -> 2027-01-01 | Y3: =Inputs!Y3 -> 2028-01-01 | Z3: =Inputs!Z3 -> 2029-01-01 | AA3: =Inputs!AA3 -> 2030-01-01 | AB3: =Inputs!AB3 -> 2031-01-01 | AC3: =Inputs!AC3 -> 2032-01-01 | AD3: =Inputs!AD3 -> 2033-01-01 | AE3: =Inputs!AE3 -> 2034-01-01 | AF3: =Inputs!AF3 -> 2035-01-01 | AG3: =Inputs!AG3 -> 2036-01-01 | AH3: =Inputs!AH3 -> 2037-01-01 | AI3: =Inputs!AI3 -> 2038-01-01 | AJ3: =Inputs!AJ3 -> 2039-01-01 | AK3: =Inputs!AK3 -> 2040-01-01 | AL3: =Inputs!AL3 -> 2041-01-01 | AM3: =Inputs!AM3 -> 2042-01-01 | AN3: =Inputs!AN3 -> 2043-01-01 | AO3: =Inputs!AO3 -> 2044-01-01 | AP3: =Inputs!AP3 -> 2045-01-01 | AQ3: =Inputs!AQ3 -> 2046-01-01 | AR3: =Inputs!AR3 -> 2047-01-01 | AS3: =Inputs!AS3 -> 2048-01-01 | AT3: =Inputs!AT3 -> 2049-01-01 | AU3: =Inputs!AU3 -> 2050-01-01 | AV3: =Inputs!AV3 -> 2051-01-01 | AW3: =Inputs!AW3 -> 2052-01-01 | AX3: =Inputs!AX3 -> 2053-01-01 | AY3: =Inputs!AY3 -> 2054-01-01 | AZ3: =Inputs!AZ3 -> 2055-01-01 | BA3: =Inputs!BA3 -> 2056-01-01 | BB3: =Inputs!BB3 -> 2057-01-01
E4: Year ending | O4: =Inputs!O4 -> 2018-12-31 | P4: =Inputs!P4 -> 2019-12-31 | Q4: =Inputs!Q4 -> 2020-12-31 | R4: =Inputs!R4 -> 2021-12-31 | S4: =Inputs!S4 -> 2022-12-31 | T4: =Inputs!T4 -> 2023-12-31 | U4: =Inputs!U4 -> 2024-12-31 | V4: =Inputs!V4 -> 2025-12-31 | W4: =Inputs!W4 -> 2026-12-31 | X4: =Inputs!X4 -> 2027-12-31 | Y4: =Inputs!Y4 -> 2028-12-31 | Z4: =Inputs!Z4 -> 2029-12-31 | AA4: =Inputs!AA4 -> 2030-12-31 | AB4: =Inputs!AB4 -> 2031-12-31 | AC4: =Inputs!AC4 -> 2032-12-31 | AD4: =Inputs!AD4 -> 2033-12-31 | AE4: =Inputs!AE4 -> 2034-12-31 | AF4: =Inputs!AF4 -> 2035-12-31 | AG4: =Inputs!AG4 -> 2036-12-31 | AH4: =Inputs!AH4 -> 2037-12-31 | AI4: =Inputs!AI4 -> 2038-12-31 | AJ4: =Inputs!AJ4 -> 2039-12-31 | AK4: =Inputs!AK4 -> 2040-12-31 | AL4: =Inputs!AL4 -> 2041-12-31 | AM4: =Inputs!AM4 -> 2042-12-31 | AN4: =Inputs!AN4 -> 2043-12-31 | AO4: =Inputs!AO4 -> 2044-12-31 | AP4: =Inputs!AP4 -> 2045-12-31 | AQ4: =Inputs!AQ4 -> 2046-12-31 | AR4: =Inputs!AR4 -> 2047-12-31 | AS4: =Inputs!AS4 -> 2048-12-31 | AT4: =Inputs!AT4 -> 2049-12-31 | AU4: =Inputs!AU4 -> 2050-12-31 | AV4: =Inputs!AV4 -> 2051-12-31 | AW4: =Inputs!AW4 -> 2052-12-31 | AX4: =Inputs!AX4 -> 2053-12-31 | AY4: =Inputs!AY4 -> 2054-12-31 | AZ4: =Inputs!AZ4 -> 2055-12-31 | BA4: =Inputs!BA4 -> 2056-12-31 | BB4: =Inputs!BB4 -> 2057-12-31
E5: Operational year | O5: =Inputs!O5 -> 0 | P5: =Inputs!P5 -> 1 | Q5: =Inputs!Q5 -> 2 | R5: =Inputs!R5 -> 3 | S5: =Inputs!S5 -> 4 | T5: =Inputs!T5 -> 5 | U5: =Inputs!U5 -> 6 | V5: =Inputs!V5 -> 7 | W5: =Inputs!W5 -> 8 | X5: =Inputs!X5 -> 9 | Y5: =Inputs!Y5 -> 10 | Z5: =Inputs!Z5 -> 11 | AA5: =Inputs!AA5 -> 12 | AB5: =Inputs!AB5 -> 13 | AC5: =Inputs!AC5 -> 14 | AD5: =Inputs!AD5 -> 15 | AE5: =Inputs!AE5 -> 16 | AF5: =Inputs!AF5 -> 17 | AG5: =Inputs!AG5 -> 18 | AH5: =Inputs!AH5 -> 19 | AI5: =Inputs!AI5 -> 20 | AJ5: =Inputs!AJ5 -> 21 | AK5: =Inputs!AK5 -> 22 | AL5: =Inputs!AL5 -> 23 | AM5: =Inputs!AM5 -> 24 | AN5: =Inputs!AN5 -> 25 | AO5: =Inputs!AO5 -> 26 | AP5: =Inputs!AP5 -> 27 | AQ5: =Inputs!AQ5 -> 28 | AR5: =Inputs!AR5 -> 29 | AS5: =Inputs!AS5 -> 30 | AT5: =Inputs!AT5 -> 31 | AU5: =Inputs!AU5 -> 32 | AV5: =Inputs!AV5 -> 33 | AW5: =Inputs!AW5 -> 34 | AX5: =Inputs!AX5 -> 35 | AY5: =Inputs!AY5 -> 36 | AZ5: =Inputs!AZ5 -> 37 | BA5: =Inputs!BA5 -> 38 | BB5: =Inputs!BB5 -> 39
B7: Costs
C9: Baseline costs
E11: =Inputs!E34 -> Decommissioning (baseline) | G11: =Inputs!$I$11 -> £m 13/14 prices | P11: =Inputs!P34 -> 0.0003004123828 | Q11: =Inputs!Q34 -> 0.0006023268275 | R11: =Inputs!R34 -> 0.001522645135 | S11: =Inputs!S34 -> 0.002478395103 | T11: =Inputs!T34 -> 0.003471273212 | U11: =Inputs!U34 -> 0.004503060766 | V11: =Inputs!V34 -> 0.005575628134 | W11: =Inputs!W34 -> 0.006690939203 | X11: =Inputs!X34 -> 0.007851056056 | Y11: =Inputs!Y34 -> 0.009058143879 | Z11: =Inputs!Z34 -> 0.01125683427 | AA11: =Inputs!AA34 -> 0.0135589859 | AB11: =Inputs!AB34 -> 0.01596969671 | AC11: =Inputs!AC34 -> 0.01849431958 | AD11: =Inputs!AD34 -> 0.02113847498 | AE11: =Inputs!AE34 -> 0.02390806446 | AF11: =Inputs!AF34 -> 0.02680928461 | AG11: =Inputs!AG34 -> 0.02984864185 | AH11: =Inputs!AH34 -> 0.03303296795 | AI11: =Inputs!AI34 -> 0.03636943624 | AJ11: =Inputs!AJ34 -> 0.03800590639 | AK11: =Inputs!AK34 -> 0.03972269799 | AL11: =Inputs!AL34 -> 0.0415238271 | AM11: =Inputs!AM34 -> 0.04341351061 | AN11: =Inputs!AN34 -> 11.35738881 | AO11: =Inputs!AO34 -> 0 | AP11: =Inputs!AP34 -> 0 | AQ11: =Inputs!AQ34 -> 0 | AR11: =Inputs!AR34 -> 0 | AS11: =Inputs!AS34 -> 0 | AT11: =Inputs!AT34 -> 0 | AU11: =Inputs!AU34 -> 0 | AV11: =Inputs!AV34 -> 0 | AW11: =Inputs!AW34 -> 0 | AX11: =Inputs!AX34 -> 0 | AY11: =Inputs!AY34 -> 0 | AZ11: =Inputs!AZ34 -> 0 | BA11: =Inputs!BA34 -> 0 | BB11: =Inputs!BB34 -> 0
E12: =Inputs!E35 -> Controllable Opex (baseline) | G12: =Inputs!$I$11 -> £m 13/14 prices | P12: =Inputs!P35 -> 14.49679782 | Q12: =Inputs!Q35 -> 13.65203375 | R12: =Inputs!R35 -> 12.88494287 | S12: =Inputs!S35 -> 12.89662711 | T12: =Inputs!T35 -> 12.90732178 | U12: =Inputs!U35 -> 13.96681878 | V12: =Inputs!V35 -> 13.764977 | W12: =Inputs!W35 -> 13.80892058 | X12: =Inputs!X35 -> 13.86507966 | Y12: =Inputs!Y35 -> 13.89807956 | Z12: =Inputs!Z35 -> 14.22379803 | AA12: =Inputs!AA35 -> 14.02025334 | AB12: =Inputs!AB35 -> 14.06558781 | AC12: =Inputs!AC35 -> 14.12315933 | AD12: =Inputs!AD35 -> 14.15759344 | AE12: =Inputs!AE35 -> 14.48476811 | AF12: =Inputs!AF35 -> 14.28270183 | AG12: =Inputs!AG35 -> 14.32646467 | AH12: =Inputs!AH35 -> 14.38248722 | AI12: =Inputs!AI35 -> 14.41539525 | AJ12: =Inputs!AJ35 -> 14.72062579 | AK12: =Inputs!AK35 -> 14.51707986 | AL12: =Inputs!AL35 -> 14.56322353 | AM12: =Inputs!AM35 -> 14.64687195 | AN12: =Inputs!AN35 -> 14.68220865 | AO12: =Inputs!AO35 -> 0 | AP12: =Inputs!AP35 -> 0 | AQ12: =Inputs!AQ35 -> 0 | AR12: =Inputs!AR35 -> 0 | AS12: =Inputs!AS35 -> 0 | AT12: =Inputs!AT35 -> 0 | AU12: =Inputs!AU35 -> 0 | AV12: =Inputs!AV35 -> 0 | AW12: =Inputs!AW35 -> 0 | AX12: =Inputs!AX35 -> 0 | AY12: =Inputs!AY35 -> 0 | AZ12: =Inputs!AZ35 -> 0 | BA12: =Inputs!BA35 -> 0 | BB12: =Inputs!BB35 -> 0
E13: =Inputs!E36 -> Non-controllable Opex (baseline) | G13: =Inputs!$I$11 -> £m 13/14 prices | H13: BNCOA | P13: =Inputs!P36 -> 1.222279301 | Q13: =Inputs!Q36 -> 1.222279301 | R13: =Inputs!R36 -> 1.222279301 | S13: =Inputs!S36 -> 1.222279301 | T13: =Inputs!T36 -> 1.222279301 | U13: =Inputs!U36 -> 1.222279301 | V13: =Inputs!V36 -> 1.222279301 | W13: =Inputs!W36 -> 1.222279301 | X13: =Inputs!X36 -> 1.222279301 | Y13: =Inputs!Y36 -> 1.222279301 | Z13: =Inputs!Z36 -> 1.222279301 | AA13: =Inputs!AA36 -> 1.222279301 | AB13: =Inputs!AB36 -> 1.222279301 | AC13: =Inputs!AC36 -> 1.222279301 | AD13: =Inputs!AD36 -> 1.222279301 | AE13: =Inputs!AE36 -> 1.222279301 | AF13: =Inputs!AF36 -> 1.222279301 | AG13: =Inputs!AG36 -> 1.222279301 | AH13: =Inputs!AH36 -> 1.222279301 | AI13: =Inputs!AI36 -> 1.222279301 | AJ13: =Inputs!AJ36 -> 1.222279301 | AK13: =Inputs!AK36 -> 1.222279301 | AL13: =Inputs!AL36 -> 1.222279301 | AM13: =Inputs!AM36 -> 1.222279301 | AN13: =Inputs!AN36 -> 1.222279301 | AO13: =Inputs!AO36 -> 0 | AP13: =Inputs!AP36 -> 0 | AQ13: =Inputs!AQ36 -> 0 | AR13: =Inputs!AR36 -> 0 | AS13: =Inputs!AS36 -> 0 | AT13: =Inputs!AT36 -> 0 | AU13: =Inputs!AU36 -> 0 | AV13: =Inputs!AV36 -> 0 | AW13: =Inputs!AW36 -> 0 | AX13: =Inputs!AX36 -> 0 | AY13: =Inputs!AY36 -> 0 | AZ13: =Inputs!AZ36 -> 0 | BA13: =Inputs!BA36 -> 0 | BB13: =Inputs!BB36 -> 0
C15: =Inputs!C81 -> Cost items to be updated up to and beyond PCA stage (actual)
E17: =Inputs!E83 -> Non-controllable Opex (actual) | G17: =Inputs!G83 -> €m nominal prices | P17: =Inputs!P83 -> 1 | Q17: =Inputs!Q83 -> 1.05 | R17: =Inputs!R83 -> 1.1025 | S17: =Inputs!S83 -> 1.157625 | T17: =Inputs!T83 -> 1.21550625 | U17: =Inputs!U83 -> 1.276281563 | V17: =Inputs!V83 -> 1.340095641 | W17: =Inputs!W83 -> 1.407100423 | X17: =Inputs!X83 -> 1.477455444 | Y17: =Inputs!Y83 -> 1.551328216 | Z17: =Inputs!Z83 -> 1.628894627 | AA17: =Inputs!AA83 -> 1.710339358 | AB17: =Inputs!AB83 -> 1.795856326 | AC17: =Inputs!AC83 -> 1.885649142 | AD17: =Inputs!AD83 -> 1.979931599 | AE17: =Inputs!AE83 -> 2.078928179 | AF17: =Inputs!AF83 -> 2.182874588 | AG17: =Inputs!AG83 -> 2.292018318 | AH17: =Inputs!AH83 -> 2.406619234 | AI17: =Inputs!AI83 -> 2.526950195 | AJ17: =Inputs!AJ83 -> 2.653297705 | AK17: =Inputs!AK83 -> 2.78596259 | AL17: =Inputs!AL83 -> 2.92526072 | AM17: =Inputs!AM83 -> 3.071523756 | AN17: =Inputs!AN83 -> 3.225099944 | AO17: =Inputs!AO83 -> 0 | AP17: =Inputs!AP83 -> 0 | AQ17: =Inputs!AQ83 -> 0 | AR17: =Inputs!AR83 -> 0 | AS17: =Inputs!AS83 -> 0 | AT17: =Inputs!AT83 -> 0 | AU17: =Inputs!AU83 -> 0 | AV17: =Inputs!AV83 -> 0 | AW17: =Inputs!AW83 -> 0 | AX17: =Inputs!AX83 -> 0 | AY17: =Inputs!AY83 -> 0 | AZ17: =Inputs!AZ83 -> 0 | BA17: =Inputs!BA83 -> 0 | BB17: =Inputs!BB83 -> 0
E19: Average exchange rate (XUMAERS) | G19: GBP / EUR | H19: GBPt/EURt | P19: =Inputs!P142 -> 1.1407 | Q19: =Inputs!Q142 -> 1.1118 | R19: =Inputs!R142 -> 1.1118 | S19: =Inputs!S142 -> 1.1118 | T19: =Inputs!T142 -> 1.1118 | U19: =Inputs!U142 -> 1.1118 | V19: =Inputs!V142 -> 1.1118 | W19: =Inputs!W142 -> 1.1118 | X19: =Inputs!X142 -> 1.1118 | Y19: =Inputs!Y142 -> 1.1118 | Z19: =Inputs!Z142 -> 1.1118 | AA19: =Inputs!AA142 -> 1.1118 | AB19: =Inputs!AB142 -> 1.1118 | AC19: =Inputs!AC142 -> 1.1118 | AD19: =Inputs!AD142 -> 1.1118 | AE19: =Inputs!AE142 -> 1.1118 | AF19: =Inputs!AF142 -> 1.1118 | AG19: =Inputs!AG142 -> 1.1118 | AH19: =Inputs!AH142 -> 1.1118 | AI19: =Inputs!AI142 -> 1.1118 | AJ19: =Inputs!AJ142 -> 1.1118 | AK19: =Inputs!AK142 -> 1.1118 | AL19: =Inputs!AL142 -> 1.1118 | AM19: =Inputs!AM142 -> 1.1118 | AN19: =Inputs!AN142 -> 1.1118 | AO19: =Inputs!AO142 -> 1.1118 | AP19: =Inputs!AP142 -> 1.1118 | AQ19: =Inputs!AQ142 -> 1.1118 | AR19: =Inputs!AR142 -> 1.1118 | AS19: =Inputs!AS142 -> 1.1118 | AT19: =Inputs!AT142 -> 1.1118 | AU19: =Inputs!AU142 -> 1.1118 | AV19: =Inputs!AV142 -> 1.1118 | AW19: =Inputs!AW142 -> 1.1118 | AX19: =Inputs!AX142 -> 1.1118 | AY19: =Inputs!AY142 -> 1.1118 | AZ19: =Inputs!AZ142 -> 1.1118 | BA19: =Inputs!BA142 -> 1.1118 | BB19: =Inputs!BB142 -> 1.1118
E21: =E17 -> Non-controllable Opex (actual) | G21: £m nominal prices | H21: ONCOCt | P21: =IF(Inputs!I13="€",P17/P$19,P17) -> 0.8766546857 | Q21: =IF(Inputs!J13="€",Q17/Q$19,Q17) -> 1.05 | R21: =IF(Inputs!K13="€",R17/R$19,R17) -> 1.1025 | S21: =IF(Inputs!L13="€",S17/S$19,S17) -> 1.157625 | T21: =IF(Inputs!M13="€",T17/T$19,T17) -> 1.21550625 | U21: =IF(Inputs!N13="€",U17/U$19,U17) -> 1.276281563 | V21: =IF(Inputs!O13="€",V17/V$19,V17) -> 1.340095641 | W21: =IF(Inputs!P13="€",W17/W$19,W17) -> 1.407100423 | X21: =IF(Inputs!Q13="€",X17/X$19,X17) -> 1.477455444 | Y21: =IF(Inputs!R13="€",Y17/Y$19,Y17) -> 1.551328216 | Z21: =IF(Inputs!S13="€",Z17/Z$19,Z17) -> 1.628894627 | AA21: =IF(Inputs!T13="€",AA17/AA$19,AA17) -> 1.710339358 | AB21: =IF(Inputs!U13="€",AB17/AB$19,AB17) -> 1.795856326 | AC21: =IF(Inputs!V13="€",AC17/AC$19,AC17) -> 1.885649142 | AD21: =IF(Inputs!W13="€",AD17/AD$19,AD17) -> 1.979931599 | AE21: =IF(Inputs!X13="€",AE17/AE$19,AE17) -> 2.078928179 | AF21: =IF(Inputs!Y13="€",AF17/AF$19,AF17) -> 2.182874588 | AG21: =IF(Inputs!Z13="€",AG17/AG$19,AG17) -> 2.292018318 | AH21: =IF(Inputs!AA13="€",AH17/AH$19,AH17) -> 2.406619234 | AI21: =IF(Inputs!AB13="€",AI17/AI$19,AI17) -> 2.526950195 | AJ21: =IF(Inputs!AC13="€",AJ17/AJ$19,AJ17) -> 2.653297705 | AK21: =IF(Inputs!AD13="€",AK17/AK$19,AK17) -> 2.78596259 | AL21: =IF(Inputs!AE13="€",AL17/AL$19,AL17) -> 2.92526072 | AM21: =IF(Inputs!AF13="€",AM17/AM$19,AM17) -> 3.071523756 | AN21: =IF(Inputs!AG13="€",AN17/AN$19,AN17) -> 3.225099944 | AO21: =IF(Inputs!AH13="€",AO17/AO$19,AO17) -> 0 | AP21: =IF(Inputs!AI13="€",AP17/AP$19,AP17) -> 0 | AQ21: =IF(Inputs!AJ13="€",AQ17/AQ$19,AQ17) -> 0 | AR21: =IF(Inputs!AK13="€",AR17/AR$19,AR17) -> 0 | AS21: =IF(Inputs!AL13="€",AS17/AS$19,AS17) -> 0 | AT21: =IF(Inputs!AM13="€",AT17/AT$19,AT17) -> 0 | AU21: =IF(Inputs!AN13="€",AU17/AU$19,AU17) -> 0 | AV21: =IF(Inputs!AO13="€",AV17/AV$19,AV17) -> 0 | AW21: =IF(Inputs!AP13="€",AW17/AW$19,AW17) -> 0 | AX21: =IF(Inputs!AQ13="€",AX17/AX$19,AX17) -> 0 | AY21: =IF(Inputs!AR13="€",AY17/AY$19,AY17) -> 0 | AZ21: =IF(Inputs!AS13="€",AZ17/AZ$19,AZ17) -> 0 | BA21: =IF(Inputs!AT13="€",BA17/BA$19,BA17) -> 0 | BB21: =IF(Inputs!AU13="€",BB17/BB$19,BB17) -> 0
E23: =Inputs!E84 -> Non-controllable Opex adjustment following NRA review (actual) | G23: =Inputs!G84 -> €m nominal prices | P23: =Inputs!P84 -> 0 | Q23: =Inputs!Q84 -> 0 | R23: =Inputs!R84 -> 0 | S23: =Inputs!S84 -> 0 | T23: =Inputs!T84 -> 0 | U23: =Inputs!U84 -> 0 | V23: =Inputs!V84 -> 0 | W23: =Inputs!W84 -> 0 | X23: =Inputs!X84 -> 0 | Y23: =Inputs!Y84 -> 0 | Z23: =Inputs!Z84 -> 0 | AA23: =Inputs!AA84 -> 0 | AB23: =Inputs!AB84 -> 0 | AC23: =Inputs!AC84 -> 0 | AD23: =Inputs!AD84 -> 0 | AE23: =Inputs!AE84 -> 0 | AF23: =Inputs!AF84 -> 0 | AG23: =Inputs!AG84 -> 0 | AH23: =Inputs!AH84 -> 0 | AI23: =Inputs!AI84 -> 0 | AJ23: =Inputs!AJ84 -> 0 | AK23: =Inputs!AK84 -> 0 | AL23: =Inputs!AL84 -> 0 | AM23: =Inputs!AM84 -> 0 | AN23: =Inputs!AN84 -> 0 | AO23: =Inputs!AO84 -> 0 | AP23: =Inputs!AP84 -> 0 | AQ23: =Inputs!AQ84 -> 0 | AR23: =Inputs!AR84 -> 0 | AS23: =Inputs!AS84 -> 0 | AT23: =Inputs!AT84 -> 0 | AU23: =Inputs!AU84 -> 0 | AV23: =Inputs!AV84 -> 0 | AW23: =Inputs!AW84 -> 0 | AX23: =Inputs!AX84 -> 0 | AY23: =Inputs!AY84 -> 0 | AZ23: =Inputs!AZ84 -> 0 | BA23: =Inputs!BA84 -> 0 | BB23: =Inputs!BB84 -> 0
E25: Average exchange rate (XUMAERS) | G25: GBP / EUR | H25: GBPt/EURt | P25: =P19 -> 1.1407 | Q25: =Q19 -> 1.1118 | R25: 1.1118 | S25: 1.1118 | T25: 1.1118 | U25: 1.1118 | V25: 1.1118 | W25: 1.1118 | X25: 1.1118 | Y25: 1.1118 | Z25: =Z19 -> 1.1118 | AA25: 1.1118 | AB25: 1.1118 | AC25: 1.1118 | AD25: 1.1118 | AE25: 1.1118 | AF25: 1.1118 | AG25: 1.1118 | AH25: 1.1118 | AI25: 1.1118 | AJ25: 1.1118 | AK25: 1.1118 | AL25: 1.1118 | AM25: 1.1118 | AN25: 1.1118 | AO25: 1.1118 | AP25: 1.1118 | AQ25: 1.1118 | AR25: 1.1118 | AS25: 1.1118 | AT25: 1.1118 | AU25: 1.1118 | AV25: 1.1118 | AW25: 1.1118 | AX25: 1.1118 | AY25: 1.1118 | AZ25: 1.1118 | BA25: 1.1118 | BB25: 1.1118
E27: =E23 -> Non-controllable Opex adjustment following NRA review (actual) | G27: £m nominal prices | P27: =IF(Inputs!I13="€",P23/P$25,P23) -> 0 | Q27: =IF(Inputs!J13="€",Q23/Q$25,Q23) -> 0 | R27: =IF(Inputs!K13="€",R23/R$25,R23) -> 0 | S27: =IF(Inputs!L13="€",S23/S$25,S23) -> 0 | T27: =IF(Inputs!M13="€",T23/T$25,T23) -> 0 | U27: =IF(Inputs!N13="€",U23/U$25,U23) -> 0 | V27: =IF(Inputs!O13="€",V23/V$25,V23) -> 0 | W27: =IF(Inputs!P13="€",W23/W$25,W23) -> 0 | X27: =IF(Inputs!Q13="€",X23/X$25,X23) -> 0 | Y27: =IF(Inputs!R13="€",Y23/Y$25,Y23) -> 0 | Z27: =IF(Inputs!S13="€",Z23/Z$25,Z23) -> 0 | AA27: =IF(Inputs!T13="€",AA23/AA$25,AA23) -> 0 | AB27: =IF(Inputs!U13="€",AB23/AB$25,AB23) -> 0 | AC27: =IF(Inputs!V13="€",AC23/AC$25,AC23) -> 0 | AD27: =IF(Inputs!W13="€",AD23/AD$25,AD23) -> 0 | AE27: =IF(Inputs!X13="€",AE23/AE$25,AE23) -> 0 | AF27: =IF(Inputs!Y13="€",AF23/AF$25,AF23) -> 0 | AG27: =IF(Inputs!Z13="€",AG23/AG$25,AG23) -> 0 | AH27: =IF(Inputs!AA13="€",AH23/AH$25,AH23) -> 0 | AI27: =IF(Inputs!AB13="€",AI23/AI$25,AI23) -> 0 | AJ27: =IF(Inputs!AC13="€",AJ23/AJ$25,AJ23) -> 0 | AK27: =IF(Inputs!AD13="€",AK23/AK$25,AK23) -> 0 | AL27: =IF(Inputs!AE13="€",AL23/AL$25,AL23) -> 0 | AM27: =IF(Inputs!AF13="€",AM23/AM$25,AM23) -> 0 | AN27: =IF(Inputs!AG13="€",AN23/AN$25,AN23) -> 0 | AO27: =IF(Inputs!AH13="€",AO23/AO$25,AO23) -> 0 | AP27: =IF(Inputs!AI13="€",AP23/AP$25,AP23) -> 0 | AQ27: =IF(Inputs!AJ13="€",AQ23/AQ$25,AQ23) -> 0 | AR27: =IF(Inputs!AK13="€",AR23/AR$25,AR23) -> 0 | AS27: =IF(Inputs!AL13="€",AS23/AS$25,AS23) -> 0 | AT27: =IF(Inputs!AM13="€",AT23/AT$25,AT23) -> 0 | AU27: =IF(Inputs!AN13="€",AU23/AU$25,AU23) -> 0 | AV27: =IF(Inputs!AO13="€",AV23/AV$25,AV23) -> 0 | AW27: =IF(Inputs!AP13="€",AW23/AW$25,AW23) -> 0 | AX27: =IF(Inputs!AQ13="€",AX23/AX$25,AX23) -> 0 | AY27: =IF(Inputs!AR13="€",AY23/AY$25,AY23) -> 0 | AZ27: =IF(Inputs!AS13="€",AZ23/AZ$25,AZ23) -> 0 | BA27: =IF(Inputs!AT13="€",BA23/BA$25,BA23) -> 0 | BB27: =IF(Inputs!AU13="€",BB23/BB$25,BB23) -> 0
B29: End of sheet

Sheet Revenue
A1: Revenue | H1: Licence
E2: Parameter | G2: Units | H2: Terminology | I2: Constant | O2: Annual values
E3: Year commencing | O3: =Inputs!O3 -> 2018-01-01 | P3: =Inputs!P3 -> 2019-01-01 | Q3: =Inputs!Q3 -> 2020-01-01 | R3: =Inputs!R3 -> 2021-01-01 | S3: =Inputs!S3 -> 2022-01-01 | T3: =Inputs!T3 -> 2023-01-01 | U3: =Inputs!U3 -> 2024-01-01 | V3: =Inputs!V3 -> 2025-01-01 | W3: =Inputs!W3 -> 2026-01-01 | X3: =Inputs!X3 -> 2027-01-01 | Y3: =Inputs!Y3 -> 2028-01-01 | Z3: =Inputs!Z3 -> 2029-01-01 | AA3: =Inputs!AA3 -> 2030-01-01 | AB3: =Inputs!AB3 -> 2031-01-01 | AC3: =Inputs!AC3 -> 2032-01-01 | AD3: =Inputs!AD3 -> 2033-01-01 | AE3: =Inputs!AE3 -> 2034-01-01 | AF3: =Inputs!AF3 -> 2035-01-01 | AG3: =Inputs!AG3 -> 2036-01-01 | AH3: =Inputs!AH3 -> 2037-01-01 | AI3: =Inputs!AI3 -> 2038-01-01 | AJ3: =Inputs!AJ3 -> 2039-01-01 | AK3: =Inputs!AK3 -> 2040-01-01 | AL3: =Inputs!AL3 -> 2041-01-01 | AM3: =Inputs!AM3 -> 2042-01-01 | AN3: =Inputs!AN3 -> 2043-01-01 | AO3: =Inputs!AO3 -> 2044-01-01 | AP3: =Inputs!AP3 -> 2045-01-01 | AQ3: =Inputs!AQ3 -> 2046-01-01 | AR3: =Inputs!AR3 -> 2047-01-01 | AS3: =Inputs!AS3 -> 2048-01-01 | AT3: =Inputs!AT3 -> 2049-01-01 | AU3: =Inputs!AU3 -> 2050-01-01 | AV3: =Inputs!AV3 -> 2051-01-01 | AW3: =Inputs!AW3 -> 2052-01-01 | AX3: =Inputs!AX3 -> 2053-01-01 | AY3: =Inputs!AY3 -> 2054-01-01 | AZ3: =Inputs!AZ3 -> 2055-01-01 | BA3: =Inputs!BA3 -> 2056-01-01 | BB3: =Inputs!BB3 -> 2057-01-01
E4: Year ending | O4: =Inputs!O4 -> 2018-12-31 | P4: =Inputs!P4 -> 2019-12-31 | Q4: =Inputs!Q4 -> 2020-12-31 | R4: =Inputs!R4 -> 2021-12-31 | S4: =Inputs!S4 -> 2022-12-31 | T4: =Inputs!T4 -> 2023-12-31 | U4: =Inputs!U4 -> 2024-12-31 | V4: =Inputs!V4 -> 2025-12-31 | W4: =Inputs!W4 -> 2026-12-31 | X4: =Inputs!X4 -> 2027-12-31 | Y4: =Inputs!Y4 -> 2028-12-31 | Z4: =Inputs!Z4 -> 2029-12-31 | AA4: =Inputs!AA4 -> 2030-12-31 | AB4: =Inputs!AB4 -> 2031-12-31 | AC4: =Inputs!AC4 -> 2032-12-31 | AD4: =Inputs!AD4 -> 2033-12-31 | AE4: =Inputs!AE4 -> 2034-12-31 | AF4: =Inputs!AF4 -> 2035-12-31 | AG4: =Inputs!AG4 -> 2036-12-31 | AH4: =Inputs!AH4 -> 2037-12-31 | AI4: =Inputs!AI4 -> 2038-12-31 | AJ4: =Inputs!AJ4 -> 2039-12-31 | AK4: =Inputs!AK4 -> 2040-12-31 | AL4: =Inputs!AL4 -> 2041-12-31 | AM4: =Inputs!AM4 -> 2042-12-31 | AN4: =Inputs!AN4 -> 2043-12-31 | AO4: =Inputs!AO4 -> 2044-12-31 | AP4: =Inputs!AP4 -> 2045-12-31 | AQ4: =Inputs!AQ4 -> 2046-12-31 | AR4: =Inputs!AR4 -> 2047-12-31 | AS4: =Inputs!AS4 -> 2048-12-31 | AT4: =Inputs!AT4 -> 2049-12-31 | AU4: =Inputs!AU4 -> 2050-12-31 | AV4: =Inputs!AV4 -> 2051-12-31 | AW4: =Inputs!AW4 -> 2052-12-31 | AX4: =Inputs!AX4 -> 2053-12-31 | AY4: =Inputs!AY4 -> 2054-12-31 | AZ4: =Inputs!AZ4 -> 2055-12-31 | BA4: =Inputs!BA4 -> 2056-12-31 | BB4: =Inputs!BB4 -> 2057-12-31
E5: Operational year | O5: =Inputs!O5 -> 0 | P5: =Inputs!P5 -> 1 | Q5: =Inputs!Q5 -> 2 | R5: =Inputs!R5 -> 3 | S5: =Inputs!S5 -> 4 | T5: =Inputs!T5 -> 5 | U5: =Inputs!U5 -> 6 | V5: =Inputs!V5 -> 7 | W5: =Inputs!W5 -> 8 | X5: =Inputs!X5 -> 9 | Y5: =Inputs!Y5 -> 10 | Z5: =Inputs!Z5 -> 11 | AA5: =Inputs!AA5 -> 12 | AB5: =Inputs!AB5 -> 13 | AC5: =Inputs!AC5 -> 14 | AD5: =Inputs!AD5 -> 15 | AE5: =Inputs!AE5 -> 16 | AF5: =Inputs!AF5 -> 17 | AG5: =Inputs!AG5 -> 18 | AH5: =Inputs!AH5 -> 19 | AI5: =Inputs!AI5 -> 20 | AJ5: =Inputs!AJ5 -> 21 | AK5: =Inputs!AK5 -> 22 | AL5: =Inputs!AL5 -> 23 | AM5: =Inputs!AM5 -> 24 | AN5: =Inputs!AN5 -> 25 | AO5: =Inputs!AO5 -> 26 | AP5: =Inputs!AP5 -> 27 | AQ5: =Inputs!AQ5 -> 28 | AR5: =Inputs!AR5 -> 29 | AS5: =Inputs!AS5 -> 30 | AT5: =Inputs!AT5 -> 31 | AU5: =Inputs!AU5 -> 32 | AV5: =Inputs!AV5 -> 33 | AW5: =Inputs!AW5 -> 34 | AX5: =Inputs!AX5 -> 35 | AY5: =Inputs!AY5 -> 36 | AZ5: =Inputs!AZ5 -> 37 | BA5: =Inputs!BA5 -> 38 | BB5: =Inputs!BB5 -> 39
B7: Revenue
E9: =Inputs!E107 -> Assessed revenue | G9: =Inputs!G107 -> €m nominal prices | H9: =Inputs!H107 -> ARt | P9: =Inputs!P107 -> 100 | Q9: =Inputs!Q107 -> 102 | R9: =Inputs!R107 -> 104.04 | S9: =Inputs!S107 -> 106.1208 | T9: =Inputs!T107 -> 108.243216 | U9: =Inputs!U107 -> 110.4080803 | V9: =Inputs!V107 -> 112.6162419 | W9: =Inputs!W107 -> 114.8685668 | X9: =Inputs!X107 -> 117.1659381 | Y9: =Inputs!Y107 -> 119.5092569 | Z9: =Inputs!Z107 -> 121.899442 | AA9: =Inputs!AA107 -> 124.3374308 | AB9: =Inputs!AB107 -> 126.8241795 | AC9: =Inputs!AC107 -> 129.360663 | AD9: =Inputs!AD107 -> 131.9478763 | AE9: =Inputs!AE107 -> 134.5868338 | AF9: =Inputs!AF107 -> 137.2785705 | AG9: =Inputs!AG107 -> 140.0241419 | AH9: =Inputs!AH107 -> 142.8246248 | AI9: =Inputs!AI107 -> 145.6811173 | AJ9: =Inputs!AJ107 -> 148.5947396 | AK9: =Inputs!AK107 -> 151.5666344 | AL9: =Inputs!AL107 -> 154.5979671 | AM9: =Inputs!AM107 -> 157.6899264 | AN9: =Inputs!AN107 -> 160.8437249 | AO9: =Inputs!AO107 -> 0 | AP9: =Inputs!AP107 -> 0 | AQ9: =Inputs!AQ107 -> 0 | AR9: =Inputs!AR107 -> 0 | AS9: =Inputs!AS107 -> 0 | AT9: =Inputs!AT107 -> 0 | AU9: =Inputs!AU107 -> 0 | AV9: =Inputs!AV107 -> 0 | AW9: =Inputs!AW107 -> 0 | AX9: =Inputs!AX107 -> 0 | AY9: =Inputs!AY107 -> 0 | AZ9: =Inputs!AZ107 -> 0 | BA9: =Inputs!BA107 -> 0 | BB9: =Inputs!BB107 -> 0
E11: Average exchange rate (XUMAERS) | G11: GBP / EUR | H11: GBPt/EURt | P11: =Inputs!P142 -> 1.1407 | Q11: =Inputs!Q142 -> 1.1118 | R11: =Inputs!R142 -> 1.1118 | S11: =Inputs!S142 -> 1.1118 | T11: =Inputs!T142 -> 1.1118 | U11: =Inputs!U142 -> 1.1118 | V11: =Inputs!V142 -> 1.1118 | W11: =Inputs!W142 -> 1.1118 | X11: =Inputs!X142 -> 1.1118 | Y11: =Inputs!Y142 -> 1.1118 | Z11: =Inputs!Z142 -> 1.1118 | AA11: =Inputs!AA142 -> 1.1118 | AB11: =Inputs!AB142 -> 1.1118 | AC11: =Inputs!AC142 -> 1.1118 | AD11: =Inputs!AD142 -> 1.1118 | AE11: =Inputs!AE142 -> 1.1118 | AF11: =Inputs!AF142 -> 1.1118 | AG11: =Inputs!AG142 -> 1.1118 | AH11: =Inputs!AH142 -> 1.1118 | AI11: =Inputs!AI142 -> 1.1118 | AJ11: =Inputs!AJ142 -> 1.1118 | AK11: =Inputs!AK142 -> 1.1118 | AL11: =Inputs!AL142 -> 1.1118 | AM11: =Inputs!AM142 -> 1.1118 | AN11: =Inputs!AN142 -> 1.1118 | AO11: =Inputs!AO142 -> 1.1118 | AP11: =Inputs!AP142 -> 1.1118 | AQ11: =Inputs!AQ142 -> 1.1118 | AR11: =Inputs!AR142 -> 1.1118 | AS11: =Inputs!AS142 -> 1.1118 | AT11: =Inputs!AT142 -> 1.1118 | AU11: =Inputs!AU142 -> 1.1118 | AV11: =Inputs!AV142 -> 1.1118 | AW11: =Inputs!AW142 -> 1.1118 | AX11: =Inputs!AX142 -> 1.1118 | AY11: =Inputs!AY142 -> 1.1118 | AZ11: =Inputs!AZ142 -> 1.1118 | BA11: =Inputs!BA142 -> 1.1118 | BB11: =Inputs!BB142 -> 1.1118
E13: =E9 -> Assessed revenue | G13: £m nominal prices | H13: ARt | P13: =IF(Inputs!I13="€",P9/P11,P9) -> 87.66546857 | Q13: =IF(Inputs!J13="€",Q9/Q11,Q9) -> 102 | R13: =IF(Inputs!K13="€",R9/R11,R9) -> 104.04 | S13: =IF(Inputs!L13="€",S9/S11,S9) -> 106.1208 | T13: =IF(Inputs!M13="€",T9/T11,T9) -> 108.243216 | U13: =IF(Inputs!N13="€",U9/U11,U9) -> 110.4080803 | V13: =IF(Inputs!O13="€",V9/V11,V9) -> 112.6162419 | W13: =IF(Inputs!P13="€",W9/W11,W9) -> 114.8685668 | X13: =IF(Inputs!Q13="€",X9/X11,X9) -> 117.1659381 | Y13: =IF(Inputs!R13="€",Y9/Y11,Y9) -> 119.5092569 | Z13: =IF(Inputs!S13="€",Z9/Z11,Z9) -> 121.899442 | AA13: =IF(Inputs!T13="€",AA9/AA11,AA9) -> 124.3374308 | AB13: =IF(Inputs!U13="€",AB9/AB11,AB9) -> 126.8241795 | AC13: =IF(Inputs!V13="€",AC9/AC11,AC9) -> 129.360663 | AD13: =IF(Inputs!W13="€",AD9/AD11,AD9) -> 131.9478763 | AE13: =IF(Inputs!X13="€",AE9/AE11,AE9) -> 134.5868338 | AF13: =IF(Inputs!Y13="€",AF9/AF11,AF9) -> 137.2785705 | AG13: =IF(Inputs!Z13="€",AG9/AG11,AG9) -> 140.0241419 | AH13: =IF(Inputs!AA13="€",AH9/AH11,AH9) -> 142.8246248 | AI13: =IF(Inputs!AB13="€",AI9/AI11,AI9) -> 145.6811173 | AJ13: =IF(Inputs!AC13="€",AJ9/AJ11,AJ9) -> 148.5947396 | AK13: =IF(Inputs!AD13="€",AK9/AK11,AK9) -> 151.5666344 | AL13: =IF(Inputs!AE13="€",AL9/AL11,AL9) -> 154.5979671 | AM13: =IF(Inputs!AF13="€",AM9/AM11,AM9) -> 157.6899264 | AN13: =IF(Inputs!AG13="€",AN9/AN11,AN9) -> 160.8437249 | AO13: =IF(Inputs!AH13="€",AO9/AO11,AO9) -> 0 | AP13: =IF(Inputs!AI13="€",AP9/AP11,AP9) -> 0 | AQ13: =IF(Inputs!AJ13="€",AQ9/AQ11,AQ9) -> 0 | AR13: =IF(Inputs!AK13="€",AR9/AR11,AR9) -> 0 | AS13: =IF(Inputs!AL13="€",AS9/AS11,AS9) -> 0 | AT13: =IF(Inputs!AM13="€",AT9/AT11,AT9) -> 0 | AU13: =IF(Inputs!AN13="€",AU9/AU11,AU9) -> 0 | AV13: =IF(Inputs!AO13="€",AV9/AV11,AV9) -> 0 | AW13: =IF(Inputs!AP13="€",AW9/AW11,AW9) -> 0 | AX13: =IF(Inputs!AQ13="€",AX9/AX11,AX9) -> 0 | AY13: =IF(Inputs!AR13="€",AY9/AY11,AY9) -> 0 | AZ13: =IF(Inputs!AS13="€",AZ9/AZ11,AZ9) -> 0 | BA13: =IF(Inputs!AT13="€",BA9/BA11,BA9) -> 0 | BB13: =IF(Inputs!AU13="€",BB9/BB11,BB9) -> 0
B15: End of sheet

Sheet ORA Adjustment
A1: ORA Adjustment | H1: Licence
E2: Parameter | G2: Units | H2: Terminology | I2: Constant | O2: Annual values
E3: Year commencing | O3: =Inputs!O3 -> 2018-01-01 | P3: =Inputs!P3 -> 2019-01-01 | Q3: =Inputs!Q3 -> 2020-01-01 | R3: =Inputs!R3 -> 2021-01-01 | S3: =Inputs!S3 -> 2022-01-01 | T3: =Inputs!T3 -> 2023-01-01 | U3: =Inputs!U3 -> 2024-01-01 | V3: =Inputs!V3 -> 2025-01-01 | W3: =Inputs!W3 -> 2026-01-01 | X3: =Inputs!X3 -> 2027-01-01 | Y3: =Inputs!Y3 -> 2028-01-01 | Z3: =Inputs!Z3 -> 2029-01-01 | AA3: =Inputs!AA3 -> 2030-01-01 | AB3: =Inputs!AB3 -> 2031-01-01 | AC3: =Inputs!AC3 -> 2032-01-01 | AD3: =Inputs!AD3 -> 2033-01-01 | AE3: =Inputs!AE3 -> 2034-01-01 | AF3: =Inputs!AF3 -> 2035-01-01 | AG3: =Inputs!AG3 -> 2036-01-01 | AH3: =Inputs!AH3 -> 2037-01-01 | AI3: =Inputs!AI3 -> 2038-01-01 | AJ3: =Inputs!AJ3 -> 2039-01-01 | AK3: =Inputs!AK3 -> 2040-01-01 | AL3: =Inputs!AL3 -> 2041-01-01 | AM3: =Inputs!AM3 -> 2042-01-01 | AN3: =Inputs!AN3 -> 2043-01-01 | AO3: =Inputs!AO3 -> 2044-01-01 | AP3: =Inputs!AP3 -> 2045-01-01 | AQ3: =Inputs!AQ3 -> 2046-01-01 | AR3: =Inputs!AR3 -> 2047-01-01 | AS3: =Inputs!AS3 -> 2048-01-01 | AT3: =Inputs!AT3 -> 2049-01-01 | AU3: =Inputs!AU3 -> 2050-01-01 | AV3: =Inputs!AV3 -> 2051-01-01 | AW3: =Inputs!AW3 -> 2052-01-01 | AX3: =Inputs!AX3 -> 2053-01-01 | AY3: =Inputs!AY3 -> 2054-01-01 | AZ3: =Inputs!AZ3 -> 2055-01-01 | BA3: =Inputs!BA3 -> 2056-01-01 | BB3: =Inputs!BB3 -> 2057-01-01
E4: Year ending | O4: =Inputs!O4 -> 2018-12-31 | P4: =Inputs!P4 -> 2019-12-31 | Q4: =Inputs!Q4 -> 2020-12-31 | R4: =Inputs!R4 -> 2021-12-31 | S4: =Inputs!S4 -> 2022-12-31 | T4: =Inputs!T4 -> 2023-12-31 | U4: =Inputs!U4 -> 2024-12-31 | V4: =Inputs!V4 -> 2025-12-31 | W4: =Inputs!W4 -> 2026-12-31 | X4: =Inputs!X4 -> 2027-12-31 | Y4: =Inputs!Y4 -> 2028-12-31 | Z4: =Inputs!Z4 -> 2029-12-31 | AA4: =Inputs!AA4 -> 2030-12-31 | AB4: =Inputs!AB4 -> 2031-12-31 | AC4: =Inputs!AC4 -> 2032-12-31 | AD4: =Inputs!AD4 -> 2033-12-31 | AE4: =Inputs!AE4 -> 2034-12-31 | AF4: =Inputs!AF4 -> 2035-12-31 | AG4: =Inputs!AG4 -> 2036-12-31 | AH4: =Inputs!AH4 -> 2037-12-31 | AI4: =Inputs!AI4 -> 2038-12-31 | AJ4: =Inputs!AJ4 -> 2039-12-31 | AK4: =Inputs!AK4 -> 2040-12-31 | AL4: =Inputs!AL4 -> 2041-12-31 | AM4: =Inputs!AM4 -> 2042-12-31 | AN4: =Inputs!AN4 -> 2043-12-31 | AO4: =Inputs!AO4 -> 2044-12-31 | AP4: =Inputs!AP4 -> 2045-12-31 | AQ4: =Inputs!AQ4 -> 2046-12-31 | AR4: =Inputs!AR4 -> 2047-12-31 | AS4: =Inputs!AS4 -> 2048-12-31 | AT4: =Inputs!AT4 -> 2049-12-31 | AU4: =Inputs!AU4 -> 2050-12-31 | AV4: =Inputs!AV4 -> 2051-12-31 | AW4: =Inputs!AW4 -> 2052-12-31 | AX4: =Inputs!AX4 -> 2053-12-31 | AY4: =Inputs!AY4 -> 2054-12-31 | AZ4: =Inputs!AZ4 -> 2055-12-31 | BA4: =Inputs!BA4 -> 2056-12-31 | BB4: =Inputs!BB4 -> 2057-12-31
E5: Operational year | O5: =Inputs!O5 -> 0 | P5: =Inputs!P5 -> 1 | Q5: =Inputs!Q5 -> 2 | R5: =Inputs!R5 -> 3 | S5: =Inputs!S5 -> 4 | T5: =Inputs!T5 -> 5 | U5: =Inputs!U5 -> 6 | V5: =Inputs!V5 -> 7 | W5: =Inputs!W5 -> 8 | X5: =Inputs!X5 -> 9 | Y5: =Inputs!Y5 -> 10 | Z5: =Inputs!Z5 -> 11 | AA5: =Inputs!AA5 -> 12 | AB5: =Inputs!AB5 -> 13 | AC5: =Inputs!AC5 -> 14 | AD5: =Inputs!AD5 -> 15 | AE5: =Inputs!AE5 -> 16 | AF5: =Inputs!AF5 -> 17 | AG5: =Inputs!AG5 -> 18 | AH5: =Inputs!AH5 -> 19 | AI5: =Inputs!AI5 -> 20 | AJ5: =Inputs!AJ5 -> 21 | AK5: =Inputs!AK5 -> 22 | AL5: =Inputs!AL5 -> 23 | AM5: =Inputs!AM5 -> 24 | AN5: =Inputs!AN5 -> 25 | AO5: =Inputs!AO5 -> 26 | AP5: =Inputs!AP5 -> 27 | AQ5: =Inputs!AQ5 -> 28 | AR5: =Inputs!AR5 -> 29 | AS5: =Inputs!AS5 -> 30 | AT5: =Inputs!AT5 -> 31 | AU5: =Inputs!AU5 -> 32 | AV5: =Inputs!AV5 -> 33 | AW5: =Inputs!AW5 -> 34 | AX5: =Inputs!AX5 -> 35 | AY5: =Inputs!AY5 -> 36 | AZ5: =Inputs!AZ5 -> 37 | BA5: =Inputs!BA5 -> 38 | BB5: =Inputs!BB5 -> 39
B7: Controllable Opex
C9: Original controllable Opex allowance from PCR stage
E11: Controllable Opex (baseline) | G11: =Inputs!$I$11 -> £m 13/14 prices | P11: =Inputs!P35 -> 14.49679782 | Q11: =Inputs!Q35 -> 13.65203375 | R11: =Inputs!R35 -> 12.88494287 | S11: =Inputs!S35 -> 12.89662711 | T11: =Inputs!T35 -> 12.90732178 | U11: =Inputs!U35 -> 13.96681878 | V11: =Inputs!V35 -> 13.764977 | W11: =Inputs!W35 -> 13.80892058 | X11: =Inputs!X35 -> 13.86507966 | Y11: =Inputs!Y35 -> 13.89807956 | Z11: =Inputs!Z35 -> 14.22379803 | AA11: =Inputs!AA35 -> 14.02025334 | AB11: =Inputs!AB35 -> 14.06558781 | AC11: =Inputs!AC35 -> 14.12315933 | AD11: =Inputs!AD35 -> 14.15759344 | AE11: =Inputs!AE35 -> 14.48476811 | AF11: =Inputs!AF35 -> 14.28270183 | AG11: =Inputs!AG35 -> 14.32646467 | AH11: =Inputs!AH35 -> 14.38248722 | AI11: =Inputs!AI35 -> 14.41539525 | AJ11: =Inputs!AJ35 -> 14.72062579 | AK11: =Inputs!AK35 -> 14.51707986 | AL11: =Inputs!AL35 -> 14.56322353 | AM11: =Inputs!AM35 -> 14.64687195 | AN11: =Inputs!AN35 -> 14.68220865 | AO11: =Inputs!AO35 -> 0 | AP11: =Inputs!AP35 -> 0 | AQ11: =Inputs!AQ35 -> 0 | AR11: =Inputs!AR35 -> 0 | AS11: =Inputs!AS35 -> 0 | AT11: =Inputs!AT35 -> 0 | AU11: =Inputs!AU35 -> 0 | AV11: =Inputs!AV35 -> 0 | AW11: =Inputs!AW35 -> 0 | AX11: =Inputs!AX35 -> 0 | AY11: =Inputs!AY35 -> 0 | AZ11: =Inputs!AZ35 -> 0 | BA11: =Inputs!BA35 -> 0 | BB11: =Inputs!BB35 -> 0
C13: Revised controllable Opex allowance from ORA submission
E15: Controllable Opex (ORA submission) | G15: =Inputs!$I$11 -> £m 13/14 prices | P15: =Inputs!P163 -> 13 | Q15: =Inputs!Q163 -> 13 | R15: =Inputs!R163 -> 13 | S15: =Inputs!S163 -> 13 | T15: =Inputs!T163 -> 13 | U15: =Inputs!U163 -> 13 | V15: =Inputs!V163 -> 13 | W15: =Inputs!W163 -> 13 | X15: =Inputs!X163 -> 13 | Y15: =Inputs!Y163 -> 13 | Z15: =Inputs!Z163 -> 13 | AA15: =Inputs!AA163 -> 13 | AB15: =Inputs!AB163 -> 13 | AC15: =Inputs!AC163 -> 13 | AD15: =Inputs!AD163 -> 13 | AE15: =Inputs!AE163 -> 13 | AF15: =Inputs!AF163 -> 13 | AG15: =Inputs!AG163 -> 13 | AH15: =Inputs!AH163 -> 13 | AI15: =Inputs!AI163 -> 13 | AJ15: =Inputs!AJ163 -> 13 | AK15: =Inputs!AK163 -> 13 | AL15: =Inputs!AL163 -> 13 | AM15: =Inputs!AM163 -> 13 | AN15: =Inputs!AN163 -> 13 | AO15: =Inputs!AO163 -> 0 | AP15: =Inputs!AP163 -> 0 | AQ15: =Inputs!AQ163 -> 0 | AR15: =Inputs!AR163 -> 0 | AS15: =Inputs!AS163 -> 0 | AT15: =Inputs!AT163 -> 0 | AU15: =Inputs!AU163 -> 0 | AV15: =Inputs!AV163 -> 0 | AW15: =Inputs!AW163 -> 0 | AX15: =Inputs!AX163 -> 0 | AY15: =Inputs!AY163 -> 0 | AZ15: =Inputs!AZ163 -> 0 | BA15: =Inputs!BA163 -> 0 | BB15: =Inputs!BB163 -> 0
C17: NPV comparisons
E19: =Inputs!E160 -> ORA Cap effective flag | G19: flag | P19: =Inputs!P160 -> 0 | Q19: =Inputs!Q160 -> 0 | R19: =Inputs!R160 -> 0 | S19: =Inputs!S160 -> 0 | T19: =Inputs!T160 -> 0 | U19: =Inputs!U160 -> 0 | V19: =Inputs!V160 -> 0 | W19: =Inputs!W160 -> 0 | X19: =Inputs!X160 -> 0 | Y19: =Inputs!Y160 -> 0 | Z19: =Inputs!Z160 -> 0 | AA19: =Inputs!AA160 -> 0.9993155373 | AB19: =Inputs!AB160 -> 1 | AC19: =Inputs!AC160 -> 1 | AD19: =Inputs!AD160 -> 1 | AE19: =Inputs!AE160 -> 1 | AF19: =Inputs!AF160 -> 1 | AG19: =Inputs!AG160 -> 1 | AH19: =Inputs!AH160 -> 1 | AI19: =Inputs!AI160 -> 1 | AJ19: =Inputs!AJ160 -> 1 | AK19: =Inputs!AK160 -> 1 | AL19: =Inputs!AL160 -> 1 | AM19: =Inputs!AM160 -> 1 | AN19: =Inputs!AN160 -> 1.082819986 | AO19: =Inputs!AO160 -> 0 | AP19: =Inputs!AP160 -> 0 | AQ19: =Inputs!AQ160 -> 0 | AR19: =Inputs!AR160 -> 0 | AS19: =Inputs!AS160 -> 0 | AT19: =Inputs!AT160 -> 0 | AU19: =Inputs!AU160 -> 0 | AV19: =Inputs!AV160 -> 0 | AW19: =Inputs!AW160 -> 0 | AX19: =Inputs!AX160 -> 0 | AY19: =Inputs!AY160 -> 0 | AZ19: =Inputs!AZ160 -> 0 | BA19: =Inputs!BA160 -> 0 | BB19: =Inputs!BB160 -> 0
E20: Cap return rate | I20: =Inputs!I40 -> 0.0734
E21: Discount factor to start of operational period (cap) | G21: scalar | O21: =(1 + $I20) ^ -O$5 -> 1 | P21: 0.9316191541 | Q21: 0.8679142483 | R21: 0.8085655378 | S21: 0.7532751423 | T21: 0.7017655509 | U21: 0.6537782289 | V21: 0.6090723206 | W21: 0.5674234401 | X21: 0.5286225453 | Y21: 0.4924748884 | Z21: =(1 + $I20) ^ -Z$5 -> 0.458799039 | AA21: =(1 + $I20) ^ -AA$5 -> 0.4274259726 | AB21: 0.398198223 | AC21: 0.3709690917 | AD21: 0.3456019114 | AE21: 0.3219693603 | AF21: 0.2999528231 | AG21: 0.2794417953 | AH21: 0.260333329 | AI21: 0.2425315157 | AJ21: 0.2259470055 | AK21: 0.2104965582 | AL21: 0.1961026255 | AM21: 0.182692962 | AN21: 0.1702002628 | AO21: 0.1585618248 | AP21: 0.1477192331 | AQ21: 0.137618067 | AR21: 0.1282076272 | AS21: 0.1194406812 | AT21: 0.1112732263 | AU21: 0.103664269 | AV21: 0.0965756186 | AW21: 0.0899716961 | AX21: 0.08381935542 | AY21: 0.07808771699 | AZ21: 0.07274801285 | BA21: 0.06777344219 | BB21: 0.06313903688
E23: NPV of original allowance | G23: =Inputs!$I$11 -> £m 13/14 prices | I23: =SUMPRODUCT($O$21:$BB$21,O11:BB11,$O$19:$BB$19) -> 56.53270681
E24: NPV of revised allowance | G24: =Inputs!$I$11 -> £m 13/14 prices | I24: =SUMPRODUCT($O$21:$BB$21,O15:BB15,$O$19:$BB$19) -> 51.29366921
E25: Difference in NPV | G25: =Inputs!$I$11 -> £m 13/14 prices | I25: =I24-I23 -> -5.239037593
E27: Amendment to Cap rate | G27: =Inputs!$I$11 -> £m 13/14 prices | H27: ORAC | I27: =I25/SUMPRODUCT($O$19:$BB$19,$O$21:$BB$21) -> -1.327795218
E29: =Inputs!E161 -> ORA Floor effective flag | G29: flag | P29: =Inputs!P161 -> 0 | Q29: =Inputs!Q161 -> 0 | R29: =Inputs!R161 -> 0 | S29: =Inputs!S161 -> 0 | T29: =Inputs!T161 -> 0 | U29: =Inputs!U161 -> 0 | V29: =Inputs!V161 -> 0 | W29: =Inputs!W161 -> 0 | X29: =Inputs!X161 -> 0 | Y29: =Inputs!Y161 -> 0 | Z29: =Inputs!Z161 -> 0 | AA29: =Inputs!AA161 -> 0.9993155373 | AB29: =Inputs!AB161 -> 1 | AC29: =Inputs!AC161 -> 1 | AD29: =Inputs!AD161 -> 1 | AE29: =Inputs!AE161 -> 1 | AF29: =Inputs!AF161 -> 1 | AG29: =Inputs!AG161 -> 1 | AH29: =Inputs!AH161 -> 1 | AI29: =Inputs!AI161 -> 1 | AJ29: =Inputs!AJ161 -> 1 | AK29: =Inputs!AK161 -> 1 | AL29: =Inputs!AL161 -> 1 | AM29: =Inputs!AM161 -> 1 | AN29: =Inputs!AN161 -> 1.082819986 | AO29: =Inputs!AO161 -> 0 | AP29: =Inputs!AP161 -> 0 | AQ29: =Inputs!AQ161 -> 0 | AR29: =Inputs!AR161 -> 0 | AS29: =Inputs!AS161 -> 0 | AT29: =Inputs!AT161 -> 0 | AU29: =Inputs!AU161 -> 0 | AV29: =Inputs!AV161 -> 0 | AW29: =Inputs!AW161 -> 0 | AX29: =Inputs!AX161 -> 0 | AY29: =Inputs!AY161 -> 0 | AZ29: =Inputs!AZ161 -> 0 | BA29: =Inputs!BA161 -> 0 | BB29: =Inputs!BB161 -> 0
E30: Floor return rate | I30: =Inputs!I41 -> 0.0042
E31: Discount factor to start of operational period (floor) | G31: scalar | O31: =(1 + $I30) ^ -O$5 -> 1 | P31: 0.9958175662 | Q31: 0.9916526252 | R31: 0.9875051038 | S31: 0.9833749291 | T31: 0.9792620285 | U31: 0.97516633 | V31: 0.9710877614 | W31: 0.9670262511 | X31: 0.9629817278 | Y31: 0.9589541205 | Z31: =(1 + $I30) ^ -Z$5 -> 0.9549433584 | AA31: =(1 + $I30) ^ -AA$5 -> 0.9509493711 | AB31: =(1 + $I30) ^ -AB$5 -> 0.9469720883 | AC31: =(1 + $I30) ^ -AC$5 -> 0.9430114403 | AD31: =(1 + $I30) ^ -AD$5 -> 0.9390673574 | AE31: =(1 + $I30) ^ -AE$5 -> 0.9351397703 | AF31: =(1 + $I30) ^ -AF$5 -> 0.9312286102 | AG31: =(1 + $I30) ^ -AG$5 -> 0.9273338082 | AH31: =(1 + $I30) ^ -AH$5 -> 0.9234552959 | AI31: =(1 + $I30) ^ -AI$5 -> 0.9195930053 | AJ31: =(1 + $I30) ^ -AJ$5 -> 0.9157468684 | AK31: =(1 + $I30) ^ -AK$5 -> 0.9119168178 | AL31: =(1 + $I30) ^ -AL$5 -> 0.9081027861 | AM31: =(1 + $I30) ^ -AM$5 -> 0.9043047063 | AN31: =(1 + $I30) ^ -AN$5 -> 0.9005225118 | AO31: =(1 + $I30) ^ -AO$5 -> 0.896756136 | AP31: =(1 + $I30) ^ -AP$5 -> 0.8930055129 | AQ31: =(1 + $I30) ^ -AQ$5 -> 0.8892705764 | AR31: =(1 + $I30) ^ -AR$5 -> 0.8855512612 | AS31: =(1 + $I30) ^ -AS$5 -> 0.8818475016 | AT31: =(1 + $I30) ^ -AT$5 -> 0.8781592329 | AU31: =(1 + $I30) ^ -AU$5 -> 0.87448639 | AV31: =(1 + $I30) ^ -AV$5 -> 0.8708289086 | AW31: =(1 + $I30) ^ -AW$5 -> 0.8671867244 | AX31: =(1 + $I30) ^ -AX$5 -> 0.8635597733 | AY31: =(1 + $I30) ^ -AY$5 -> 0.8599479918 | AZ31: =(1 + $I30) ^ -AZ$5 -> 0.8563513162 | BA31: =(1 + $I30) ^ -BA$5 -> 0.8527696836 | BB31: =(1 + $I30) ^ -BB$5 -> 0.8492030308
E33: NPV of original allowance | G33: =Inputs!$I$11 -> £m 13/14 prices | I33: =SUMPRODUCT($O$31:$BB$31,O11:BB11,$O$29:$BB$29) -> 187.4309706
E34: NPV of revised allowance | G34: =Inputs!$I$11 -> £m 13/14 prices | I34: =SUMPRODUCT($O$31:$BB$31,O15:BB15,$O$29:$BB$29) -> 169.4065725
E35: Difference in NPV | G35: =Inputs!$I$11 -> £m 13/14 prices | I35: =I34-I33 -> -18.02439805
E37: Amendment to Floor rate | G37: =Inputs!$I$11 -> £m 13/14 prices | H37: ORAF | I37: =I35/SUMPRODUCT($O$29:$BB$29,$O$31:$BB$31) -> -1.383164603
B39: End of sheet

Sheet DC Adjustment
A1: DC Adjustment | H1: Licence
E2: Parameter | G2: Units | H2: Terminology | I2: Constant | O2: Annual values
E3: Year commencing | O3: =Inputs!O3 -> 2018-01-01 | P3: =Inputs!P3 -> 2019-01-01 | Q3: =Inputs!Q3 -> 2020-01-01 | R3: =Inputs!R3 -> 2021-01-01 | S3: =Inputs!S3 -> 2022-01-01 | T3: =Inputs!T3 -> 2023-01-01 | U3: =Inputs!U3 -> 2024-01-01 | V3: =Inputs!V3 -> 2025-01-01 | W3: =Inputs!W3 -> 2026-01-01 | X3: =Inputs!X3 -> 2027-01-01 | Y3: =Inputs!Y3 -> 2028-01-01 | Z3: =Inputs!Z3 -> 2029-01-01 | AA3: =Inputs!AA3 -> 2030-01-01 | AB3: =Inputs!AB3 -> 2031-01-01 | AC3: =Inputs!AC3 -> 2032-01-01 | AD3: =Inputs!AD3 -> 2033-01-01 | AE3: =Inputs!AE3 -> 2034-01-01 | AF3: =Inputs!AF3 -> 2035-01-01 | AG3: =Inputs!AG3 -> 2036-01-01 | AH3: =Inputs!AH3 -> 2037-01-01 | AI3: =Inputs!AI3 -> 2038-01-01 | AJ3: =Inputs!AJ3 -> 2039-01-01 | AK3: =Inputs!AK3 -> 2040-01-01 | AL3: =Inputs!AL3 -> 2041-01-01 | AM3: =Inputs!AM3 -> 2042-01-01 | AN3: =Inputs!AN3 -> 2043-01-01 | AO3: =Inputs!AO3 -> 2044-01-01 | AP3: =Inputs!AP3 -> 2045-01-01 | AQ3: =Inputs!AQ3 -> 2046-01-01 | AR3: =Inputs!AR3 -> 2047-01-01 | AS3: =Inputs!AS3 -> 2048-01-01 | AT3: =Inputs!AT3 -> 2049-01-01 | AU3: =Inputs!AU3 -> 2050-01-01 | AV3: =Inputs!AV3 -> 2051-01-01 | AW3: =Inputs!AW3 -> 2052-01-01 | AX3: =Inputs!AX3 -> 2053-01-01 | AY3: =Inputs!AY3 -> 2054-01-01 | AZ3: =Inputs!AZ3 -> 2055-01-01 | BA3: =Inputs!BA3 -> 2056-01-01 | BB3: =Inputs!BB3 -> 2057-01-01
E4: Year ending | O4: =Inputs!O4 -> 2018-12-31 | P4: =Inputs!P4 -> 2019-12-31 | Q4: =Inputs!Q4 -> 2020-12-31 | R4: =Inputs!R4 -> 2021-12-31 | S4: =Inputs!S4 -> 2022-12-31 | T4: =Inputs!T4 -> 2023-12-31 | U4: =Inputs!U4 -> 2024-12-31 | V4: =Inputs!V4 -> 2025-12-31 | W4: =Inputs!W4 -> 2026-12-31 | X4: =Inputs!X4 -> 2027-12-31 | Y4: =Inputs!Y4 -> 2028-12-31 | Z4: =Inputs!Z4 -> 2029-12-31 | AA4: =Inputs!AA4 -> 2030-12-31 | AB4: =Inputs!AB4 -> 2031-12-31 | AC4: =Inputs!AC4 -> 2032-12-31 | AD4: =Inputs!AD4 -> 2033-12-31 | AE4: =Inputs!AE4 -> 2034-12-31 | AF4: =Inputs!AF4 -> 2035-12-31 | AG4: =Inputs!AG4 -> 2036-12-31 | AH4: =Inputs!AH4 -> 2037-12-31 | AI4: =Inputs!AI4 -> 2038-12-31 | AJ4: =Inputs!AJ4 -> 2039-12-31 | AK4: =Inputs!AK4 -> 2040-12-31 | AL4: =Inputs!AL4 -> 2041-12-31 | AM4: =Inputs!AM4 -> 2042-12-31 | AN4: =Inputs!AN4 -> 2043-12-31 | AO4: =Inputs!AO4 -> 2044-12-31 | AP4: =Inputs!AP4 -> 2045-12-31 | AQ4: =Inputs!AQ4 -> 2046-12-31 | AR4: =Inputs!AR4 -> 2047-12-31 | AS4: =Inputs!AS4 -> 2048-12-31 | AT4: =Inputs!AT4 -> 2049-12-31 | AU4: =Inputs!AU4 -> 2050-12-31 | AV4: =Inputs!AV4 -> 2051-12-31 | AW4: =Inputs!AW4 -> 2052-12-31 | AX4: =Inputs!AX4 -> 2053-12-31 | AY4: =Inputs!AY4 -> 2054-12-31 | AZ4: =Inputs!AZ4 -> 2055-12-31 | BA4: =Inputs!BA4 -> 2056-12-31 | BB4: =Inputs!BB4 -> 2057-12-31
E5: Operational year | O5: =Inputs!O5 -> 0 | P5: =Inputs!P5 -> 1 | Q5: =Inputs!Q5 -> 2 | R5: =Inputs!R5 -> 3 | S5: =Inputs!S5 -> 4 | T5: =Inputs!T5 -> 5 | U5: =Inputs!U5 -> 6 | V5: =Inputs!V5 -> 7 | W5: =Inputs!W5 -> 8 | X5: =Inputs!X5 -> 9 | Y5: =Inputs!Y5 -> 10 | Z5: =Inputs!Z5 -> 11 | AA5: =Inputs!AA5 -> 12 | AB5: =Inputs!AB5 -> 13 | AC5: =Inputs!AC5 -> 14 | AD5: =Inputs!AD5 -> 15 | AE5: =Inputs!AE5 -> 16 | AF5: =Inputs!AF5 -> 17 | AG5: =Inputs!AG5 -> 18 | AH5: =Inputs!AH5 -> 19 | AI5: =Inputs!AI5 -> 20 | AJ5: =Inputs!AJ5 -> 21 | AK5: =Inputs!AK5 -> 22 | AL5: =Inputs!AL5 -> 23 | AM5: =Inputs!AM5 -> 24 | AN5: =Inputs!AN5 -> 25 | AO5: =Inputs!AO5 -> 26 | AP5: =Inputs!AP5 -> 27 | AQ5: =Inputs!AQ5 -> 28 | AR5: =Inputs!AR5 -> 29 | AS5: =Inputs!AS5 -> 30 | AT5: =Inputs!AT5 -> 31 | AU5: =Inputs!AU5 -> 32 | AV5: =Inputs!AV5 -> 33 | AW5: =Inputs!AW5 -> 34 | AX5: =Inputs!AX5 -> 35 | AY5: =Inputs!AY5 -> 36 | AZ5: =Inputs!AZ5 -> 37 | BA5: =Inputs!BA5 -> 38 | BB5: =Inputs!BB5 -> 39
B7: Decommissioning costs
C9: Original decommissioning costs allowance from PCR stage
E11: Decommissioning costs (baseline) | G11: =Inputs!$I$11 -> £m 13/14 prices | P11: =Inputs!P34 -> 0.0003004123828 | Q11: =Inputs!Q34 -> 0.0006023268275 | R11: =Inputs!R34 -> 0.001522645135 | S11: =Inputs!S34 -> 0.002478395103 | T11: =Inputs!T34 -> 0.003471273212 | U11: =Inputs!U34 -> 0.004503060766 | V11: =Inputs!V34 -> 0.005575628134 | W11: =Inputs!W34 -> 0.006690939203 | X11: =Inputs!X34 -> 0.007851056056 | Y11: =Inputs!Y34 -> 0.009058143879 | Z11: =Inputs!Z34 -> 0.01125683427 | AA11: =Inputs!AA34 -> 0.0135589859 | AB11: =Inputs!AB34 -> 0.01596969671 | AC11: =Inputs!AC34 -> 0.01849431958 | AD11: =Inputs!AD34 -> 0.02113847498 | AE11: =Inputs!AE34 -> 0.02390806446 | AF11: =Inputs!AF34 -> 0.02680928461 | AG11: =Inputs!AG34 -> 0.02984864185 | AH11: =Inputs!AH34 -> 0.03303296795 | AI11: =Inputs!AI34 -> 0.03636943624 | AJ11: =Inputs!AJ34 -> 0.03800590639 | AK11: =Inputs!AK34 -> 0.03972269799 | AL11: =Inputs!AL34 -> 0.0415238271 | AM11: =Inputs!AM34 -> 0.04341351061 | AN11: =Inputs!AN34 -> 11.35738881 | AO11: =Inputs!AO34 -> 0 | AP11: =Inputs!AP34 -> 0 | AQ11: =Inputs!AQ34 -> 0 | AR11: =Inputs!AR34 -> 0 | AS11: =Inputs!AS34 -> 0 | AT11: =Inputs!AT34 -> 0 | AU11: =Inputs!AU34 -> 0 | AV11: =Inputs!AV34 -> 0 | AW11: =Inputs!AW34 -> 0 | AX11: =Inputs!AX34 -> 0 | AY11: =Inputs!AY34 -> 0 | AZ11: =Inputs!AZ34 -> 0 | BA11: =Inputs!BA34 -> 0 | BB11: =Inputs!BB34 -> 0
C13: Revised decommissioning costs allowance from latest DC submission
E15: Decommissioning costs (latest DC submission) | G15: =Inputs!$I$11 -> £m 13/14 prices | P15: =Inputs!P177 -> 0.01 | Q15: =Inputs!Q177 -> 0.01 | R15: =Inputs!R177 -> 0.01 | S15: =Inputs!S177 -> 0.01 | T15: =Inputs!T177 -> 0.01 | U15: =Inputs!U177 -> 0.01 | V15: =Inputs!V177 -> 0.01 | W15: =Inputs!W177 -> 0.01 | X15: =Inputs!X177 -> 0.01 | Y15: =Inputs!Y177 -> 0.01 | Z15: =Inputs!Z177 -> 0.01 | AA15: =Inputs!AA177 -> 0.01 | AB15: =Inputs!AB177 -> 0.01 | AC15: =Inputs!AC177 -> 0.01 | AD15: =Inputs!AD177 -> 0.01 | AE15: =Inputs!AE177 -> 0.01 | AF15: =Inputs!AF177 -> 0.01 | AG15: =Inputs!AG177 -> 0.01 | AH15: =Inputs!AH177 -> 0.01 | AI15: =Inputs!AI177 -> 0.01 | AJ15: =Inputs!AJ177 -> 0.01 | AK15: =Inputs!AK177 -> 0.01 | AL15: =Inputs!AL177 -> 0.01 | AM15: =Inputs!AM177 -> 0.01 | AN15: =Inputs!AN177 -> 15 | AO15: =Inputs!AO177 -> 0 | AP15: =Inputs!AP177 -> 0 | AQ15: =Inputs!AQ177 -> 0 | AR15: =Inputs!AR177 -> 0 | AS15: =Inputs!AS177 -> 0 | AT15: =Inputs!AT177 -> 0 | AU15: =Inputs!AU177 -> 0 | AV15: =Inputs!AV177 -> 0 | AW15: =Inputs!AW177 -> 0 | AX15: =Inputs!AX177 -> 0 | AY15: =Inputs!AY177 -> 0 | AZ15: =Inputs!AZ177 -> 0 | BA15: =Inputs!BA177 -> 0 | BB15: =Inputs!BB177 -> 0
C17: All DCC adjustments (Cap)
E19: First DCCt adjustment
E20: Value | G20: =Inputs!$I$11 -> £m 13/14 prices | I20: =Inputs!I186 -> 1.269872319
E21: Activity flag | G21: flag | P21: =Inputs!P207 -> 0 | Q21: =Inputs!Q207 -> 0 | R21: =Inputs!R207 -> 0 | S21: =Inputs!S207 -> 0 | T21: =Inputs!T207 -> 0 | U21: =Inputs!U207 -> 0 | V21: =Inputs!V207 -> 0 | W21: =Inputs!W207 -> 0 | X21: =Inputs!X207 -> 0 | Y21: =Inputs!Y207 -> 0 | Z21: =Inputs!Z207 -> 0 | AA21: =Inputs!AA207 -> 0 | AB21: =Inputs!AB207 -> 0 | AC21: =Inputs!AC207 -> 0 | AD21: =Inputs!AD207 -> 0 | AE21: =Inputs!AE207 -> 0 | AF21: =Inputs!AF207 -> 0 | AG21: =Inputs!AG207 -> 0 | AH21: =Inputs!AH207 -> 0 | AI21: =Inputs!AI207 -> 0.5859000684 | AJ21: =Inputs!AJ207 -> 1 | AK21: =Inputs!AK207 -> 1 | AL21: =Inputs!AL207 -> 0.4134154689 | AM21: =Inputs!AM207 -> 0 | AN21: =Inputs!AN207 -> 0 | AO21: =Inputs!AO207 -> 0 | AP21: =Inputs!AP207 -> 0 | AQ21: =Inputs!AQ207 -> 0 | AR21: =Inputs!AR207 -> 0 | AS21: =Inputs!AS207 -> 0 | AT21: =Inputs!AT207 -> 0 | AU21: =Inputs!AU207 -> 0 | AV21: =Inputs!AV207 -> 0 | AW21: =Inputs!AW207 -> 0 | AX21: =Inputs!AX207 -> 0 | AY21: =Inputs!AY207 -> 0 | AZ21: =Inputs!AZ207 -> 0 | BA21: =Inputs!BA207 -> 0 | BB21: =Inputs!BB207 -> 0
E23: Second DCCt adjustment
E24: Value | G24: =Inputs!$I$11 -> £m 13/14 prices | I24: =Inputs!I191 -> 0
E25: Activity flag | G25: flag | P25: =Inputs!P208 -> 0 | Q25: =Inputs!Q208 -> 0 | R25: =Inputs!R208 -> 0 | S25: =Inputs!S208 -> 0 | T25: =Inputs!T208 -> 0 | U25: =Inputs!U208 -> 0 | V25: =Inputs!V208 -> 0 | W25: =Inputs!W208 -> 0 | X25: =Inputs!X208 -> 0 | Y25: =Inputs!Y208 -> 0 | Z25: =Inputs!Z208 -> 0 | AA25: =Inputs!AA208 -> 0 | AB25: =Inputs!AB208 -> 0 | AC25: =Inputs!AC208 -> 0 | AD25: =Inputs!AD208 -> 0 | AE25: =Inputs!AE208 -> 0 | AF25: =Inputs!AF208 -> 0 | AG25: =Inputs!AG208 -> 0 | AH25: =Inputs!AH208 -> 0 | AI25: =Inputs!AI208 -> 0 | AJ25: =Inputs!AJ208 -> 0 | AK25: =Inputs!AK208 -> 0 | AL25: =Inputs!AL208 -> 0 | AM25: =Inputs!AM208 -> 0 | AN25: =Inputs!AN208 -> 0 | AO25: =Inputs!AO208 -> 0 | AP25: =Inputs!AP208 -> 0 | AQ25: =Inputs!AQ208 -> 0 | AR25: =Inputs!AR208 -> 0 | AS25: =Inputs!AS208 -> 0 | AT25: =Inputs!AT208 -> 0 | AU25: =Inputs!AU208 -> 0 | AV25: =Inputs!AV208 -> 0 | AW25: =Inputs!AW208 -> 0 | AX25: =Inputs!AX208 -> 0 | AY25: =Inputs!AY208 -> 0 | AZ25: =Inputs!AZ208 -> 0 | BA25: =Inputs!BA208 -> 0 | BB25: =Inputs!BB208 -> 0
E27: Third DCCt adjustment
E28: Value | G28: =Inputs!$I$11 -> £m 13/14 prices | I28: =Inputs!I196 -> 0
E29: Activity flag | G29: flag | P29: =Inputs!P209 -> 0 | Q29: =Inputs!Q209 -> 0 | R29: =Inputs!R209 -> 0 | S29: =Inputs!S209 -> 0 | T29: =Inputs!T209 -> 0 | U29: =Inputs!U209 -> 0 | V29: =Inputs!V209 -> 0 | W29: =Inputs!W209 -> 0 | X29: =Inputs!X209 -> 0 | Y29: =Inputs!Y209 -> 0 | Z29: =Inputs!Z209 -> 0 | AA29: =Inputs!AA209 -> 0 | AB29: =Inputs!AB209 -> 0 | AC29: =Inputs!AC209 -> 0 | AD29: =Inputs!AD209 -> 0 | AE29: =Inputs!AE209 -> 0 | AF29: =Inputs!AF209 -> 0 | AG29: =Inputs!AG209 -> 0 | AH29: =Inputs!AH209 -> 0 | AI29: =Inputs!AI209 -> 0 | AJ29: =Inputs!AJ209 -> 0 | AK29: =Inputs!AK209 -> 0 | AL29: =Inputs!AL209 -> 0 | AM29: =Inputs!AM209 -> 0 | AN29: =Inputs!AN209 -> 0 | AO29: =Inputs!AO209 -> 0 | AP29: =Inputs!AP209 -> 0 | AQ29: =Inputs!AQ209 -> 0 | AR29: =Inputs!AR209 -> 0 | AS29: =Inputs!AS209 -> 0 | AT29: =Inputs!AT209 -> 0 | AU29: =Inputs!AU209 -> 0 | AV29: =Inputs!AV209 -> 0 | AW29: =Inputs!AW209 -> 0 | AX29: =Inputs!AX209 -> 0 | AY29: =Inputs!AY209 -> 0 | AZ29: =Inputs!AZ209 -> 0 | BA29: =Inputs!BA209 -> 0 | BB29: =Inputs!BB209 -> 0
E31: Fourth DCCt adjustment
E32: Value | G32: =Inputs!$I$11 -> £m 13/14 prices | I32: =Inputs!I201 -> 0
E33: Activity flag | G33: flag | P33: =Inputs!P210 -> 0 | Q33: =Inputs!Q210 -> 0 | R33: =Inputs!R210 -> 0 | S33: =Inputs!S210 -> 0 | T33: =Inputs!T210 -> 0 | U33: =Inputs!U210 -> 0 | V33: =Inputs!V210 -> 0 | W33: =Inputs!W210 -> 0 | X33: =Inputs!X210 -> 0 | Y33: =Inputs!Y210 -> 0 | Z33: =Inputs!Z210 -> 0 | AA33: =Inputs!AA210 -> 0 | AB33: =Inputs!AB210 -> 0 | AC33: =Inputs!AC210 -> 0 | AD33: =Inputs!AD210 -> 0 | AE33: =Inputs!AE210 -> 0 | AF33: =Inputs!AF210 -> 0 | AG33: =Inputs!AG210 -> 0 | AH33: =Inputs!AH210 -> 0 | AI33: =Inputs!AI210 -> 0 | AJ33: =Inputs!AJ210 -> 0 | AK33: =Inputs!AK210 -> 0 | AL33: =Inputs!AL210 -> 0 | AM33: =Inputs!AM210 -> 0 | AN33: =Inputs!AN210 -> 0 | AO33: =Inputs!AO210 -> 0 | AP33: =Inputs!AP210 -> 0 | AQ33: =Inputs!AQ210 -> 0 | AR33: =Inputs!AR210 -> 0 | AS33: =Inputs!AS210 -> 0 | AT33: =Inputs!AT210 -> 0 | AU33: =Inputs!AU210 -> 0 | AV33: =Inputs!AV210 -> 0 | AW33: =Inputs!AW210 -> 0 | AX33: =Inputs!AX210 -> 0 | AY33: =Inputs!AY210 -> 0 | AZ33: =Inputs!AZ210 -> 0 | BA33: =Inputs!BA210 -> 0 | BB33: =Inputs!BB210 -> 0
C35: All DCF adjustments (Floor)
E37: First DCFt adjustment
E38: Value | G38: =Inputs!$I$11 -> £m 13/14 prices | I38: =Inputs!I187 -> 1.474327566
E39: Activity flag | G39: flag | P39: =Inputs!P207 -> 0 | Q39: =Inputs!Q207 -> 0 | R39: =Inputs!R207 -> 0 | S39: =Inputs!S207 -> 0 | T39: =Inputs!T207 -> 0 | U39: =Inputs!U207 -> 0 | V39: =Inputs!V207 -> 0 | W39: =Inputs!W207 -> 0 | X39: =Inputs!X207 -> 0 | Y39: =Inputs!Y207 -> 0 | Z39: =Inputs!Z207 -> 0 | AA39: =Inputs!AA207 -> 0 | AB39: =Inputs!AB207 -> 0 | AC39: =Inputs!AC207 -> 0 | AD39: =Inputs!AD207 -> 0 | AE39: =Inputs!AE207 -> 0 | AF39: =Inputs!AF207 -> 0 | AG39: =Inputs!AG207 -> 0 | AH39: =Inputs!AH207 -> 0 | AI39: =Inputs!AI207 -> 0.5859000684 | AJ39: =Inputs!AJ207 -> 1 | AK39: =Inputs!AK207 -> 1 | AL39: =Inputs!AL207 -> 0.4134154689 | AM39: =Inputs!AM207 -> 0 | AN39: =Inputs!AN207 -> 0 | AO39: =Inputs!AO207 -> 0 | AP39: =Inputs!AP207 -> 0 | AQ39: =Inputs!AQ207 -> 0 | AR39: =Inputs!AR207 -> 0 | AS39: =Inputs!AS207 -> 0 | AT39: =Inputs!AT207 -> 0 | AU39: =Inputs!AU207 -> 0 | AV39: =Inputs!AV207 -> 0 | AW39: =Inputs!AW207 -> 0 | AX39: =Inputs!AX207 -> 0 | AY39: =Inputs!AY207 -> 0 | AZ39: =Inputs!AZ207 -> 0 | BA39: =Inputs!BA207 -> 0 | BB39: =Inputs!BB207 -> 0
E41: Second DCFt adjustment
E42: Value | G42: =Inputs!$I$11 -> £m 13/14 prices | I42: =Inputs!I192 -> 0
E43: Activity flag | G43: flag | P43: =Inputs!P208 -> 0 | Q43: =Inputs!Q208 -> 0 | R43: =Inputs!R208 -> 0 | S43: =Inputs!S208 -> 0 | T43: =Inputs!T208 -> 0 | U43: =Inputs!U208 -> 0 | V43: =Inputs!V208 -> 0 | W43: =Inputs!W208 -> 0 | X43: =Inputs!X208 -> 0 | Y43: =Inputs!Y208 -> 0 | Z43: =Inputs!Z208 -> 0 | AA43: =Inputs!AA208 -> 0 | AB43: =Inputs!AB208 -> 0 | AC43: =Inputs!AC208 -> 0 | AD43: =Inputs!AD208 -> 0 | AE43: =Inputs!AE208 -> 0 | AF43: =Inputs!AF208 -> 0 | AG43: =Inputs!AG208 -> 0 | AH43: =Inputs!AH208 -> 0 | AI43: =Inputs!AI208 -> 0 | AJ43: =Inputs!AJ208 -> 0 | AK43: =Inputs!AK208 -> 0 | AL43: =Inputs!AL208 -> 0 | AM43: =Inputs!AM208 -> 0 | AN43: =Inputs!AN208 -> 0 | AO43: =Inputs!AO208 -> 0 | AP43: =Inputs!AP208 -> 0 | AQ43: =Inputs!AQ208 -> 0 | AR43: =Inputs!AR208 -> 0 | AS43: =Inputs!AS208 -> 0 | AT43: =Inputs!AT208 -> 0 | AU43: =Inputs!AU208 -> 0 | AV43: =Inputs!AV208 -> 0 | AW43: =Inputs!AW208 -> 0 | AX43: =Inputs!AX208 -> 0 | AY43: =Inputs!AY208 -> 0 | AZ43: =Inputs!AZ208 -> 0 | BA43: =Inputs!BA208 -> 0 | BB43: =Inputs!BB208 -> 0
E45: Third DCFt adjustment
E46: Value | G46: =Inputs!$I$11 -> £m 13/14 prices | I46: =Inputs!I197 -> 0
E47: Activity flag | G47: flag | P47: =Inputs!P209 -> 0 | Q47: =Inputs!Q209 -> 0 | R47: =Inputs!R209 -> 0 | S47: =Inputs!S209 -> 0 | T47: =Inputs!T209 -> 0 | U47: =Inputs!U209 -> 0 | V47: =Inputs!V209 -> 0 | W47: =Inputs!W209 -> 0 | X47: =Inputs!X209 -> 0 | Y47: =Inputs!Y209 -> 0 | Z47: =Inputs!Z209 -> 0 | AA47: =Inputs!AA209 -> 0 | AB47: =Inputs!AB209 -> 0 | AC47: =Inputs!AC209 -> 0 | AD47: =Inputs!AD209 -> 0 | AE47: =Inputs!AE209 -> 0 | AF47: =Inputs!AF209 -> 0 | AG47: =Inputs!AG209 -> 0 | AH47: =Inputs!AH209 -> 0 | AI47: =Inputs!AI209 -> 0 | AJ47: =Inputs!AJ209 -> 0 | AK47: =Inputs!AK209 -> 0 | AL47: =Inputs!AL209 -> 0 | AM47: =Inputs!AM209 -> 0 | AN47: =Inputs!AN209 -> 0 | AO47: =Inputs!AO209 -> 0 | AP47: =Inputs!AP209 -> 0 | AQ47: =Inputs!AQ209 -> 0 | AR47: =Inputs!AR209 -> 0 | AS47: =Inputs!AS209 -> 0 | AT47: =Inputs!AT209 -> 0 | AU47: =Inputs!AU209 -> 0 | AV47: =Inputs!AV209 -> 0 | AW47: =Inputs!AW209 -> 0 | AX47: =Inputs!AX209 -> 0 | AY47: =Inputs!AY209 -> 0 | AZ47: =Inputs!AZ209 -> 0 | BA47: =Inputs!BA209 -> 0 | BB47: =Inputs!BB209 -> 0
E49: Fourth DCFt adjustment
E50: Value | G50: =Inputs!$I$11 -> £m 13/14 prices | I50: =Inputs!I202 -> 0
E51: Activity flag | G51: flag | P51: =Inputs!P210 -> 0 | Q51: =Inputs!Q210 -> 0 | R51: =Inputs!R210 -> 0 | S51: =Inputs!S210 -> 0 | T51: =Inputs!T210 -> 0 | U51: =Inputs!U210 -> 0 | V51: =Inputs!V210 -> 0 | W51: =Inputs!W210 -> 0 | X51: =Inputs!X210 -> 0 | Y51: =Inputs!Y210 -> 0 | Z51: =Inputs!Z210 -> 0 | AA51: =Inputs!AA210 -> 0 | AB51: =Inputs!AB210 -> 0 | AC51: =Inputs!AC210 -> 0 | AD51: =Inputs!AD210 -> 0 | AE51: =Inputs!AE210 -> 0 | AF51: =Inputs!AF210 -> 0 | AG51: =Inputs!AG210 -> 0 | AH51: =Inputs!AH210 -> 0 | AI51: =Inputs!AI210 -> 0 | AJ51: =Inputs!AJ210 -> 0 | AK51: =Inputs!AK210 -> 0 | AL51: =Inputs!AL210 -> 0 | AM51: =Inputs!AM210 -> 0 | AN51: =Inputs!AN210 -> 0 | AO51: =Inputs!AO210 -> 0 | AP51: =Inputs!AP210 -> 0 | AQ51: =Inputs!AQ210 -> 0 | AR51: =Inputs!AR210 -> 0 | AS51: =Inputs!AS210 -> 0 | AT51: =Inputs!AT210 -> 0 | AU51: =Inputs!AU210 -> 0 | AV51: =Inputs!AV210 -> 0 | AW51: =Inputs!AW210 -> 0 | AX51: =Inputs!AX210 -> 0 | AY51: =Inputs!AY210 -> 0 | AZ51: =Inputs!AZ210 -> 0 | BA51: =Inputs!BA210 -> 0 | BB51: =Inputs!BB210 -> 0
C53: NPV comparisons
E55: =Inputs!E175 -> Current DC Cap and Floor effective flag | G55: flag | P55: =Inputs!P175 -> 0 | Q55: =Inputs!Q175 -> 0 | R55: =Inputs!R175 -> 0 | S55: =Inputs!S175 -> 0 | T55: =Inputs!T175 -> 0 | U55: =Inputs!U175 -> 0 | V55: =Inputs!V175 -> 0 | W55: =Inputs!W175 -> 0 | X55: =Inputs!X175 -> 0 | Y55: =Inputs!Y175 -> 0 | Z55: =Inputs!Z175 -> 0 | AA55: =Inputs!AA175 -> 0 | AB55: =Inputs!AB175 -> 0 | AC55: =Inputs!AC175 -> 0 | AD55: =Inputs!AD175 -> 0 | AE55: =Inputs!AE175 -> 0 | AF55: =Inputs!AF175 -> 0 | AG55: =Inputs!AG175 -> 0 | AH55: =Inputs!AH175 -> 0 | AI55: =Inputs!AI175 -> 0 | AJ55: =Inputs!AJ175 -> 0 | AK55: =Inputs!AK175 -> 0 | AL55: =Inputs!AL175 -> 0.5859000684 | AM55: =Inputs!AM175 -> 1 | AN55: =Inputs!AN175 -> 1.082819986 | AO55: =Inputs!AO175 -> 0 | AP55: =Inputs!AP175 -> 0 | AQ55: =Inputs!AQ175 -> 0 | AR55: =Inputs!AR175 -> 0 | AS55: =Inputs!AS175 -> 0 | AT55: =Inputs!AT175 -> 0 | AU55: =Inputs!AU175 -> 0 | AV55: =Inputs!AV175 -> 0 | AW55: =Inputs!AW175 -> 0 | AX55: =Inputs!AX175 -> 0 | AY55: =Inputs!AY175 -> 0 | AZ55: =Inputs!AZ175 -> 0 | BA55: =Inputs!BA175 -> 0 | BB55: =Inputs!BB175 -> 0
E56: Cap real return | G56: real annual % | I56: =Inputs!I40 -> 0.0734
E57: Discount factor to start of operational period (cap) | G57: scalar | O57: =(1 + $I56) ^ -O$5 -> 1 | P57: 0.9316191541 | Q57: =(1 + $I56) ^ -Q$5 -> 0.8679142483 | R57: 0.8085655378 | S57: =(1 + $I56) ^ -S$5 -> 0.7532751423 | T57: 0.7017655509 | U57: =(1 + $I56) ^ -U$5 -> 0.6537782289 | V57: 0.6090723206 | W57: =(1 + $I56) ^ -W$5 -> 0.5674234401 | X57: 0.5286225453 | Y57: =(1 + $I56) ^ -Y$5 -> 0.4924748884 | Z57: =(1 + $I56) ^ -Z$5 -> 0.458799039 | AA57: =(1 + $I56) ^ -AA$5 -> 0.4274259726 | AB57: =(1 + $I56) ^ -AB$5 -> 0.398198223 | AC57: =(1 + $I56) ^ -AC$5 -> 0.3709690917 | AD57: =(1 + $I56) ^ -AD$5 -> 0.3456019114 | AE57: =(1 + $I56) ^ -AE$5 -> 0.3219693603 | AF57: =(1 + $I56) ^ -AF$5 -> 0.2999528231 | AG57: =(1 + $I56) ^ -AG$5 -> 0.2794417953 | AH57: =(1 + $I56) ^ -AH$5 -> 0.260333329 | AI57: =(1 + $I56) ^ -AI$5 -> 0.2425315157 | AJ57: =(1 + $I56) ^ -AJ$5 -> 0.2259470055 | AK57: =(1 + $I56) ^ -AK$5 -> 0.2104965582 | AL57: =(1 + $I56) ^ -AL$5 -> 0.1961026255 | AM57: =(1 + $I56) ^ -AM$5 -> 0.182692962 | AN57: =(1 + $I56) ^ -AN$5 -> 0.1702002628 | AO57: =(1 + $I56) ^ -AO$5 -> 0.1585618248 | AP57: =(1 + $I56) ^ -AP$5 -> 0.1477192331 | AQ57: =(1 + $I56) ^ -AQ$5 -> 0.137618067 | AR57: =(1 + $I56) ^ -AR$5 -> 0.1282076272 | AS57: =(1 + $I56) ^ -AS$5 -> 0.1194406812 | AT57: =(1 + $I56) ^ -AT$5 -> 0.1112732263 | AU57: =(1 + $I56) ^ -AU$5 -> 0.103664269 | AV57: =(1 + $I56) ^ -AV$5 -> 0.0965756186 | AW57: =(1 + $I56) ^ -AW$5 -> 0.0899716961 | AX57: =(1 + $I56) ^ -AX$5 -> 0.08381935542 | AY57: =(1 + $I56) ^ -AY$5 -> 0.07808771699 | AZ57: =(1 + $I56) ^ -AZ$5 -> 0.07274801285 | BA57: =(1 + $I56) ^ -BA$5 -> 0.06777344219 | BB57: =(1 + $I56) ^ -BB$5 -> 0.06313903688
E59: NPV of original allowance at Cap rate | G59: =Inputs!$I$11 -> £m 13/14 prices | I59: =SUMPRODUCT($O$57:$BB$57,O11:BB11) -> 2.06412406
E60: NPV of first DCCt adjustment | G60: =Inputs!$I$11 -> £m 13/14 prices | I60: =SUMPRODUCT($O$57:$BB$57,O21:BB21)*I20 -> 0.8376263909
E61: NPV of second DCCt adjustment | G61: =Inputs!$I$11 -> £m 13/14 prices | I61: =SUMPRODUCT($O$57:$BB$57,O25:BB25)*I24 -> 0
E62: NPV of third DCCt adjustment | G62: =Inputs!$I$11 -> £m 13/14 prices | I62: =SUMPRODUCT($O$57:$BB$57,O29:BB29)*I28 -> 0
E63: NPV of fourth DCCt adjustment | G63: =Inputs!$I$11 -> £m 13/14 prices | I63: =SUMPRODUCT($O$57:$BB$57,O33:BB33)*I32 -> 0
E64: NPV of revised allowance at Cap rate | G64: =Inputs!$I$11 -> £m 13/14 prices | I64: =SUMPRODUCT($O$57:$BB$57,O15:BB15) -> 2.664353674
E65: Difference in NPV | G65: =Inputs!$I$11 -> £m 13/14 prices | I65: =I64-(I59+I60+I61+I62+I63) -> -0.2373967771
E67: Amendment to Cap rate | G67: =Inputs!$I$11 -> £m 13/14 prices | H67: DCCt | I67: =I65/SUMPRODUCT($O$55:$BB$55,$O$57:$BB$57) -> -0.4926412061
E69: Floor real return | G69: real annual % | I69: =Inputs!I41 -> 0.0042
E70: Discount factor to start of operational period (floor) | G70: scalar | O70: =(1 + $I69) ^ -O$5 -> 1 | P70: 0.9958175662 | Q70: =(1 + $I69) ^ -Q$5 -> 0.9916526252 | R70: 0.9875051038 | S70: =(1 + $I69) ^ -S$5 -> 0.9833749291 | T70: 0.9792620285 | U70: =(1 + $I69) ^ -U$5 -> 0.97516633 | V70: 0.9710877614 | W70: =(1 + $I69) ^ -W$5 -> 0.9670262511 | X70: 0.9629817278 | Y70: =(1 + $I69) ^ -Y$5 -> 0.9589541205 | Z70: =(1 + $I69) ^ -Z$5 -> 0.9549433584 | AA70: =(1 + $I69) ^ -AA$5 -> 0.9509493711 | AB70: =(1 + $I69) ^ -AB$5 -> 0.9469720883 | AC70: =(1 + $I69) ^ -AC$5 -> 0.9430114403 | AD70: =(1 + $I69) ^ -AD$5 -> 0.9390673574 | AE70: =(1 + $I69) ^ -AE$5 -> 0.9351397703 | AF70: =(1 + $I69) ^ -AF$5 -> 0.9312286102 | AG70: =(1 + $I69) ^ -AG$5 -> 0.9273338082 | AH70: =(1 + $I69) ^ -AH$5 -> 0.9234552959 | AI70: =(1 + $I69) ^ -AI$5 -> 0.9195930053 | AJ70: =(1 + $I69) ^ -AJ$5 -> 0.9157468684 | AK70: =(1 + $I69) ^ -AK$5 -> 0.9119168178 | AL70: =(1 + $I69) ^ -AL$5 -> 0.9081027861 | AM70: =(1 + $I69) ^ -AM$5 -> 0.9043047063 | AN70: =(1 + $I69) ^ -AN$5 -> 0.9005225118 | AO70: =(1 + $I69) ^ -AO$5 -> 0.896756136 | AP70: =(1 + $I69) ^ -AP$5 -> 0.8930055129 | AQ70: =(1 + $I69) ^ -AQ$5 -> 0.8892705764 | AR70: =(1 + $I69) ^ -AR$5 -> 0.8855512612 | AS70: =(1 + $I69) ^ -AS$5 -> 0.8818475016 | AT70: =(1 + $I69) ^ -AT$5 -> 0.8781592329 | AU70: =(1 + $I69) ^ -AU$5 -> 0.87448639 | AV70: =(1 + $I69) ^ -AV$5 -> 0.8708289086 | AW70: =(1 + $I69) ^ -AW$5 -> 0.8671867244 | AX70: =(1 + $I69) ^ -AX$5 -> 0.8635597733 | AY70: =(1 + $I69) ^ -AY$5 -> 0.8599479918 | AZ70: =(1 + $I69) ^ -AZ$5 -> 0.8563513162 | BA70: =(1 + $I69) ^ -BA$5 -> 0.8527696836 | BB70: =(1 + $I69) ^ -BB$5 -> 0.8492030308
E72: NPV of original allowance at Floor rate | G72: =Inputs!$I$11 -> £m 13/14 prices | I72: =SUMPRODUCT($O$70:$BB$70,O11:BB11) -> 10.6313475
E73: NPV of first DCFt adjustment | G73: =Inputs!$I$11 -> £m 13/14 prices | I73: =SUMPRODUCT($O$70:$BB$70,O39:BB39)*I38 -> 4.042424889
E74: NPV of second DCFt adjustment | G74: =Inputs!$I$11 -> £m 13/14 prices | I74: =SUMPRODUCT($O$70:$BB$70,O43:BB43)*I42 -> 0
E75: NPV of third DCFt adjustment | G75: =Inputs!$I$11 -> £m 13/14 prices | I75: =SUMPRODUCT($O$70:$BB$70,O47:BB47)*I46 -> 0
E76: NPV of fourth DCFt adjustment | G76: =Inputs!$I$11 -> £m 13/14 prices | I76: =SUMPRODUCT($O$70:$BB$70,O51:BB51)*I50 -> 0
E77: NPV of revised allowance at Floor rate | G77: =Inputs!$I$11 -> £m 13/14 prices | I77: =SUMPRODUCT($O$70:$BB$70,O15:BB15) -> 13.73568361
E78: Difference in NPV | G78: =Inputs!$I$11 -> £m 13/14 prices | I78: =I77-(I72+I73+I74+I75+I76) -> -0.9380887696
E80: Amendment to Floor rate | G80: =Inputs!$I$11 -> £m 13/14 prices | H80: DCFt | I80: =I78/SUMPRODUCT($O$55:$BB$55,$O$70:$BB$70) -> -0.3890118224
B82: End of sheet

Sheet Indexation
A1: Indexation | H1: Licence
E2: Parameter | G2: Units | H2: Terminology | I2: Constant | O2: Annual values
E3: Year commencing | O3: =Inputs!O3 -> 2018-01-01 | P3: =Inputs!P3 -> 2019-01-01 | Q3: =Inputs!Q3 -> 2020-01-01 | R3: =Inputs!R3 -> 2021-01-01 | S3: =Inputs!S3 -> 2022-01-01 | T3: =Inputs!T3 -> 2023-01-01 | U3: =Inputs!U3 -> 2024-01-01 | V3: =Inputs!V3 -> 2025-01-01 | W3: =Inputs!W3 -> 2026-01-01 | X3: =Inputs!X3 -> 2027-01-01 | Y3: =Inputs!Y3 -> 2028-01-01 | Z3: =Inputs!Z3 -> 2029-01-01 | AA3: =Inputs!AA3 -> 2030-01-01 | AB3: =Inputs!AB3 -> 2031-01-01 | AC3: =Inputs!AC3 -> 2032-01-01 | AD3: =Inputs!AD3 -> 2033-01-01 | AE3: =Inputs!AE3 -> 2034-01-01 | AF3: =Inputs!AF3 -> 2035-01-01 | AG3: =Inputs!AG3 -> 2036-01-01 | AH3: =Inputs!AH3 -> 2037-01-01 | AI3: =Inputs!AI3 -> 2038-01-01 | AJ3: =Inputs!AJ3 -> 2039-01-01 | AK3: =Inputs!AK3 -> 2040-01-01 | AL3: =Inputs!AL3 -> 2041-01-01 | AM3: =Inputs!AM3 -> 2042-01-01 | AN3: =Inputs!AN3 -> 2043-01-01 | AO3: =Inputs!AO3 -> 2044-01-01 | AP3: =Inputs!AP3 -> 2045-01-01 | AQ3: =Inputs!AQ3 -> 2046-01-01 | AR3: =Inputs!AR3 -> 2047-01-01 | AS3: =Inputs!AS3 -> 2048-01-01 | AT3: =Inputs!AT3 -> 2049-01-01 | AU3: =Inputs!AU3 -> 2050-01-01 | AV3: =Inputs!AV3 -> 2051-01-01 | AW3: =Inputs!AW3 -> 2052-01-01 | AX3: =Inputs!AX3 -> 2053-01-01 | AY3: =Inputs!AY3 -> 2054-01-01 | AZ3: =Inputs!AZ3 -> 2055-01-01 | BA3: =Inputs!BA3 -> 2056-01-01 | BB3: =Inputs!BB3 -> 2057-01-01
E4: Year ending | O4: =Inputs!O4 -> 2018-12-31 | P4: =Inputs!P4 -> 2019-12-31 | Q4: =Inputs!Q4 -> 2020-12-31 | R4: =Inputs!R4 -> 2021-12-31 | S4: =Inputs!S4 -> 2022-12-31 | T4: =Inputs!T4 -> 2023-12-31 | U4: =Inputs!U4 -> 2024-12-31 | V4: =Inputs!V4 -> 2025-12-31 | W4: =Inputs!W4 -> 2026-12-31 | X4: =Inputs!X4 -> 2027-12-31 | Y4: =Inputs!Y4 -> 2028-12-31 | Z4: =Inputs!Z4 -> 2029-12-31 | AA4: =Inputs!AA4 -> 2030-12-31 | AB4: =Inputs!AB4 -> 2031-12-31 | AC4: =Inputs!AC4 -> 2032-12-31 | AD4: =Inputs!AD4 -> 2033-12-31 | AE4: =Inputs!AE4 -> 2034-12-31 | AF4: =Inputs!AF4 -> 2035-12-31 | AG4: =Inputs!AG4 -> 2036-12-31 | AH4: =Inputs!AH4 -> 2037-12-31 | AI4: =Inputs!AI4 -> 2038-12-31 | AJ4: =Inputs!AJ4 -> 2039-12-31 | AK4: =Inputs!AK4 -> 2040-12-31 | AL4: =Inputs!AL4 -> 2041-12-31 | AM4: =Inputs!AM4 -> 2042-12-31 | AN4: =Inputs!AN4 -> 2043-12-31 | AO4: =Inputs!AO4 -> 2044-12-31 | AP4: =Inputs!AP4 -> 2045-12-31 | AQ4: =Inputs!AQ4 -> 2046-12-31 | AR4: =Inputs!AR4 -> 2047-12-31 | AS4: =Inputs!AS4 -> 2048-12-31 | AT4: =Inputs!AT4 -> 2049-12-31 | AU4: =Inputs!AU4 -> 2050-12-31 | AV4: =Inputs!AV4 -> 2051-12-31 | AW4: =Inputs!AW4 -> 2052-12-31 | AX4: =Inputs!AX4 -> 2053-12-31 | AY4: =Inputs!AY4 -> 2054-12-31 | AZ4: =Inputs!AZ4 -> 2055-12-31 | BA4: =Inputs!BA4 -> 2056-12-31 | BB4: =Inputs!BB4 -> 2057-12-31
E5: Operational year | O5: =Inputs!O5 -> 0 | P5: =Inputs!P5 -> 1 | Q5: =Inputs!Q5 -> 2 | R5: =Inputs!R5 -> 3 | S5: =Inputs!S5 -> 4 | T5: =Inputs!T5 -> 5 | U5: =Inputs!U5 -> 6 | V5: =Inputs!V5 -> 7 | W5: =Inputs!W5 -> 8 | X5: =Inputs!X5 -> 9 | Y5: =Inputs!Y5 -> 10 | Z5: =Inputs!Z5 -> 11 | AA5: =Inputs!AA5 -> 12 | AB5: =Inputs!AB5 -> 13 | AC5: =Inputs!AC5 -> 14 | AD5: =Inputs!AD5 -> 15 | AE5: =Inputs!AE5 -> 16 | AF5: =Inputs!AF5 -> 17 | AG5: =Inputs!AG5 -> 18 | AH5: =Inputs!AH5 -> 19 | AI5: =Inputs!AI5 -> 20 | AJ5: =Inputs!AJ5 -> 21 | AK5: =Inputs!AK5 -> 22 | AL5: =Inputs!AL5 -> 23 | AM5: =Inputs!AM5 -> 24 | AN5: =Inputs!AN5 -> 25 | AO5: =Inputs!AO5 -> 26 | AP5: =Inputs!AP5 -> 27 | AQ5: =Inputs!AQ5 -> 28 | AR5: =Inputs!AR5 -> 29 | AS5: =Inputs!AS5 -> 30 | AT5: =Inputs!AT5 -> 31 | AU5: =Inputs!AU5 -> 32 | AV5: =Inputs!AV5 -> 33 | AW5: =Inputs!AW5 -> 34 | AX5: =Inputs!AX5 -> 35 | AY5: =Inputs!AY5 -> 36 | AZ5: =Inputs!AZ5 -> 37 | BA5: =Inputs!BA5 -> 38 | BB5: =Inputs!BB5 -> 39
B7: Indexation
C9: PPPI indexation
E11: Indexation factor | G11: scalar | H11: PPPIt | O11: =Inputs!O144 -> 1.130441667 | P11: =Inputs!P144 -> 1.1407 | Q11: =Inputs!Q144 -> 1.1118 | R11: =Inputs!R144 -> 1.1118 | S11: =Inputs!S144 -> 1.1118 | T11: =Inputs!T144 -> 1.1118 | U11: =Inputs!U144 -> 1.1118 | V11: =Inputs!V144 -> 1.1118 | W11: =Inputs!W144 -> 1.1118 | X11: =Inputs!X144 -> 1.1118 | Y11: =Inputs!Y144 -> 1.1118 | Z11: =Inputs!Z144 -> 1.1118 | AA11: =Inputs!AA144 -> 1.1118 | AB11: =Inputs!AB144 -> 1.1118 | AC11: =Inputs!AC144 -> 1.1118 | AD11: =Inputs!AD144 -> 1.1118 | AE11: =Inputs!AE144 -> 1.1118 | AF11: =Inputs!AF144 -> 1.1118 | AG11: =Inputs!AG144 -> 1.1118 | AH11: =Inputs!AH144 -> 1.1118 | AI11: =Inputs!AI144 -> 1.1118 | AJ11: =Inputs!AJ144 -> 1.1118 | AK11: =Inputs!AK144 -> 1.1118 | AL11: =Inputs!AL144 -> 1.1118 | AM11: =Inputs!AM144 -> 1.1118 | AN11: =Inputs!AN144 -> 1.1118 | AO11: =Inputs!AO144 -> 1.1118 | AP11: =Inputs!AP144 -> 1.1118 | AQ11: =Inputs!AQ144 -> 1.1118 | AR11: =Inputs!AR144 -> 2.327383874 | AS11: =Inputs!AS144 -> 2.387078328 | AT11: =Inputs!AT144 -> 2.448361075 | AU11: =Inputs!AU144 -> 2.511275712 | AV11: =Inputs!AV144 -> 2.575867064 | AW11: =Inputs!AW144 -> 2.642181218 | AX11: =Inputs!AX144 -> 2.71026556 | AY11: =Inputs!AY144 -> 2.78016881 | AZ11: =Inputs!AZ144 -> 2.851941063 | BA11: =Inputs!BA144 -> 2.925633828 | BB11: =Inputs!BB144 -> 3.001300066
C13: Indexed annuity (pre-availability incentive)
E15: Preliminary Cap | G15: =Inputs!$I$11 -> £m 13/14 prices | H15: PCL | I15: =Inputs!I26 -> 83.80640211
E16: Preliminary Floor | G16: =Inputs!$I$11 -> £m 13/14 prices | H16: PFL | I16: =Inputs!I27 -> 48.80731676
E17: PCA adjustment to Cap | G17: =Inputs!$I$11 -> £m 13/14 prices | H17: PCAC | I17: =Inputs!I29 -> -7.649490424
E18: PCA adjustment to Floor | G18: =Inputs!$I$11 -> £m 13/14 prices | H18: PCAF | I18: =Inputs!I30 -> -6.028649286
E19: ORA adjustment to Cap | G19: =Inputs!$I$11 -> £m 13/14 prices | H19: ORAC | I19: =Inputs!I165 -> -1.327795218
E20: ORA adjustment to Floor | G20: =Inputs!$I$11 -> £m 13/14 prices | H20: ORAF | I20: =Inputs!I166 -> -1.383164603
E21: Latest DC adjustment to Cap | G21: =Inputs!$I$11 -> £m 13/14 prices | H21: DCCt | I21: =Inputs!I179 -> -0.4926412061
E22: Latest DC adjustment to Floor | G22: =Inputs!$I$11 -> £m 13/14 prices | H22: DCFt | I22: =Inputs!I180 -> -0.3890118224
E23: First DC adjustment to Cap | G23: =Inputs!$I$11 -> £m 13/14 prices | H23: DCCt | I23: =Inputs!I186 -> 1.269872319
E24: First DC adjustment to Floor | G24: =Inputs!$I$11 -> £m 13/14 prices | H24: DCFt | I24: =Inputs!I187 -> 1.474327566
E25: Second DC adjustment to Cap | G25: =Inputs!$I$11 -> £m 13/14 prices | H25: DCCt | I25: =Inputs!I191 -> 0
E26: Second DC adjustment to Floor | G26: =Inputs!$I$11 -> £m 13/14 prices | H26: DCFt | I26: =Inputs!I192 -> 0
E27: Third DC adjustment to Cap | G27: =Inputs!$I$11 -> £m 13/14 prices | H27: DCCt | I27: =Inputs!I196 -> 0
E28: Third DC adjustment to Floor | G28: =Inputs!$I$11 -> £m 13/14 prices | H28: DCFt | I28: =Inputs!I197 -> 0
E29: Fourth DC adjustment to Cap | G29: =Inputs!$I$11 -> £m 13/14 prices | H29: DCCt | I29: =Inputs!I201 -> 0
E30: Fourth DC adjustment to Floor | G30: =Inputs!$I$11 -> £m 13/14 prices | H30: DCFt | I30: =Inputs!I202 -> 0
E32: Preliminary Cap (pre-availability incentive) | G32: £m nominal prices | P32: =IF(P$5<=Inputs!$I$21,$I15 * P$11,0) -> 95.59796289 | Q32: =IF(Q$5<=Inputs!$I$21,$I15 * Q$11,0) -> 93.17595787 | R32: =IF(R$5<=Inputs!$I$21,$I15 * R$11,0) -> 93.17595787 | S32: =IF(S$5<=Inputs!$I$21,$I15 * S$11,0) -> 93.17595787 | T32: =IF(T$5<=Inputs!$I$21,$I15 * T$11,0) -> 93.17595787 | U32: =IF(U$5<=Inputs!$I$21,$I15 * U$11,0) -> 93.17595787 | V32: =IF(V$5<=Inputs!$I$21,$I15 * V$11,0) -> 93.17595787 | W32: =IF(W$5<=Inputs!$I$21,$I15 * W$11,0) -> 93.17595787 | X32: =IF(X$5<=Inputs!$I$21,$I15 * X$11,0) -> 93.17595787 | Y32: =IF(Y$5<=Inputs!$I$21,$I15 * Y$11,0) -> 93.17595787 | Z32: =IF(Z$5<=Inputs!$I$21,$I15 * Z$11,0) -> 93.17595787 | AA32: =IF(AA$5<=Inputs!$I$21,$I15 * AA$11,0) -> 93.17595787 | AB32: =IF(AB$5<=Inputs!$I$21,$I15 * AB$11,0) -> 93.17595787 | AC32: =IF(AC$5<=Inputs!$I$21,$I15 * AC$11,0) -> 93.17595787 | AD32: =IF(AD$5<=Inputs!$I$21,$I15 * AD$11,0) -> 93.17595787 | AE32: =IF(AE$5<=Inputs!$I$21,$I15 * AE$11,0) -> 93.17595787 | AF32: =IF(AF$5<=Inputs!$I$21,$I15 * AF$11,0) -> 93.17595787 | AG32: =IF(AG$5<=Inputs!$I$21,$I15 * AG$11,0) -> 93.17595787 | AH32: =IF(AH$5<=Inputs!$I$21,$I15 * AH$11,0) -> 93.17595787 | AI32: =IF(AI$5<=Inputs!$I$21,$I15 * AI$11,0) -> 93.17595787 | AJ32: =IF(AJ$5<=Inputs!$I$21,$I15 * AJ$11,0) -> 93.17595787 | AK32: =IF(AK$5<=Inputs!$I$21,$I15 * AK$11,0) -> 93.17595787 | AL32: =IF(AL$5<=Inputs!$I$21,$I15 * AL$11,0) -> 93.17595787 | AM32: =IF(AM$5<=Inputs!$I$21,$I15 * AM$11,0) -> 93.17595787 | AN32: =IF(AN$5<=Inputs!$I$21,$I15 * AN$11,0) -> 93.17595787 | AO32: =IF(AO$5<=Inputs!$I$21,$I15 * AO$11,0) -> 0 | AP32: =IF(AP$5<=Inputs!$I$21,$I15 * AP$11,0) -> 0 | AQ32: =IF(AQ$5<=Inputs!$I$21,$I15 * AQ$11,0) -> 0 | AR32: =IF(AR$5<=Inputs!$I$21,$I15 * AR$11,0) -> 0 | AS32: =IF(AS$5<=Inputs!$I$21,$I15 * AS$11,0) -> 0 | AT32: =IF(AT$5<=Inputs!$I$21,$I15 * AT$11,0) -> 0 | AU32: =IF(AU$5<=Inputs!$I$21,$I15 * AU$11,0) -> 0 | AV32: =IF(AV$5<=Inputs!$I$21,$I15 * AV$11,0) -> 0 | AW32: =IF(AW$5<=Inputs!$I$21,$I15 * AW$11,0) -> 0 | AX32: =IF(AX$5<=Inputs!$I$21,$I15 * AX$11,0) -> 0 | AY32: =IF(AY$5<=Inputs!$I$21,$I15 * AY$11,0) -> 0 | AZ32: =IF(AZ$5<=Inputs!$I$21,$I15 * AZ$11,0) -> 0 | BA32: =IF(BA$5<=Inputs!$I$21,$I15 * BA$11,0) -> 0 | BB32: =IF(BB$5<=Inputs!$I$21,$I15 * BB$11,0) -> 0
E33: Preliminary Floor (pre-availability incentive) | G33: £m nominal prices | P33: =IF(P$5<=Inputs!$I$21,$I16 * P$11,0) -> 55.67450623 | Q33: =IF(Q$5<=Inputs!$I$21,$I16 * Q$11,0) -> 54.26397477 | R33: =IF(R$5<=Inputs!$I$21,$I16 * R$11,0) -> 54.26397477 | S33: =IF(S$5<=Inputs!$I$21,$I16 * S$11,0) -> 54.26397477 | T33: =IF(T$5<=Inputs!$I$21,$I16 * T$11,0) -> 54.26397477 | U33: =IF(U$5<=Inputs!$I$21,$I16 * U$11,0) -> 54.26397477 | V33: =IF(V$5<=Inputs!$I$21,$I16 * V$11,0) -> 54.26397477 | W33: =IF(W$5<=Inputs!$I$21,$I16 * W$11,0) -> 54.26397477 | X33: =IF(X$5<=Inputs!$I$21,$I16 * X$11,0) -> 54.26397477 | Y33: =IF(Y$5<=Inputs!$I$21,$I16 * Y$11,0) -> 54.26397477 | Z33: =IF(Z$5<=Inputs!$I$21,$I16 * Z$11,0) -> 54.26397477 | AA33: =IF(AA$5<=Inputs!$I$21,$I16 * AA$11,0) -> 54.26397477 | AB33: =IF(AB$5<=Inputs!$I$21,$I16 * AB$11,0) -> 54.26397477 | AC33: =IF(AC$5<=Inputs!$I$21,$I16 * AC$11,0) -> 54.26397477 | AD33: =IF(AD$5<=Inputs!$I$21,$I16 * AD$11,0) -> 54.26397477 | AE33: =IF(AE$5<=Inputs!$I$21,$I16 * AE$11,0) -> 54.26397477 | AF33: =IF(AF$5<=Inputs!$I$21,$I16 * AF$11,0) -> 54.26397477 | AG33: =IF(AG$5<=Inputs!$I$21,$I16 * AG$11,0) -> 54.26397477 | AH33: =IF(AH$5<=Inputs!$I$21,$I16 * AH$11,0) -> 54.26397477 | AI33: =IF(AI$5<=Inputs!$I$21,$I16 * AI$11,0) -> 54.26397477 | AJ33: =IF(AJ$5<=Inputs!$I$21,$I16 * AJ$11,0) -> 54.26397477 | AK33: =IF(AK$5<=Inputs!$I$21,$I16 * AK$11,0) -> 54.26397477 | AL33: =IF(AL$5<=Inputs!$I$21,$I16 * AL$11,0) -> 54.26397477 | AM33: =IF(AM$5<=Inputs!$I$21,$I16 * AM$11,0) -> 54.26397477 | AN33: =IF(AN$5<=Inputs!$I$21,$I16 * AN$11,0) -> 54.26397477 | AO33: =IF(AO$5<=Inputs!$I$21,$I16 * AO$11,0) -> 0 | AP33: =IF(AP$5<=Inputs!$I$21,$I16 * AP$11,0) -> 0 | AQ33: =IF(AQ$5<=Inputs!$I$21,$I16 * AQ$11,0) -> 0 | AR33: =IF(AR$5<=Inputs!$I$21,$I16 * AR$11,0) -> 0 | AS33: =IF(AS$5<=Inputs!$I$21,$I16 * AS$11,0) -> 0 | AT33: =IF(AT$5<=Inputs!$I$21,$I16 * AT$11,0) -> 0 | AU33: =IF(AU$5<=Inputs!$I$21,$I16 * AU$11,0) -> 0 | AV33: =IF(AV$5<=Inputs!$I$21,$I16 * AV$11,0) -> 0 | AW33: =IF(AW$5<=Inputs!$I$21,$I16 * AW$11,0) -> 0 | AX33: =IF(AX$5<=Inputs!$I$21,$I16 * AX$11,0) -> 0 | AY33: =IF(AY$5<=Inputs!$I$21,$I16 * AY$11,0) -> 0 | AZ33: =IF(AZ$5<=Inputs!$I$21,$I16 * AZ$11,0) -> 0 | BA33: =IF(BA$5<=Inputs!$I$21,$I16 * BA$11,0) -> 0 | BB33: =IF(BB$5<=Inputs!$I$21,$I16 * BB$11,0) -> 0
E35: Apply PCA adjustment factor? | G35: flag | I35: =IF(Inputs!I151="Yes",1,0) -> 1
E36: PCAC adjustment factor | G36: scalar | P36: =Inputs!P152 -> 0.9171800137 | Q36: =Inputs!Q152 -> 1 | R36: =Inputs!R152 -> 1 | S36: =Inputs!S152 -> 1 | T36: =Inputs!T152 -> 1 | U36: =Inputs!U152 -> 1 | V36: =Inputs!V152 -> 1 | W36: =Inputs!W152 -> 1 | X36: =Inputs!X152 -> 1 | Y36: =Inputs!Y152 -> 1 | Z36: =Inputs!Z152 -> 1 | AA36: =Inputs!AA152 -> 1 | AB36: =Inputs!AB152 -> 1 | AC36: =Inputs!AC152 -> 1 | AD36: =Inputs!AD152 -> 1 | AE36: =Inputs!AE152 -> 1 | AF36: =Inputs!AF152 -> 1 | AG36: =Inputs!AG152 -> 1 | AH36: =Inputs!AH152 -> 1 | AI36: =Inputs!AI152 -> 1 | AJ36: =Inputs!AJ152 -> 1 | AK36: =Inputs!AK152 -> 1 | AL36: =Inputs!AL152 -> 1 | AM36: =Inputs!AM152 -> 1 | AN36: =Inputs!AN152 -> 1.082819986 | AO36: =Inputs!AO152 -> 0 | AP36: =Inputs!AP152 -> 0 | AQ36: =Inputs!AQ152 -> 0 | AR36: =Inputs!AR152 -> 0 | AS36: =Inputs!AS152 -> 0 | AT36: =Inputs!AT152 -> 0 | AU36: =Inputs!AU152 -> 0 | AV36: =Inputs!AV152 -> 0 | AW36: =Inputs!AW152 -> 0 | AX36: =Inputs!AX152 -> 0 | AY36: =Inputs!AY152 -> 0 | AZ36: =Inputs!AZ152 -> 0 | BA36: =Inputs!BA152 -> 0 | BB36: =Inputs!BB152 -> 0
E37: PCAF adjustment factor | G37: scalar | P37: =Inputs!P153 -> 0.9171800137 | Q37: =Inputs!Q153 -> 1 | R37: =Inputs!R153 -> 1 | S37: =Inputs!S153 -> 1 | T37: =Inputs!T153 -> 1 | U37: =Inputs!U153 -> 1 | V37: =Inputs!V153 -> 1 | W37: =Inputs!W153 -> 1 | X37: =Inputs!X153 -> 1 | Y37: =Inputs!Y153 -> 1 | Z37: =Inputs!Z153 -> 1 | AA37: =Inputs!AA153 -> 1 | AB37: =Inputs!AB153 -> 1 | AC37: =Inputs!AC153 -> 1 | AD37: =Inputs!AD153 -> 1 | AE37: =Inputs!AE153 -> 1 | AF37: =Inputs!AF153 -> 1 | AG37: =Inputs!AG153 -> 1 | AH37: =Inputs!AH153 -> 1 | AI37: =Inputs!AI153 -> 1 | AJ37: =Inputs!AJ153 -> 1 | AK37: =Inputs!AK153 -> 1 | AL37: =Inputs!AL153 -> 1 | AM37: =Inputs!AM153 -> 1 | AN37: =Inputs!AN153 -> 1.082819986 | AO37: =Inputs!AO153 -> 0 | AP37: =Inputs!AP153 -> 0 | AQ37: =Inputs!AQ153 -> 0 | AR37: =Inputs!AR153 -> 0 | AS37: =Inputs!AS153 -> 0 | AT37: =Inputs!AT153 -> 0 | AU37: =Inputs!AU153 -> 0 | AV37: =Inputs!AV153 -> 0 | AW37: =Inputs!AW153 -> 0 | AX37: =Inputs!AX153 -> 0 | AY37: =Inputs!AY153 -> 0 | AZ37: =Inputs!AZ153 -> 0 | BA37: =Inputs!BA153 -> 0 | BB37: =Inputs!BB153 -> 0
E39: Apply ORA adjustment factor? | G39: flag | I39: =IF(Inputs!I157="Yes",1,0) -> 1
E40: ORAC adjustment factor | G40: scalar | P40: =Inputs!P160 -> 0 | Q40: =Inputs!Q160 -> 0 | R40: =Inputs!R160 -> 0 | S40: =Inputs!S160 -> 0 | T40: =Inputs!T160 -> 0 | U40: =Inputs!U160 -> 0 | V40: =Inputs!V160 -> 0 | W40: =Inputs!W160 -> 0 | X40: =Inputs!X160 -> 0 | Y40: =Inputs!Y160 -> 0 | Z40: =Inputs!Z160 -> 0 | AA40: =Inputs!AA160 -> 0.9993155373 | AB40: =Inputs!AB160 -> 1 | AC40: =Inputs!AC160 -> 1 | AD40: =Inputs!AD160 -> 1 | AE40: =Inputs!AE160 -> 1 | AF40: =Inputs!AF160 -> 1 | AG40: =Inputs!AG160 -> 1 | AH40: =Inputs!AH160 -> 1 | AI40: =Inputs!AI160 -> 1 | AJ40: =Inputs!AJ160 -> 1 | AK40: =Inputs!AK160 -> 1 | AL40: =Inputs!AL160 -> 1 | AM40: =Inputs!AM160 -> 1 | AN40: =Inputs!AN160 -> 1.082819986 | AO40: =Inputs!AO160 -> 0 | AP40: =Inputs!AP160 -> 0 | AQ40: =Inputs!AQ160 -> 0 | AR40: =Inputs!AR160 -> 0 | AS40: =Inputs!AS160 -> 0 | AT40: =Inputs!AT160 -> 0 | AU40: =Inputs!AU160 -> 0 | AV40: =Inputs!AV160 -> 0 | AW40: =Inputs!AW160 -> 0 | AX40: =Inputs!AX160 -> 0 | AY40: =Inputs!AY160 -> 0 | AZ40: =Inputs!AZ160 -> 0 | BA40: =Inputs!BA160 -> 0 | BB40: =Inputs!BB160 -> 0
E41: ORAF adjustment factor | G41: scalar | P41: =Inputs!P161 -> 0 | Q41: =Inputs!Q161 -> 0 | R41: =Inputs!R161 -> 0 | S41: =Inputs!S161 -> 0 | T41: =Inputs!T161 -> 0 | U41: =Inputs!U161 -> 0 | V41: =Inputs!V161 -> 0 | W41: =Inputs!W161 -> 0 | X41: =Inputs!X161 -> 0 | Y41: =Inputs!Y161 -> 0 | Z41: =Inputs!Z161 -> 0 | AA41: =Inputs!AA161 -> 0.9993155373 | AB41: =Inputs!AB161 -> 1 | AC41: =Inputs!AC161 -> 1 | AD41: =Inputs!AD161 -> 1 | AE41: =Inputs!AE161 -> 1 | AF41: =Inputs!AF161 -> 1 | AG41: =Inputs!AG161 -> 1 | AH41: =Inputs!AH161 -> 1 | AI41: =Inputs!AI161 -> 1 | AJ41: =Inputs!AJ161 -> 1 | AK41: =Inputs!AK161 -> 1 | AL41: =Inputs!AL161 -> 1 | AM41: =Inputs!AM161 -> 1 | AN41: =Inputs!AN161 -> 1.082819986 | AO41: =Inputs!AO161 -> 0 | AP41: =Inputs!AP161 -> 0 | AQ41: =Inputs!AQ161 -> 0 | AR41: =Inputs!AR161 -> 0 | AS41: =Inputs!AS161 -> 0 | AT41: =Inputs!AT161 -> 0 | AU41: =Inputs!AU161 -> 0 | AV41: =Inputs!AV161 -> 0 | AW41: =Inputs!AW161 -> 0 | AX41: =Inputs!AX161 -> 0 | AY41: =Inputs!AY161 -> 0 | AZ41: =Inputs!AZ161 -> 0 | BA41: =Inputs!BA161 -> 0 | BB41: =Inputs!BB161 -> 0
E43: Apply DC adjustment factor? | G43: flag | I43: =IF(Inputs!I170="Yes",1,0) -> 1
E44: Latest DCC and DCF adjustment factor | G44: scalar | P44: =Inputs!P175 -> 0 | Q44: =Inputs!Q175 -> 0 | R44: =Inputs!R175 -> 0 | S44: =Inputs!S175 -> 0 | T44: =Inputs!T175 -> 0 | U44: =Inputs!U175 -> 0 | V44: =Inputs!V175 -> 0 | W44: =Inputs!W175 -> 0 | X44: =Inputs!X175 -> 0 | Y44: =Inputs!Y175 -> 0 | Z44: =Inputs!Z175 -> 0 | AA44: =Inputs!AA175 -> 0 | AB44: =Inputs!AB175 -> 0 | AC44: =Inputs!AC175 -> 0 | AD44: =Inputs!AD175 -> 0 | AE44: =Inputs!AE175 -> 0 | AF44: =Inputs!AF175 -> 0 | AG44: =Inputs!AG175 -> 0 | AH44: =Inputs!AH175 -> 0 | AI44: =Inputs!AI175 -> 0 | AJ44: =Inputs!AJ175 -> 0 | AK44: =Inputs!AK175 -> 0 | AL44: =Inputs!AL175 -> 0.5859000684 | AM44: =Inputs!AM175 -> 1 | AN44: =Inputs!AN175 -> 1.082819986 | AO44: =Inputs!AO175 -> 0 | AP44: =Inputs!AP175 -> 0 | AQ44: =Inputs!AQ175 -> 0 | AR44: =Inputs!AR175 -> 0 | AS44: =Inputs!AS175 -> 0 | AT44: =Inputs!AT175 -> 0 | AU44: =Inputs!AU175 -> 0 | AV44: =Inputs!AV175 -> 0 | AW44: =Inputs!AW175 -> 0 | AX44: =Inputs!AX175 -> 0 | AY44: =Inputs!AY175 -> 0 | AZ44: =Inputs!AZ175 -> 0 | BA44: =Inputs!BA175 -> 0 | BB44: =Inputs!BB175 -> 0
E45: First DCC and DCF adjustment factor | G45: scalar | P45: =Inputs!P207 -> 0 | Q45: =Inputs!Q207 -> 0 | R45: =Inputs!R207 -> 0 | S45: =Inputs!S207 -> 0 | T45: =Inputs!T207 -> 0 | U45: =Inputs!U207 -> 0 | V45: =Inputs!V207 -> 0 | W45: =Inputs!W207 -> 0 | X45: =Inputs!X207 -> 0 | Y45: =Inputs!Y207 -> 0 | Z45: =Inputs!Z207 -> 0 | AA45: =Inputs!AA207 -> 0 | AB45: =Inputs!AB207 -> 0 | AC45: =Inputs!AC207 -> 0 | AD45: =Inputs!AD207 -> 0 | AE45: =Inputs!AE207 -> 0 | AF45: =Inputs!AF207 -> 0 | AG45: =Inputs!AG207 -> 0 | AH45: =Inputs!AH207 -> 0 | AI45: =Inputs!AI207 -> 0.5859000684 | AJ45: =Inputs!AJ207 -> 1 | AK45: =Inputs!AK207 -> 1 | AL45: =Inputs!AL207 -> 0.4134154689 | AM45: =Inputs!AM207 -> 0 | AN45: =Inputs!AN207 -> 0 | AO45: =Inputs!AO207 -> 0 | AP45: =Inputs!AP207 -> 0 | AQ45: =Inputs!AQ207 -> 0 | AR45: =Inputs!AR207 -> 0 | AS45: =Inputs!AS207 -> 0 | AT45: =Inputs!AT207 -> 0 | AU45: =Inputs!AU207 -> 0 | AV45: =Inputs!AV207 -> 0 | AW45: =Inputs!AW207 -> 0 | AX45: =Inputs!AX207 -> 0 | AY45: =Inputs!AY207 -> 0 | AZ45: =Inputs!AZ207 -> 0 | BA45: =Inputs!BA207 -> 0 | BB45: =Inputs!BB207 -> 0
E46: Second DCC and DCF adjustment factor | G46: scalar | P46: =Inputs!P208 -> 0 | Q46: =Inputs!Q208 -> 0 | R46: =Inputs!R208 -> 0 | S46: =Inputs!S208 -> 0 | T46: =Inputs!T208 -> 0 | U46: =Inputs!U208 -> 0 | V46: =Inputs!V208 -> 0 | W46: =Inputs!W208 -> 0 | X46: =Inputs!X208 -> 0 | Y46: =Inputs!Y208 -> 0 | Z46: =Inputs!Z208 -> 0 | AA46: =Inputs!AA208 -> 0 | AB46: =Inputs!AB208 -> 0 | AC46: =Inputs!AC208 -> 0 | AD46: =Inputs!AD208 -> 0 | AE46: =Inputs!AE208 -> 0 | AF46: =Inputs!AF208 -> 0 | AG46: =Inputs!AG208 -> 0 | AH46: =Inputs!AH208 -> 0 | AI46: =Inputs!AI208 -> 0 | AJ46: =Inputs!AJ208 -> 0 | AK46: =Inputs!AK208 -> 0 | AL46: =Inputs!AL208 -> 0 | AM46: =Inputs!AM208 -> 0 | AN46: =Inputs!AN208 -> 0 | AO46: =Inputs!AO208 -> 0 | AP46: =Inputs!AP208 -> 0 | AQ46: =Inputs!AQ208 -> 0 | AR46: =Inputs!AR208 -> 0 | AS46: =Inputs!AS208 -> 0 | AT46: =Inputs!AT208 -> 0 | AU46: =Inputs!AU208 -> 0 | AV46: =Inputs!AV208 -> 0 | AW46: =Inputs!AW208 -> 0 | AX46: =Inputs!AX208 -> 0 | AY46: =Inputs!AY208 -> 0 | AZ46: =Inputs!AZ208 -> 0 | BA46: =Inputs!BA208 -> 0 | BB46: =Inputs!BB208 -> 0
E47: Third DCC and DCF adjustment factor | G47: scalar | P47: =Inputs!P209 -> 0 | Q47: =Inputs!Q209 -> 0 | R47: =Inputs!R209 -> 0 | S47: =Inputs!S209 -> 0 | T47: =Inputs!T209 -> 0 | U47: =Inputs!U209 -> 0 | V47: =Inputs!V209 -> 0 | W47: =Inputs!W209 -> 0 | X47: =Inputs!X209 -> 0 | Y47: =Inputs!Y209 -> 0 | Z47: =Inputs!Z209 -> 0 | AA47: =Inputs!AA209 -> 0 | AB47: =Inputs!AB209 -> 0 | AC47: =Inputs!AC209 -> 0 | AD47: =Inputs!AD209 -> 0 | AE47: =Inputs!AE209 -> 0 | AF47: =Inputs!AF209 -> 0 | AG47: =Inputs!AG209 -> 0 | AH47: =Inputs!AH209 -> 0 | AI47: =Inputs!AI209 -> 0 | AJ47: =Inputs!AJ209 -> 0 | AK47: =Inputs!AK209 -> 0 | AL47: =Inputs!AL209 -> 0 | AM47: =Inputs!AM209 -> 0 | AN47: =Inputs!AN209 -> 0 | AO47: =Inputs!AO209 -> 0 | AP47: =Inputs!AP209 -> 0 | AQ47: =Inputs!AQ209 -> 0 | AR47: =Inputs!AR209 -> 0 | AS47: =Inputs!AS209 -> 0 | AT47: =Inputs!AT209 -> 0 | AU47: =Inputs!AU209 -> 0 | AV47: =Inputs!AV209 -> 0 | AW47: =Inputs!AW209 -> 0 | AX47: =Inputs!AX209 -> 0 | AY47: =Inputs!AY209 -> 0 | AZ47: =Inputs!AZ209 -> 0 | BA47: =Inputs!BA209 -> 0 | BB47: =Inputs!BB209 -> 0
E48: Fourth DCC and DCF adjustment factor | G48: scalar | P48: =Inputs!P210 -> 0 | Q48: =Inputs!Q210 -> 0 | R48: =Inputs!R210 -> 0 | S48: =Inputs!S210 -> 0 | T48: =Inputs!T210 -> 0 | U48: =Inputs!U210 -> 0 | V48: =Inputs!V210 -> 0 | W48: =Inputs!W210 -> 0 | X48: =Inputs!X210 -> 0 | Y48: =Inputs!Y210 -> 0 | Z48: =Inputs!Z210 -> 0 | AA48: =Inputs!AA210 -> 0 | AB48: =Inputs!AB210 -> 0 | AC48: =Inputs!AC210 -> 0 | AD48: =Inputs!AD210 -> 0 | AE48: =Inputs!AE210 -> 0 | AF48: =Inputs!AF210 -> 0 | AG48: =Inputs!AG210 -> 0 | AH48: =Inputs!AH210 -> 0 | AI48: =Inputs!AI210 -> 0 | AJ48: =Inputs!AJ210 -> 0 | AK48: =Inputs!AK210 -> 0 | AL48: =Inputs!AL210 -> 0 | AM48: =Inputs!AM210 -> 0 | AN48: =Inputs!AN210 -> 0 | AO48: =Inputs!AO210 -> 0 | AP48: =Inputs!AP210 -> 0 | AQ48: =Inputs!AQ210 -> 0 | AR48: =Inputs!AR210 -> 0 | AS48: =Inputs!AS210 -> 0 | AT48: =Inputs!AT210 -> 0 | AU48: =Inputs!AU210 -> 0 | AV48: =Inputs!AV210 -> 0 | AW48: =Inputs!AW210 -> 0 | AX48: =Inputs!AX210 -> 0 | AY48: =Inputs!AY210 -> 0 | AZ48: =Inputs!AZ210 -> 0 | BA48: =Inputs!BA210 -> 0 | BB48: =Inputs!BB210 -> 0
E50: Partial year Cap adjustment factor | G50: scalar | H50: PYCt | P50: =Inputs!P64 -> 0.9171800137 | Q50: =Inputs!Q64 -> 1 | R50: =Inputs!R64 -> 1 | S50: =Inputs!S64 -> 1 | T50: =Inputs!T64 -> 1 | U50: =Inputs!U64 -> 1 | V50: =Inputs!V64 -> 1 | W50: =Inputs!W64 -> 1 | X50: =Inputs!X64 -> 1 | Y50: =Inputs!Y64 -> 1 | Z50: =Inputs!Z64 -> 1 | AA50: =Inputs!AA64 -> 1 | AB50: =Inputs!AB64 -> 1 | AC50: =Inputs!AC64 -> 1 | AD50: =Inputs!AD64 -> 1 | AE50: =Inputs!AE64 -> 1 | AF50: =Inputs!AF64 -> 1 | AG50: =Inputs!AG64 -> 1 | AH50: =Inputs!AH64 -> 1 | AI50: =Inputs!AI64 -> 1 | AJ50: =Inputs!AJ64 -> 1 | AK50: =Inputs!AK64 -> 1 | AL50: =Inputs!AL64 -> 1 | AM50: =Inputs!AM64 -> 1 | AN50: =Inputs!AN64 -> 1.082819986 | AO50: =Inputs!AO64 -> 0 | AP50: =Inputs!AP64 -> 0 | AQ50: =Inputs!AQ64 -> 0 | AR50: =Inputs!AR64 -> 0 | AS50: =Inputs!AS64 -> 0 | AT50: =Inputs!AT64 -> 0 | AU50: =Inputs!AU64 -> 0 | AV50: =Inputs!AV64 -> 0 | AW50: =Inputs!AW64 -> 0 | AX50: =Inputs!AX64 -> 0 | AY50: =Inputs!AY64 -> 0 | AZ50: =Inputs!AZ64 -> 0 | BA50: =Inputs!BA64 -> 0 | BB50: =Inputs!BB64 -> 0
E51: Partial year Floor adjustment factor | G51: scalar | H51: PYFt | P51: =Inputs!P72 -> 0.9171800137 | Q51: =Inputs!Q72 -> 1 | R51: =Inputs!R72 -> 1 | S51: =Inputs!S72 -> 1 | T51: =Inputs!T72 -> 1 | U51: =Inputs!U72 -> 1 | V51: =Inputs!V72 -> 1 | W51: =Inputs!W72 -> 1 | X51: =Inputs!X72 -> 1 | Y51: =Inputs!Y72 -> 1 | Z51: =Inputs!Z72 -> 1 | AA51: =Inputs!AA72 -> 1 | AB51: =Inputs!AB72 -> 1 | AC51: =Inputs!AC72 -> 1 | AD51: =Inputs!AD72 -> 1 | AE51: =Inputs!AE72 -> 1 | AF51: =Inputs!AF72 -> 1 | AG51: =Inputs!AG72 -> 1 | AH51: =Inputs!AH72 -> 1 | AI51: =Inputs!AI72 -> 1 | AJ51: =Inputs!AJ72 -> 1 | AK51: =Inputs!AK72 -> 1 | AL51: =Inputs!AL72 -> 1 | AM51: =Inputs!AM72 -> 1 | AN51: =Inputs!AN72 -> 1.082819986 | AO51: =Inputs!AO72 -> 0 | AP51: =Inputs!AP72 -> 0 | AQ51: =Inputs!AQ72 -> 0 | AR51: =Inputs!AR72 -> 0 | AS51: =Inputs!AS72 -> 0 | AT51: =Inputs!AT72 -> 0 | AU51: =Inputs!AU72 -> 0 | AV51: =Inputs!AV72 -> 0 | AW51: =Inputs!AW72 -> 0 | AX51: =Inputs!AX72 -> 0 | AY51: =Inputs!AY72 -> 0 | AZ51: =Inputs!AZ72 -> 0 | BA51: =Inputs!BA72 -> 0 | BB51: =Inputs!BB72 -> 0
E53: Cap (pre-availability incentive) | G53: £m nominal prices | P53: =P32*P50+($I17*P36*$I$35+$I19*P40*$I$39+$I21*P$44*$I$43+$I23*P$45*$I$43+$I25*P$46*$I$43+$I27*P$47*$I$43+$I29*P$48*$I$43)*P$11 -> 79.67743565 | Q53: =Q32*Q50+($I17*Q36*$I$35+$I19*Q40*$I$39+$I21*Q$44*$I$43+$I23*Q$45*$I$43+$I25*Q$46*$I$43+$I27*Q$47*$I$43+$I29*Q$48*$I$43)*Q$11 -> 84.67125442 | R53: 84.67125442 | S53: 84.67125442 | T53: 84.67125442 | U53: 84.67125442 | V53: 84.67125442 | W53: 84.67125442 | X53: 84.67125442 | Y53: 84.67125442 | Z53: 84.67125442 | AA53: 83.19602212 | AB53: 83.19501169 | AC53: 83.19501169 | AD53: 83.19501169 | AE53: 83.19501169 | AF53: 83.19501169 | AG53: 83.19501169 | AH53: 83.19501169 | AI53: 84.02221121 | AJ53: 84.60685574 | AK53: 84.60685574 | AL53: 83.45778156 | AM53: 82.6472932 | AN53: 89.49214089 | AO53: 0 | AP53: 0 | AQ53: 0 | AR53: 0 | AS53: 0 | AT53: 0 | AU53: 0 | AV53: 0 | AW53: 0 | AX53: 0 | AY53: 0 | AZ53: 0 | BA53: 0 | BB53: 0
E54: Notional Floor (pre-availability incentive) | G54: £m nominal prices | H54: NFLt | P54: =P33*P51+($I18*P37*$I$35+$I20*P41*$I$39+$I22*P$44*$I$43+$I24*P$45*$I$43+$I26*P$46*$I$43+$I28*P$47*$I$43+$I30*P$48*$I$43)*P$11 -> 44.75620727 | Q54: =Q33*Q51+($I18*Q37*$I$35+$I20*Q41*$I$39+$I22*Q$44*$I$43+$I24*Q$45*$I$43+$I26*Q$46*$I$43+$I28*Q$47*$I$43+$I30*Q$48*$I$43)*Q$11 -> 47.5613225 | R54: 47.5613225 | S54: 47.5613225 | T54: 47.5613225 | U54: 47.5613225 | V54: 47.5613225 | W54: 47.5613225 | X54: 47.5613225 | Y54: 47.5613225 | Z54: 47.5613225 | AA54: 46.02457266 | AB54: 46.02352009 | AC54: 46.02352009 | AD54: 46.02352009 | AE54: 46.02352009 | AF54: 46.02352009 | AG54: 46.02352009 | AH54: 46.02352009 | AI54: 46.98390252 | AJ54: 47.66267748 | AK54: 47.66267748 | AL54: 46.44776937 | AM54: 45.59101675 | AN54: 49.36686413 | AO54: 0 | AP54: 0 | AQ54: 0 | AR54: 0 | AS54: 0 | AT54: 0 | AU54: 0 | AV54: 0 | AW54: 0 | AX54: 0 | AY54: 0 | AZ54: 0 | BA54: 0 | BB54: 0
B56: End of sheet

Sheet Availability
A1: Availability | H1: Licence
E2: Parameter | G2: Units | H2: Terminology | I2: Constant | O2: Annual values
E3: Year commencing | O3: =Inputs!O3 -> 2018-01-01 | P3: =Inputs!P3 -> 2019-01-01 | Q3: =Inputs!Q3 -> 2020-01-01 | R3: =Inputs!R3 -> 2021-01-01 | S3: =Inputs!S3 -> 2022-01-01 | T3: =Inputs!T3 -> 2023-01-01 | U3: =Inputs!U3 -> 2024-01-01 | V3: =Inputs!V3 -> 2025-01-01 | W3: =Inputs!W3 -> 2026-01-01 | X3: =Inputs!X3 -> 2027-01-01 | Y3: =Inputs!Y3 -> 2028-01-01 | Z3: =Inputs!Z3 -> 2029-01-01 | AA3: =Inputs!AA3 -> 2030-01-01 | AB3: =Inputs!AB3 -> 2031-01-01 | AC3: =Inputs!AC3 -> 2032-01-01 | AD3: =Inputs!AD3 -> 2033-01-01 | AE3: =Inputs!AE3 -> 2034-01-01 | AF3: =Inputs!AF3 -> 2035-01-01 | AG3: =Inputs!AG3 -> 2036-01-01 | AH3: =Inputs!AH3 -> 2037-01-01 | AI3: =Inputs!AI3 -> 2038-01-01 | AJ3: =Inputs!AJ3 -> 2039-01-01 | AK3: =Inputs!AK3 -> 2040-01-01 | AL3: =Inputs!AL3 -> 2041-01-01 | AM3: =Inputs!AM3 -> 2042-01-01 | AN3: =Inputs!AN3 -> 2043-01-01 | AO3: =Inputs!AO3 -> 2044-01-01 | AP3: =Inputs!AP3 -> 2045-01-01 | AQ3: =Inputs!AQ3 -> 2046-01-01 | AR3: =Inputs!AR3 -> 2047-01-01 | AS3: =Inputs!AS3 -> 2048-01-01 | AT3: =Inputs!AT3 -> 2049-01-01 | AU3: =Inputs!AU3 -> 2050-01-01 | AV3: =Inputs!AV3 -> 2051-01-01 | AW3: =Inputs!AW3 -> 2052-01-01 | AX3: =Inputs!AX3 -> 2053-01-01 | AY3: =Inputs!AY3 -> 2054-01-01 | AZ3: =Inputs!AZ3 -> 2055-01-01 | BA3: =Inputs!BA3 -> 2056-01-01 | BB3: =Inputs!BB3 -> 2057-01-01
E4: Year ending | O4: =Inputs!O4 -> 2018-12-31 | P4: =Inputs!P4 -> 2019-12-31 | Q4: =Inputs!Q4 -> 2020-12-31 | R4: =Inputs!R4 -> 2021-12-31 | S4: =Inputs!S4 -> 2022-12-31 | T4: =Inputs!T4 -> 2023-12-31 | U4: =Inputs!U4 -> 2024-12-31 | V4: =Inputs!V4 -> 2025-12-31 | W4: =Inputs!W4 -> 2026-12-31 | X4: =Inputs!X4 -> 2027-12-31 | Y4: =Inputs!Y4 -> 2028-12-31 | Z4: =Inputs!Z4 -> 2029-12-31 | AA4: =Inputs!AA4 -> 2030-12-31 | AB4: =Inputs!AB4 -> 2031-12-31 | AC4: =Inputs!AC4 -> 2032-12-31 | AD4: =Inputs!AD4 -> 2033-12-31 | AE4: =Inputs!AE4 -> 2034-12-31 | AF4: =Inputs!AF4 -> 2035-12-31 | AG4: =Inputs!AG4 -> 2036-12-31 | AH4: =Inputs!AH4 -> 2037-12-31 | AI4: =Inputs!AI4 -> 2038-12-31 | AJ4: =Inputs!AJ4 -> 2039-12-31 | AK4: =Inputs!AK4 -> 2040-12-31 | AL4: =Inputs!AL4 -> 2041-12-31 | AM4: =Inputs!AM4 -> 2042-12-31 | AN4: =Inputs!AN4 -> 2043-12-31 | AO4: =Inputs!AO4 -> 2044-12-31 | AP4: =Inputs!AP4 -> 2045-12-31 | AQ4: =Inputs!AQ4 -> 2046-12-31 | AR4: =Inputs!AR4 -> 2047-12-31 | AS4: =Inputs!AS4 -> 2048-12-31 | AT4: =Inputs!AT4 -> 2049-12-31 | AU4: =Inputs!AU4 -> 2050-12-31 | AV4: =Inputs!AV4 -> 2051-12-31 | AW4: =Inputs!AW4 -> 2052-12-31 | AX4: =Inputs!AX4 -> 2053-12-31 | AY4: =Inputs!AY4 -> 2054-12-31 | AZ4: =Inputs!AZ4 -> 2055-12-31 | BA4: =Inputs!BA4 -> 2056-12-31 | BB4: =Inputs!BB4 -> 2057-12-31
E5: Operational year | O5: =Inputs!O5 -> 0 | P5: =Inputs!P5 -> 1 | Q5: =Inputs!Q5 -> 2 | R5: =Inputs!R5 -> 3 | S5: =Inputs!S5 -> 4 | T5: =Inputs!T5 -> 5 | U5: =Inputs!U5 -> 6 | V5: =Inputs!V5 -> 7 | W5: =Inputs!W5 -> 8 | X5: =Inputs!X5 -> 9 | Y5: =Inputs!Y5 -> 10 | Z5: =Inputs!Z5 -> 11 | AA5: =Inputs!AA5 -> 12 | AB5: =Inputs!AB5 -> 13 | AC5: =Inputs!AC5 -> 14 | AD5: =Inputs!AD5 -> 15 | AE5: =Inputs!AE5 -> 16 | AF5: =Inputs!AF5 -> 17 | AG5: =Inputs!AG5 -> 18 | AH5: =Inputs!AH5 -> 19 | AI5: =Inputs!AI5 -> 20 | AJ5: =Inputs!AJ5 -> 21 | AK5: =Inputs!AK5 -> 22 | AL5: =Inputs!AL5 -> 23 | AM5: =Inputs!AM5 -> 24 | AN5: =Inputs!AN5 -> 25 | AO5: =Inputs!AO5 -> 26 | AP5: =Inputs!AP5 -> 27 | AQ5: =Inputs!AQ5 -> 28 | AR5: =Inputs!AR5 -> 29 | AS5: =Inputs!AS5 -> 30 | AT5: =Inputs!AT5 -> 31 | AU5: =Inputs!AU5 -> 32 | AV5: =Inputs!AV5 -> 33 | AW5: =Inputs!AW5 -> 34 | AX5: =Inputs!AX5 -> 35 | AY5: =Inputs!AY5 -> 36 | AZ5: =Inputs!AZ5 -> 37 | BA5: =Inputs!BA5 -> 38 | BB5: =Inputs!BB5 -> 39
B7: Availability incentives
C9: Cap and Floor (post-availability incentive)
E11: =Indexation!E53 -> Cap (pre-availability incentive) | G11: £m nominal prices | P11: =Indexation!P53 -> 79.67743565 | Q11: =Indexation!Q53 -> 84.67125442 | R11: =Indexation!R53 -> 84.67125442 | S11: =Indexation!S53 -> 84.67125442 | T11: =Indexation!T53 -> 84.67125442 | U11: =Indexation!U53 -> 84.67125442 | V11: =Indexation!V53 -> 84.67125442 | W11: =Indexation!W53 -> 84.67125442 | X11: =Indexation!X53 -> 84.67125442 | Y11: =Indexation!Y53 -> 84.67125442 | Z11: =Indexation!Z53 -> 84.67125442 | AA11: =Indexation!AA53 -> 83.19602212 | AB11: =Indexation!AB53 -> 83.19501169 | AC11: =Indexation!AC53 -> 83.19501169 | AD11: =Indexation!AD53 -> 83.19501169 | AE11: =Indexation!AE53 -> 83.19501169 | AF11: =Indexation!AF53 -> 83.19501169 | AG11: =Indexation!AG53 -> 83.19501169 | AH11: =Indexation!AH53 -> 83.19501169 | AI11: =Indexation!AI53 -> 84.02221121 | AJ11: =Indexation!AJ53 -> 84.60685574 | AK11: =Indexation!AK53 -> 84.60685574 | AL11: =Indexation!AL53 -> 83.45778156 | AM11: =Indexation!AM53 -> 82.6472932 | AN11: =Indexation!AN53 -> 89.49214089 | AO11: =Indexation!AO53 -> 0 | AP11: =Indexation!AP53 -> 0 | AQ11: =Indexation!AQ53 -> 0 | AR11: =Indexation!AR53 -> 0 | AS11: =Indexation!AS53 -> 0 | AT11: =Indexation!AT53 -> 0 | AU11: =Indexation!AU53 -> 0 | AV11: =Indexation!AV53 -> 0 | AW11: =Indexation!AW53 -> 0 | AX11: =Indexation!AX53 -> 0 | AY11: =Indexation!AY53 -> 0 | AZ11: =Indexation!AZ53 -> 0 | BA11: =Indexation!BA53 -> 0 | BB11: =Indexation!BB53 -> 0
E12: =Indexation!E54 -> Notional Floor (pre-availability incentive) | G12: £m nominal prices | H12: NFLt | P12: =Indexation!P54 -> 44.75620727 | Q12: =Indexation!Q54 -> 47.5613225 | R12: =Indexation!R54 -> 47.5613225 | S12: =Indexation!S54 -> 47.5613225 | T12: =Indexation!T54 -> 47.5613225 | U12: =Indexation!U54 -> 47.5613225 | V12: =Indexation!V54 -> 47.5613225 | W12: =Indexation!W54 -> 47.5613225 | X12: =Indexation!X54 -> 47.5613225 | Y12: =Indexation!Y54 -> 47.5613225 | Z12: =Indexation!Z54 -> 47.5613225 | AA12: =Indexation!AA54 -> 46.02457266 | AB12: =Indexation!AB54 -> 46.02352009 | AC12: =Indexation!AC54 -> 46.02352009 | AD12: =Indexation!AD54 -> 46.02352009 | AE12: =Indexation!AE54 -> 46.02352009 | AF12: =Indexation!AF54 -> 46.02352009 | AG12: =Indexation!AG54 -> 46.02352009 | AH12: =Indexation!AH54 -> 46.02352009 | AI12: =Indexation!AI54 -> 46.98390252 | AJ12: =Indexation!AJ54 -> 47.66267748 | AK12: =Indexation!AK54 -> 47.66267748 | AL12: =Indexation!AL54 -> 46.44776937 | AM12: =Indexation!AM54 -> 45.59101675 | AN12: =Indexation!AN54 -> 49.36686413 | AO12: =Indexation!AO54 -> 0 | AP12: =Indexation!AP54 -> 0 | AQ12: =Indexation!AQ54 -> 0 | AR12: =Indexation!AR54 -> 0 | AS12: =Indexation!AS54 -> 0 | AT12: =Indexation!AT54 -> 0 | AU12: =Indexation!AU54 -> 0 | AV12: =Indexation!AV54 -> 0 | AW12: =Indexation!AW54 -> 0 | AX12: =Indexation!AX54 -> 0 | AY12: =Indexation!AY54 -> 0 | AZ12: =Indexation!AZ54 -> 0 | BA12: =Indexation!BA54 -> 0 | BB12: =Indexation!BB54 -> 0
E14: Cap availability incentive rate | G14: =G41 -> scalar | H14: AICt | P14: =P41 -> 1.02 | Q14: 1.02 | R14: 1.02 | S14: 1.02 | T14: 1.02 | U14: 1.02 | V14: 1.02 | W14: 1.02 | X14: 1.02 | Y14: 1.02 | Z14: 1.02 | AA14: =AA41 -> 1.02 | AB14: =AB41 -> 1.02 | AC14: 1.02 | AD14: 1.02 | AE14: 1.02 | AF14: 1.02 | AG14: 1.02 | AH14: 1.02 | AI14: 1.02 | AJ14: 1.02 | AK14: 1.02 | AL14: 1.02 | AM14: 1.02 | AN14: 1.02 | AO14: 0 | AP14: 0 | AQ14: 0 | AR14: 0 | AS14: 0 | AT14: 0 | AU14: 0 | AV14: 0 | AW14: 0 | AX14: 0 | AY14: 0 | AZ14: 0 | BA14: 0 | BB14: 0
E15: Floor availability incentive rate | G15: =G14 -> scalar | H15: AIFt | P15: =P54 -> 1 | Q15: 1 | R15: 1 | S15: 1 | T15: 1 | U15: 1 | V15: 1 | W15: 1 | X15: 1 | Y15: 1 | Z15: 1 | AA15: =AA54 -> 1 | AB15: =AB54 -> 1 | AC15: 1 | AD15: 1 | AE15: 1 | AF15: 1 | AG15: 1 | AH15: 1 | AI15: 1 | AJ15: 1 | AK15: 1 | AL15: 1 | AM15: 1 | AN15: 1 | AO15: 0 | AP15: 0 | AQ15: 0 | AR15: 0 | AS15: 0 | AT15: 0 | AU15: 0 | AV15: 0 | AW15: 0 | AX15: 0 | AY15: 0 | AZ15: 0 | BA15: 0 | BB15: 0
E17: Cap (post-availability incentive) | G17: £m nominal prices | H17: CLt | P17: =P11 * P14 -> 81.27098436 | Q17: 86.3646795 | R17: 86.3646795 | S17: 86.3646795 | T17: 86.3646795 | U17: 86.3646795 | V17: 86.3646795 | W17: 86.3646795 | X17: 86.3646795 | Y17: 86.3646795 | Z17: 86.3646795 | AA17: =AA11 * AA14 -> 84.85994257 | AB17: =AB11 * AB14 -> 84.85891193 | AC17: 84.85891193 | AD17: 84.85891193 | AE17: 84.85891193 | AF17: 84.85891193 | AG17: 84.85891193 | AH17: 84.85891193 | AI17: 85.70265544 | AJ17: 86.29899285 | AK17: 86.29899285 | AL17: 85.12693719 | AM17: 84.30023906 | AN17: 91.28198371 | AO17: 0 | AP17: 0 | AQ17: 0 | AR17: 0 | AS17: 0 | AT17: 0 | AU17: 0 | AV17: 0 | AW17: 0 | AX17: 0 | AY17: 0 | AZ17: 0 | BA17: 0 | BB17: 0
E18: Floor (post-availability incentive) | G18: £m nominal prices | H18: FLt | P18: =P12 * P15 -> 44.75620727 | Q18: =Q12 * Q15 -> 47.5613225 | R18: 47.5613225 | S18: 47.5613225 | T18: 47.5613225 | U18: 47.5613225 | V18: 47.5613225 | W18: 47.5613225 | X18: 47.5613225 | Y18: 47.5613225 | Z18: 47.5613225 | AA18: =AA12 * AA15 -> 46.02457266 | AB18: =AB12 * AB15 -> 46.02352009 | AC18: 46.02352009 | AD18: 46.02352009 | AE18: 46.02352009 | AF18: 46.02352009 | AG18: 46.02352009 | AH18: 46.02352009 | AI18: 46.98390252 | AJ18: 47.66267748 | AK18: 47.66267748 | AL18: 46.44776937 | AM18: 45.59101675 | AN18: 49.36686413 | AO18: 0 | AP18: 0 | AQ18: 0 | AR18: 0 | AS18: 0 | AT18: 0 | AU18: 0 | AV18: 0 | AW18: 0 | AX18: 0 | AY18: 0 | AZ18: 0 | BA18: 0 | BB18: 0
C20: Availability parameters
E22: =Inputs!E74 -> Number of operational years | G22: =Inputs!G74 -> full years | I22: =Inputs!I74 -> 25
E23: Year is within operational period | G23: flag | P23: =AND(P$5> 0,P$5<= $I22) -> TRUE | Q23: =AND(Q$5> 0,Q$5<= $I22) -> TRUE | R23: TRUE | S23: TRUE | T23: TRUE | U23: TRUE | V23: TRUE | W23: TRUE | X23: TRUE | Y23: TRUE | Z23: =AND(Z$5> 0,Z$5<= $I22) -> TRUE | AA23: =AND(AA$5> 0,AA$5<= $I22) -> TRUE | AB23: TRUE | AC23: TRUE | AD23: TRUE | AE23: TRUE | AF23: TRUE | AG23: TRUE | AH23: TRUE | AI23: TRUE | AJ23: TRUE | AK23: TRUE | AL23: TRUE | AM23: TRUE | AN23: TRUE | AO23: FALSE | AP23: FALSE | AQ23: FALSE | AR23: FALSE | AS23: FALSE | AT23: FALSE | AU23: FALSE | AV23: FALSE | AW23: FALSE | AX23: FALSE | AY23: FALSE | AZ23: FALSE | BA23: FALSE | BB23: FALSE
E25: Interconnector rated capacity | G25: MW | H25: RC | I25: =Inputs!I120 -> 1000
E26: Number of hours in relevant year | G26: hours pa | I26: =Inputs!I121 -> 8766
C28: Cap incentive rate
E30: =Inputs!E116 -> Cap availability incentive target | G30: =Inputs!G116 -> % | I30: =Inputs!I116 -> 0.9705
E31: Partial year Cap adjustment factor | G31: scalar | H31: PYCt | P31: =Indexation!P50 -> 0.9171800137 | Q31: =Indexation!Q50 -> 1 | R31: =Indexation!R50 -> 1 | S31: =Indexation!S50 -> 1 | T31: =Indexation!T50 -> 1 | U31: =Indexation!U50 -> 1 | V31: =Indexation!V50 -> 1 | W31: =Indexation!W50 -> 1 | X31: =Indexation!X50 -> 1 | Y31: =Indexation!Y50 -> 1 | Z31: =Indexation!Z50 -> 1 | AA31: =Indexation!AA50 -> 1 | AB31: =Indexation!AB50 -> 1 | AC31: =Indexation!AC50 -> 1 | AD31: =Indexation!AD50 -> 1 | AE31: =Indexation!AE50 -> 1 | AF31: =Indexation!AF50 -> 1 | AG31: =Indexation!AG50 -> 1 | AH31: =Indexation!AH50 -> 1 | AI31: =Indexation!AI50 -> 1 | AJ31: =Indexation!AJ50 -> 1 | AK31: =Indexation!AK50 -> 1 | AL31: =Indexation!AL50 -> 1 | AM31: =Indexation!AM50 -> 1 | AN31: =Indexation!AN50 -> 1.082819986 | AO31: =Indexation!AO50 -> 0 | AP31: =Indexation!AP50 -> 0 | AQ31: =Indexation!AQ50 -> 0 | AR31: =Indexation!AR50 -> 0 | AS31: =Indexation!AS50 -> 0 | AT31: =Indexation!AT50 -> 0 | AU31: =Indexation!AU50 -> 0 | AV31: =Indexation!AV50 -> 0 | AW31: =Indexation!AW50 -> 0 | AX31: =Indexation!AX50 -> 0 | AY31: =Indexation!AY50 -> 0 | AZ31: =Indexation!AZ50 -> 0 | BA31: =Indexation!BA50 -> 0 | BB31: =Indexation!BB50 -> 0
E32: Maximum possible availability | G32: MWh | H32: MPA | P32: =$I$25*$I$26*P31 -> 8040000 | Q32: 8766000 | R32: 8766000 | S32: 8766000 | T32: 8766000 | U32: 8766000 | V32: 8766000 | W32: 8766000 | X32: 8766000 | Y32: 8766000 | Z32: 8766000 | AA32: =$I$25*$I$26*AA31 -> 8766000 | AB32: =$I$25*$I$26*AB31 -> 8766000 | AC32: 8766000 | AD32: 8766000 | AE32: 8766000 | AF32: 8766000 | AG32: 8766000 | AH32: 8766000 | AI32: 8766000 | AJ32: 8766000 | AK32: 8766000 | AL32: 8766000 | AM32: 8766000 | AN32: 9492000 | AO32: 0 | AP32: 0 | AQ32: 0 | AR32: 0 | AS32: 0 | AT32: 0 | AU32: 0 | AV32: 0 | AW32: 0 | AX32: 0 | AY32: 0 | AZ32: 0 | BA32: 0 | BB32: 0
E33: Total interconnector outages less allowed outages during active Cap period | G33: MWh | H33: IOt | P33: =Inputs!P$125 -> 0 | Q33: =Inputs!Q$125 -> 0 | R33: =Inputs!R$125 -> 0 | S33: =Inputs!S$125 -> 0 | T33: =Inputs!T$125 -> 0 | U33: =Inputs!U$125 -> 0 | V33: =Inputs!V$125 -> 0 | W33: =Inputs!W$125 -> 0 | X33: =Inputs!X$125 -> 0 | Y33: =Inputs!Y$125 -> 0 | Z33: =Inputs!Z$125 -> 0 | AA33: =Inputs!AA$125 -> 0 | AB33: =Inputs!AB$125 -> 0 | AC33: =Inputs!AC$125 -> 0 | AD33: =Inputs!AD$125 -> 0 | AE33: =Inputs!AE$125 -> 0 | AF33: =Inputs!AF$125 -> 0 | AG33: =Inputs!AG$125 -> 0 | AH33: =Inputs!AH$125 -> 0 | AI33: =Inputs!AI$125 -> 0 | AJ33: =Inputs!AJ$125 -> 0 | AK33: =Inputs!AK$125 -> 0 | AL33: =Inputs!AL$125 -> 0 | AM33: =Inputs!AM$125 -> 0 | AN33: =Inputs!AN$125 -> 0 | AO33: =Inputs!AO$125 -> 0 | AP33: =Inputs!AP$125 -> 0 | AQ33: =Inputs!AQ$125 -> 0 | AR33: =Inputs!AR$125 -> 0 | AS33: =Inputs!AS$125 -> 0 | AT33: =Inputs!AT$125 -> 0 | AU33: =Inputs!AU$125 -> 0 | AV33: =Inputs!AV$125 -> 0 | AW33: =Inputs!AW$125 -> 0 | AX33: =Inputs!AX$125 -> 0 | AY33: =Inputs!AY$125 -> 0 | AZ33: =Inputs!AZ$125 -> 0 | BA33: =Inputs!BA$125 -> 0 | BB33: =Inputs!BB$125 -> 0
E34: Actual availability for Cap | G34: MWh | H34: AACt (AAt) | P34: =P32-P33 -> 8040000 | Q34: 8766000 | R34: 8766000 | S34: 8766000 | T34: 8766000 | U34: 8766000 | V34: 8766000 | W34: 8766000 | X34: 8766000 | Y34: 8766000 | Z34: 8766000 | AA34: =AA32-AA33 -> 8766000 | AB34: =AB32-AB33 -> 8766000 | AC34: 8766000 | AD34: 8766000 | AE34: 8766000 | AF34: 8766000 | AG34: 8766000 | AH34: 8766000 | AI34: 8766000 | AJ34: 8766000 | AK34: 8766000 | AL34: 8766000 | AM34: 8766000 | AN34: 9492000 | AO34: 0 | AP34: 0 | AQ34: 0 | AR34: 0 | AS34: 0 | AT34: 0 | AU34: 0 | AV34: 0 | AW34: 0 | AX34: 0 | AY34: 0 | AZ34: 0 | BA34: 0 | BB34: 0
E35: Availability target | G35: MWh | H35: AT | P35: =P32*$I30 -> 7802820 | Q35: =Q32*$I30 -> 8507403 | R35: 8507403 | S35: 8507403 | T35: 8507403 | U35: 8507403 | V35: 8507403 | W35: 8507403 | X35: 8507403 | Y35: 8507403 | Z35: 8507403 | AA35: 8507403 | AB35: 8507403 | AC35: 8507403 | AD35: 8507403 | AE35: 8507403 | AF35: 8507403 | AG35: 8507403 | AH35: 8507403 | AI35: 8507403 | AJ35: 8507403 | AK35: 8507403 | AL35: 8507403 | AM35: 8507403 | AN35: 9211986 | AO35: 0 | AP35: 0 | AQ35: 0 | AR35: 0 | AS35: 0 | AT35: 0 | AU35: 0 | AV35: 0 | AW35: 0 | AX35: 0 | AY35: 0 | AZ35: 0 | BA35: 0 | BB35: 0
E36: Availability performance at Cap | G36: scalar | H36: APCt | P36: =IF(P35=0,0,P34/P35) -> 1.030396703 | Q36: =IF(Q35=0,0,Q34/Q35) -> 1.030396703 | R36: 1.030396703 | S36: 1.030396703 | T36: 1.030396703 | U36: 1.030396703 | V36: 1.030396703 | W36: 1.030396703 | X36: 1.030396703 | Y36: 1.030396703 | Z36: 1.030396703 | AA36: =IF(AA35=0,0,AA34/AA35) -> 1.030396703 | AB36: =IF(AB35=0,0,AB34/AB35) -> 1.030396703 | AC36: 1.030396703 | AD36: 1.030396703 | AE36: 1.030396703 | AF36: 1.030396703 | AG36: 1.030396703 | AH36: 1.030396703 | AI36: 1.030396703 | AJ36: 1.030396703 | AK36: 1.030396703 | AL36: 1.030396703 | AM36: 1.030396703 | AN36: 1.030396703 | AO36: 0 | AP36: 0 | AQ36: 0 | AR36: 0 | AS36: 0 | AT36: 0 | AU36: 0 | AV36: 0 | AW36: 0 | AX36: 0 | AY36: 0 | AZ36: 0 | BA36: 0 | BB36: 0
E38: =Inputs!E117 -> Cap availability incentive upper limit | G38: scalar | I38: =Inputs!I117 -> 1.02
E39: =Inputs!E118 -> Cap availability incentive lower limit | G39: scalar | I39: =Inputs!I118 -> 0.98
E41: Cap availability incentive rate | G41: scalar | H41: AICt | P41: =IF(P36>$I38,$I38,IF(P36<$I39,$I39,P36))*P23 -> 1.02 | Q41: =IF(Q36>$I38,$I38,IF(Q36<$I39,$I39,Q36))*Q23 -> 1.02 | R41: 1.02 | S41: 1.02 | T41: 1.02 | U41: 1.02 | V41: 1.02 | W41: 1.02 | X41: 1.02 | Y41: 1.02 | Z41: 1.02 | AA41: 1.02 | AB41: 1.02 | AC41: 1.02 | AD41: 1.02 | AE41: 1.02 | AF41: 1.02 | AG41: 1.02 | AH41: 1.02 | AI41: 1.02 | AJ41: 1.02 | AK41: 1.02 | AL41: 1.02 | AM41: 1.02 | AN41: 1.02 | AO41: 0 | AP41: 0 | AQ41: 0 | AR41: 0 | AS41: 0 | AT41: 0 | AU41: 0 | AV41: 0 | AW41: 0 | AX41: 0 | AY41: 0 | AZ41: 0 | BA41: 0 | BB41: 0
C43: Floor incentive rate
E45: Floor availability incentive target | G45: % | I45: =Inputs!I131 -> 0.8
E46: Partial year Floor adjustment factor | G46: scalar | H46: PYFt | P46: =Indexation!P51 -> 0.9171800137 | Q46: =Indexation!Q51 -> 1 | R46: =Indexation!R51 -> 1 | S46: =Indexation!S51 -> 1 | T46: =Indexation!T51 -> 1 | U46: =Indexation!U51 -> 1 | V46: =Indexation!V51 -> 1 | W46: =Indexation!W51 -> 1 | X46: =Indexation!X51 -> 1 | Y46: =Indexation!Y51 -> 1 | Z46: =Indexation!Z51 -> 1 | AA46: =Indexation!AA51 -> 1 | AB46: =Indexation!AB51 -> 1 | AC46: =Indexation!AC51 -> 1 | AD46: =Indexation!AD51 -> 1 | AE46: =Indexation!AE51 -> 1 | AF46: =Indexation!AF51 -> 1 | AG46: =Indexation!AG51 -> 1 | AH46: =Indexation!AH51 -> 1 | AI46: =Indexation!AI51 -> 1 | AJ46: =Indexation!AJ51 -> 1 | AK46: =Indexation!AK51 -> 1 | AL46: =Indexation!AL51 -> 1 | AM46: =Indexation!AM51 -> 1 | AN46: =Indexation!AN51 -> 1.082819986 | AO46: =Indexation!AO51 -> 0 | AP46: =Indexation!AP51 -> 0 | AQ46: =Indexation!AQ51 -> 0 | AR46: =Indexation!AR51 -> 0 | AS46: =Indexation!AS51 -> 0 | AT46: =Indexation!AT51 -> 0 | AU46: =Indexation!AU51 -> 0 | AV46: =Indexation!AV51 -> 0 | AW46: =Indexation!AW51 -> 0 | AX46: =Indexation!AX51 -> 0 | AY46: =Indexation!AY51 -> 0 | AZ46: =Indexation!AZ51 -> 0 | BA46: =Indexation!BA51 -> 0 | BB46: =Indexation!BB51 -> 0
E47: Maximum possible availability | G47: MWh | H47: MPA | P47: =$I$25*$I$26*P46 -> 8040000 | Q47: 8766000 | R47: 8766000 | S47: 8766000 | T47: 8766000 | U47: 8766000 | V47: 8766000 | W47: 8766000 | X47: 8766000 | Y47: 8766000 | Z47: 8766000 | AA47: 8766000 | AB47: 8766000 | AC47: 8766000 | AD47: 8766000 | AE47: 8766000 | AF47: 8766000 | AG47: 8766000 | AH47: 8766000 | AI47: 8766000 | AJ47: 8766000 | AK47: 8766000 | AL47: 8766000 | AM47: 8766000 | AN47: 9492000 | AO47: 0 | AP47: 0 | AQ47: 0 | AR47: 0 | AS47: 0 | AT47: 0 | AU47: 0 | AV47: 0 | AW47: 0 | AX47: 0 | AY47: 0 | AZ47: 0 | BA47: 0 | BB47: 0
E48: Total interconnector outages less allowed outages during active Floor period | G48: MWh | H48: IOt | P48: =Inputs!P$128 -> 0 | Q48: =Inputs!Q$128 -> 0 | R48: =Inputs!R$128 -> 0 | S48: =Inputs!S$128 -> 0 | T48: =Inputs!T$128 -> 0 | U48: =Inputs!U$128 -> 0 | V48: =Inputs!V$128 -> 0 | W48: =Inputs!W$128 -> 0 | X48: =Inputs!X$128 -> 0 | Y48: =Inputs!Y$128 -> 0 | Z48: =Inputs!Z$128 -> 0 | AA48: =Inputs!AA$128 -> 0 | AB48: =Inputs!AB$128 -> 0 | AC48: =Inputs!AC$128 -> 0 | AD48: =Inputs!AD$128 -> 0 | AE48: =Inputs!AE$128 -> 0 | AF48: =Inputs!AF$128 -> 0 | AG48: =Inputs!AG$128 -> 0 | AH48: =Inputs!AH$128 -> 0 | AI48: =Inputs!AI$128 -> 0 | AJ48: =Inputs!AJ$128 -> 0 | AK48: =Inputs!AK$128 -> 0 | AL48: =Inputs!AL$128 -> 0 | AM48: =Inputs!AM$128 -> 0 | AN48: =Inputs!AN$128 -> 0 | AO48: =Inputs!AO$128 -> 0 | AP48: =Inputs!AP$128 -> 0 | AQ48: =Inputs!AQ$128 -> 0 | AR48: =Inputs!AR$128 -> 0 | AS48: =Inputs!AS$128 -> 0 | AT48: =Inputs!AT$128 -> 0 | AU48: =Inputs!AU$128 -> 0 | AV48: =Inputs!AV$128 -> 0 | AW48: =Inputs!AW$128 -> 0 | AX48: =Inputs!AX$128 -> 0 | AY48: =Inputs!AY$128 -> 0 | AZ48: =Inputs!AZ$128 -> 0 | BA48: =Inputs!BA$128 -> 0 | BB48: =Inputs!BB$128 -> 0
E49: Outages associated with exceptional events | G49: MWh | P49: =Inputs!P$129 -> 0 | Q49: =Inputs!Q$129 -> 0 | R49: =Inputs!R$129 -> 0 | S49: =Inputs!S$129 -> 0 | T49: =Inputs!T$129 -> 0 | U49: =Inputs!U$129 -> 0 | V49: =Inputs!V$129 -> 0 | W49: =Inputs!W$129 -> 0 | X49: =Inputs!X$129 -> 0 | Y49: =Inputs!Y$129 -> 0 | Z49: =Inputs!Z$129 -> 0 | AA49: =Inputs!AA$129 -> 0 | AB49: =Inputs!AB$129 -> 0 | AC49: =Inputs!AC$129 -> 0 | AD49: =Inputs!AD$129 -> 0 | AE49: =Inputs!AE$129 -> 0 | AF49: =Inputs!AF$129 -> 0 | AG49: =Inputs!AG$129 -> 0 | AH49: =Inputs!AH$129 -> 0 | AI49: =Inputs!AI$129 -> 0 | AJ49: =Inputs!AJ$129 -> 0 | AK49: =Inputs!AK$129 -> 0 | AL49: =Inputs!AL$129 -> 0 | AM49: =Inputs!AM$129 -> 0 | AN49: =Inputs!AN$129 -> 0 | AO49: =Inputs!AO$129 -> 0 | AP49: =Inputs!AP$129 -> 0 | AQ49: =Inputs!AQ$129 -> 0 | AR49: =Inputs!AR$129 -> 0 | AS49: =Inputs!AS$129 -> 0 | AT49: =Inputs!AT$129 -> 0 | AU49: =Inputs!AU$129 -> 0 | AV49: =Inputs!AV$129 -> 0 | AW49: =Inputs!AW$129 -> 0 | AX49: =Inputs!AX$129 -> 0 | AY49: =Inputs!AY$129 -> 0 | AZ49: =Inputs!AZ$129 -> 0 | BA49: =Inputs!BA$129 -> 0 | BB49: =Inputs!BB$129 -> 0
E50: Actual availability for Floor | G50: MWh | H50: AAFt (AAt) | P50: =P47-P48+P49 -> 8040000 | Q50: 8766000 | R50: 8766000 | S50: 8766000 | T50: 8766000 | U50: 8766000 | V50: 8766000 | W50: 8766000 | X50: 8766000 | Y50: 8766000 | Z50: =Z47-Z48+Z49 -> 8766000 | AA50: 8766000 | AB50: =AB47-AB48+AB49 -> 8766000 | AC50: 8766000 | AD50: 8766000 | AE50: 8766000 | AF50: 8766000 | AG50: 8766000 | AH50: 8766000 | AI50: 8766000 | AJ50: 8766000 | AK50: 8766000 | AL50: 8766000 | AM50: 8766000 | AN50: 9492000 | AO50: 0 | AP50: 0 | AQ50: 0 | AR50: 0 | AS50: 0 | AT50: 0 | AU50: 0 | AV50: 0 | AW50: 0 | AX50: 0 | AY50: 0 | AZ50: 0 | BA50: 0 | BB50: 0
E51: Minimum availability target | G51: MWh | H51: MAT | P51: =$I26*$I25*$I45*P$46 -> 6432000 | Q51: 7012800 | R51: 7012800 | S51: 7012800 | T51: 7012800 | U51: 7012800 | V51: 7012800 | W51: 7012800 | X51: 7012800 | Y51: 7012800 | Z51: 7012800 | AA51: 7012800 | AB51: 7012800 | AC51: 7012800 | AD51: 7012800 | AE51: 7012800 | AF51: 7012800 | AG51: 7012800 | AH51: 7012800 | AI51: 7012800 | AJ51: 7012800 | AK51: 7012800 | AL51: 7012800 | AM51: 7012800 | AN51: 7593600 | AO51: 0 | AP51: 0 | AQ51: 0 | AR51: 0 | AS51: 0 | AT51: 0 | AU51: 0 | AV51: 0 | AW51: 0 | AX51: 0 | AY51: 0 | AZ51: 0 | BA51: 0 | BB51: 0
E52: Availability performance at Floor | G52: scalar | H52: APFt | P52: =IF(P51=0,0,P50/P51) -> 1.25 | Q52: =IF(Q51=0,0,Q50/Q51) -> 1.25 | R52: 1.25 | S52: 1.25 | T52: 1.25 | U52: 1.25 | V52: 1.25 | W52: 1.25 | X52: 1.25 | Y52: 1.25 | Z52: =IF(Z51=0,0,Z50/Z51) -> 1.25 | AA52: 1.25 | AB52: 1.25 | AC52: =IF(AC51=0,0,AC50/AC51) -> 1.25 | AD52: =IF(AD51=0,0,AD50/AD51) -> 1.25 | AE52: =IF(AE51=0,0,AE50/AE51) -> 1.25 | AF52: =IF(AF51=0,0,AF50/AF51) -> 1.25 | AG52: =IF(AG51=0,0,AG50/AG51) -> 1.25 | AH52: =IF(AH51=0,0,AH50/AH51) -> 1.25 | AI52: =IF(AI51=0,0,AI50/AI51) -> 1.25 | AJ52: =IF(AJ51=0,0,AJ50/AJ51) -> 1.25 | AK52: =IF(AK51=0,0,AK50/AK51) -> 1.25 | AL52: =IF(AL51=0,0,AL50/AL51) -> 1.25 | AM52: =IF(AM51=0,0,AM50/AM51) -> 1.25 | AN52: =IF(AN51=0,0,AN50/AN51) -> 1.25 | AO52: =IF(AO51=0,0,AO50/AO51) -> 0 | AP52: =IF(AP51=0,0,AP50/AP51) -> 0 | AQ52: =IF(AQ51=0,0,AQ50/AQ51) -> 0 | AR52: =IF(AR51=0,0,AR50/AR51) -> 0 | AS52: =IF(AS51=0,0,AS50/AS51) -> 0 | AT52: =IF(AT51=0,0,AT50/AT51) -> 0 | AU52: =IF(AU51=0,0,AU50/AU51) -> 0 | AV52: =IF(AV51=0,0,AV50/AV51) -> 0 | AW52: =IF(AW51=0,0,AW50/AW51) -> 0 | AX52: =IF(AX51=0,0,AX50/AX51) -> 0 | AY52: =IF(AY51=0,0,AY50/AY51) -> 0 | AZ52: =IF(AZ51=0,0,AZ50/AZ51) -> 0 | BA52: =IF(BA51=0,0,BA50/BA51) -> 0 | BB52: =IF(BB51=0,0,BB50/BB51) -> 0
E54: Floor availability incentive rate | G54: =G52 -> scalar | H54: AIFt | P54: =IF(P52<1,0,1)*P23 -> 1 | Q54: =IF(Q52<1,0,1)*Q23 -> 1 | R54: 1 | S54: 1 | T54: 1 | U54: 1 | V54: 1 | W54: 1 | X54: 1 | Y54: 1 | Z54: 1 | AA54: 1 | AB54: 1 | AC54: 1 | AD54: 1 | AE54: 1 | AF54: 1 | AG54: 1 | AH54: 1 | AI54: 1 | AJ54: 1 | AK54: 1 | AL54: 1 | AM54: 1 | AN54: 1 | AO54: 0 | AP54: 0 | AQ54: 0 | AR54: 0 | AS54: 0 | AT54: 0 | AU54: 0 | AV54: 0 | AW54: 0 | AX54: 0 | AY54: 0 | AZ54: 0 | BA54: 0 | BB54: 0
B56: End of sheet

Sheet Assessment
A1: Assessment | H1: Licence
E2: Parameter | G2: Units | H2: Terminology | I2: Constant | O2: Annual values
E3: Year commencing | O3: =Inputs!O3 -> 2018-01-01 | P3: =Inputs!P3 -> 2019-01-01 | Q3: =Inputs!Q3 -> 2020-01-01 | R3: =Inputs!R3 -> 2021-01-01 | S3: =Inputs!S3 -> 2022-01-01 | T3: =Inputs!T3 -> 2023-01-01 | U3: =Inputs!U3 -> 2024-01-01 | V3: =Inputs!V3 -> 2025-01-01 | W3: =Inputs!W3 -> 2026-01-01 | X3: =Inputs!X3 -> 2027-01-01 | Y3: =Inputs!Y3 -> 2028-01-01 | Z3: =Inputs!Z3 -> 2029-01-01 | AA3: =Inputs!AA3 -> 2030-01-01 | AB3: =Inputs!AB3 -> 2031-01-01 | AC3: =Inputs!AC3 -> 2032-01-01 | AD3: =Inputs!AD3 -> 2033-01-01 | AE3: =Inputs!AE3 -> 2034-01-01 | AF3: =Inputs!AF3 -> 2035-01-01 | AG3: =Inputs!AG3 -> 2036-01-01 | AH3: =Inputs!AH3 -> 2037-01-01 | AI3: =Inputs!AI3 -> 2038-01-01 | AJ3: =Inputs!AJ3 -> 2039-01-01 | AK3: =Inputs!AK3 -> 2040-01-01 | AL3: =Inputs!AL3 -> 2041-01-01 | AM3: =Inputs!AM3 -> 2042-01-01 | AN3: =Inputs!AN3 -> 2043-01-01 | AO3: =Inputs!AO3 -> 2044-01-01 | AP3: =Inputs!AP3 -> 2045-01-01 | AQ3: =Inputs!AQ3 -> 2046-01-01 | AR3: =Inputs!AR3 -> 2047-01-01 | AS3: =Inputs!AS3 -> 2048-01-01 | AT3: =Inputs!AT3 -> 2049-01-01 | AU3: =Inputs!AU3 -> 2050-01-01 | AV3: =Inputs!AV3 -> 2051-01-01 | AW3: =Inputs!AW3 -> 2052-01-01 | AX3: =Inputs!AX3 -> 2053-01-01 | AY3: =Inputs!AY3 -> 2054-01-01 | AZ3: =Inputs!AZ3 -> 2055-01-01 | BA3: =Inputs!BA3 -> 2056-01-01 | BB3: =Inputs!BB3 -> 2057-01-01
E4: Year ending | O4: =Inputs!O4 -> 2018-12-31 | P4: =Inputs!P4 -> 2019-12-31 | Q4: =Inputs!Q4 -> 2020-12-31 | R4: =Inputs!R4 -> 2021-12-31 | S4: =Inputs!S4 -> 2022-12-31 | T4: =Inputs!T4 -> 2023-12-31 | U4: =Inputs!U4 -> 2024-12-31 | V4: =Inputs!V4 -> 2025-12-31 | W4: =Inputs!W4 -> 2026-12-31 | X4: =Inputs!X4 -> 2027-12-31 | Y4: =Inputs!Y4 -> 2028-12-31 | Z4: =Inputs!Z4 -> 2029-12-31 | AA4: =Inputs!AA4 -> 2030-12-31 | AB4: =Inputs!AB4 -> 2031-12-31 | AC4: =Inputs!AC4 -> 2032-12-31 | AD4: =Inputs!AD4 -> 2033-12-31 | AE4: =Inputs!AE4 -> 2034-12-31 | AF4: =Inputs!AF4 -> 2035-12-31 | AG4: =Inputs!AG4 -> 2036-12-31 | AH4: =Inputs!AH4 -> 2037-12-31 | AI4: =Inputs!AI4 -> 2038-12-31 | AJ4: =Inputs!AJ4 -> 2039-12-31 | AK4: =Inputs!AK4 -> 2040-12-31 | AL4: =Inputs!AL4 -> 2041-12-31 | AM4: =Inputs!AM4 -> 2042-12-31 | AN4: =Inputs!AN4 -> 2043-12-31 | AO4: =Inputs!AO4 -> 2044-12-31 | AP4: =Inputs!AP4 -> 2045-12-31 | AQ4: =Inputs!AQ4 -> 2046-12-31 | AR4: =Inputs!AR4 -> 2047-12-31 | AS4: =Inputs!AS4 -> 2048-12-31 | AT4: =Inputs!AT4 -> 2049-12-31 | AU4: =Inputs!AU4 -> 2050-12-31 | AV4: =Inputs!AV4 -> 2051-12-31 | AW4: =Inputs!AW4 -> 2052-12-31 | AX4: =Inputs!AX4 -> 2053-12-31 | AY4: =Inputs!AY4 -> 2054-12-31 | AZ4: =Inputs!AZ4 -> 2055-12-31 | BA4: =Inputs!BA4 -> 2056-12-31 | BB4: =Inputs!BB4 -> 2057-12-31
E5: Operational year | O5: =Inputs!O5 -> 0 | P5: =Inputs!P5 -> 1 | Q5: =Inputs!Q5 -> 2 | R5: =Inputs!R5 -> 3 | S5: =Inputs!S5 -> 4 | T5: =Inputs!T5 -> 5 | U5: =Inputs!U5 -> 6 | V5: =Inputs!V5 -> 7 | W5: =Inputs!W5 -> 8 | X5: =Inputs!X5 -> 9 | Y5: =Inputs!Y5 -> 10 | Z5: =Inputs!Z5 -> 11 | AA5: =Inputs!AA5 -> 12 | AB5: =Inputs!AB5 -> 13 | AC5: =Inputs!AC5 -> 14 | AD5: =Inputs!AD5 -> 15 | AE5: =Inputs!AE5 -> 16 | AF5: =Inputs!AF5 -> 17 | AG5: =Inputs!AG5 -> 18 | AH5: =Inputs!AH5 -> 19 | AI5: =Inputs!AI5 -> 20 | AJ5: =Inputs!AJ5 -> 21 | AK5: =Inputs!AK5 -> 22 | AL5: =Inputs!AL5 -> 23 | AM5: =Inputs!AM5 -> 24 | AN5: =Inputs!AN5 -> 25 | AO5: =Inputs!AO5 -> 26 | AP5: =Inputs!AP5 -> 27 | AQ5: =Inputs!AQ5 -> 28 | AR5: =Inputs!AR5 -> 29 | AS5: =Inputs!AS5 -> 30 | AT5: =Inputs!AT5 -> 31 | AU5: =Inputs!AU5 -> 32 | AV5: =Inputs!AV5 -> 33 | AW5: =Inputs!AW5 -> 34 | AX5: =Inputs!AX5 -> 35 | AY5: =Inputs!AY5 -> 36 | AZ5: =Inputs!AZ5 -> 37 | BA5: =Inputs!BA5 -> 38 | BB5: =Inputs!BB5 -> 39
B7: Revenue assessment
C9: NPV uplift factors
E11: PPPI index | G11: scalar | H11: =Indexation!H11 -> PPPIt | O11: =Inputs!O144 -> 1.130441667 | P11: =Inputs!P144 -> 1.1407 | Q11: =Inputs!Q144 -> 1.1118 | R11: =Inputs!R144 -> 1.1118 | S11: =Inputs!S144 -> 1.1118 | T11: =Inputs!T144 -> 1.1118 | U11: =Inputs!U144 -> 1.1118 | V11: =Inputs!V144 -> 1.1118 | W11: =Inputs!W144 -> 1.1118 | X11: =Inputs!X144 -> 1.1118 | Y11: =Inputs!Y144 -> 1.1118 | Z11: =Inputs!Z144 -> 1.1118 | AA11: =Inputs!AA144 -> 1.1118 | AB11: =Inputs!AB144 -> 1.1118 | AC11: =Inputs!AC144 -> 1.1118 | AD11: =Inputs!AD144 -> 1.1118 | AE11: =Inputs!AE144 -> 1.1118 | AF11: =Inputs!AF144 -> 1.1118 | AG11: =Inputs!AG144 -> 1.1118 | AH11: =Inputs!AH144 -> 1.1118 | AI11: =Inputs!AI144 -> 1.1118 | AJ11: =Inputs!AJ144 -> 1.1118 | AK11: =Inputs!AK144 -> 1.1118 | AL11: =Inputs!AL144 -> 1.1118 | AM11: =Inputs!AM144 -> 1.1118 | AN11: =Inputs!AN144 -> 1.1118 | AO11: =Inputs!AO144 -> 1.1118 | AP11: =Inputs!AP144 -> 1.1118 | AQ11: =Inputs!AQ144 -> 1.1118 | AR11: =Inputs!AR144 -> 2.327383874 | AS11: =Inputs!AS144 -> 2.387078328 | AT11: =Inputs!AT144 -> 2.448361075 | AU11: =Inputs!AU144 -> 2.511275712 | AV11: =Inputs!AV144 -> 2.575867064 | AW11: =Inputs!AW144 -> 2.642181218 | AX11: =Inputs!AX144 -> 2.71026556 | AY11: =Inputs!AY144 -> 2.78016881 | AZ11: =Inputs!AZ144 -> 2.851941063 | BA11: =Inputs!BA144 -> 2.925633828 | BB11: =Inputs!BB144 -> 3.001300066
E12: PPPI index change | G12: annual % | H12: CPPPIt | P12: =P11/O11-1 -> 0.009074624225 | Q12: =Q11/P11-1 -> -0.02533532042 | R12: 0 | S12: 0 | T12: 0 | U12: 0 | V12: 0 | W12: 0 | X12: 0 | Y12: 0 | Z12: =Z11/Y11-1 -> 0 | AA12: =AA11/Z11-1 -> 0 | AB12: 0 | AC12: 0 | AD12: 0 | AE12: 0 | AF12: 0 | AG12: 0 | AH12: 0 | AI12: 0 | AJ12: 0 | AK12: 0 | AL12: 0 | AM12: 0 | AN12: 0 | AO12: 0 | AP12: 0 | AQ12: 0 | AR12: 1.093347611 | AS12: 0.02564873584 | AT12: 0.02567270033 | AU12: 0.02569663338 | AV12: 0.02572053391 | AW12: 0.02574440087 | AX12: 0.02576823319 | AY12: 0.02579202981 | AZ12: 0.02581578969 | BA12: 0.02583951177 | BB12: 0.02586319503
E13: =Inputs!E42 -> Operational discount rate | G13: =Inputs!G42 -> real annual % | H13: ODR | I13: =Inputs!I42 -> 0.0388
E14: Operational discount rate | G14: nominal % | H14: NODRt | L14: 0 | M14: 0 | N14: 0 | O14: 0 | P14: =(1+$I13)*(1+P12)-1 -> 0.04822671964 | Q14: 0.01248166915 | R14: 0.0388 | S14: 0.0388 | T14: 0.0388 | U14: 0.0388 | V14: 0.0388 | W14: 0.0388 | X14: 0.0388 | Y14: 0.0388 | Z14: =(1+$I13)*(1+Z12)-1 -> 0.0388 | AA14: =(1+$I13)*(1+AA12)-1 -> 0.0388 | AB14: 0.0388 | AC14: 0.0388 | AD14: 0.0388 | AE14: 0.0388 | AF14: 0.0388 | AG14: 0.0388 | AH14: 0.0388 | AI14: 0.0388 | AJ14: 0.0388 | AK14: 0.0388 | AL14: 0.0388 | AM14: 0.0388 | AN14: 0.0388 | AO14: 0.0388 | AP14: 0.0388 | AQ14: 0.0388 | AR14: 1.174569498 | AS14: 0.06544390679 | AT14: 0.0654688011 | AU14: 0.06549366275 | AV14: 0.06551849063 | AW14: 0.06554328363 | AX14: 0.06556804064 | AY14: 0.06559276057 | AZ14: 0.06561744233 | BA14: 0.06564208483 | BB14: 0.06566668699
E16: Five-year uplift factor | G16: scalar | H16: UFt1 | P16: =IF($I$47<5,0,IF(OR(P$5<1,P$5>Inputs!$I$74),0,IF(OR(MOD(P$5,$I$47)=1,MOD(P$5,$I$47)=2,MOD(P$5,$I$47)=3,MOD(P$5,$I$47)=4),0,(1+P$14)*(1+O$14)*(1+N$14)*(1+M$14)))) -> 0 | Q16: =IF($I$47<5,0,IF(OR(Q$5<1,Q$5>Inputs!$I$74),0,IF(OR(MOD(Q$5,$I$47)=1,MOD(Q$5,$I$47)=2,MOD(Q$5,$I$47)=3,MOD(Q$5,$I$47)=4),0,(1+Q$14)*(1+P$14)*(1+O$14)*(1+N$14)))) -> 0 | R16: =IF($I$47<5,0,IF(OR(R$5<1,R$5>Inputs!$I$74),0,IF(OR(MOD(R$5,$I$47)=1,MOD(R$5,$I$47)=2,MOD(R$5,$I$47)=3,MOD(R$5,$I$47)=4),0,(1+R$14)*(1+Q$14)*(1+P$14)*(1+O$14)))) -> 0 | S16: =IF($I$47<5,0,IF(OR(S$5<1,S$5>Inputs!$I$74),0,IF(OR(MOD(S$5,$I$47)=1,MOD(S$5,$I$47)=2,MOD(S$5,$I$47)=3,MOD(S$5,$I$47)=4),0,(1+S$14)*(1+R$14)*(1+Q$14)*(1+P$14)))) -> 0 | T16: =IF($I$47<5,0,IF(OR(T$5<1,T$5>Inputs!$I$74),0,IF(OR(MOD(T$5,$I$47)=1,MOD(T$5,$I$47)=2,MOD(T$5,$I$47)=3,MOD(T$5,$I$47)=4),0,(1+T$14)*(1+S$14)*(1+R$14)*(1+Q$14)))) -> 1.134966367 | U16: =IF($I$47<5,0,IF(OR(U$5<1,U$5>Inputs!$I$74),0,IF(OR(MOD(U$5,$I$47)=1,MOD(U$5,$I$47)=2,MOD(U$5,$I$47)=3,MOD(U$5,$I$47)=4),0,(1+U$14)*(1+T$14)*(1+S$14)*(1+R$14)))) -> 0 | V16: =IF($I$47<5,0,IF(OR(V$5<1,V$5>Inputs!$I$74),0,IF(OR(MOD(V$5,$I$47)=1,MOD(V$5,$I$47)=2,MOD(V$5,$I$47)=3,MOD(V$5,$I$47)=4),0,(1+V$14)*(1+U$14)*(1+T$14)*(1+S$14)))) -> 0 | W16: =IF($I$47<5,0,IF(OR(W$5<1,W$5>Inputs!$I$74),0,IF(OR(MOD(W$5,$I$47)=1,MOD(W$5,$I$47)=2,MOD(W$5,$I$47)=3,MOD(W$5,$I$47)=4),0,(1+W$14)*(1+V$14)*(1+U$14)*(1+T$14)))) -> 0 | X16: =IF($I$47<5,0,IF(OR(X$5<1,X$5>Inputs!$I$74),0,IF(OR(MOD(X$5,$I$47)=1,MOD(X$5,$I$47)=2,MOD(X$5,$I$47)=3,MOD(X$5,$I$47)=4),0,(1+X$14)*(1+W$14)*(1+V$14)*(1+U$14)))) -> 0 | Y16: =IF($I$47<5,0,IF(OR(Y$5<1,Y$5>Inputs!$I$74),0,IF(OR(MOD(Y$5,$I$47)=1,MOD(Y$5,$I$47)=2,MOD(Y$5,$I$47)=3,MOD(Y$5,$I$47)=4),0,(1+Y$14)*(1+X$14)*(1+W$14)*(1+V$14)))) -> 1.164468551 | Z16: =IF($I$47<5,0,IF(OR(Z$5<1,Z$5>Inputs!$I$74),0,IF(OR(MOD(Z$5,$I$47)=1,MOD(Z$5,$I$47)=2,MOD(Z$5,$I$47)=3,MOD(Z$5,$I$47)=4),0,(1+Z$14)*(1+Y$14)*(1+X$14)*(1+W$14)))) -> 0 | AA16: =IF($I$47<5,0,IF(OR(AA$5<1,AA$5>Inputs!$I$74),0,IF(OR(MOD(AA$5,$I$47)=1,MOD(AA$5,$I$47)=2,MOD(AA$5,$I$47)=3,MOD(AA$5,$I$47)=4),0,(1+AA$14)*(1+Z$14)*(1+Y$14)*(1+X$14)))) -> 0 | AB16: =IF($I$47<5,0,IF(OR(AB$5<1,AB$5>Inputs!$I$74),0,IF(OR(MOD(AB$5,$I$47)=1,MOD(AB$5,$I$47)=2,MOD(AB$5,$I$47)=3,MOD(AB$5,$I$47)=4),0,(1+AB$14)*(1+AA$14)*(1+Z$14)*(1+Y$14)))) -> 0 | AC16: =IF($I$47<5,0,IF(OR(AC$5<1,AC$5>Inputs!$I$74),0,IF(OR(MOD(AC$5,$I$47)=1,MOD(AC$5,$I$47)=2,MOD(AC$5,$I$47)=3,MOD(AC$5,$I$47)=4),0,(1+AC$14)*(1+AB$14)*(1+AA$14)*(1+Z$14)))) -> 0 | AD16: =IF($I$47<5,0,IF(OR(AD$5<1,AD$5>Inputs!$I$74),0,IF(OR(MOD(AD$5,$I$47)=1,MOD(AD$5,$I$47)=2,MOD(AD$5,$I$47)=3,MOD(AD$5,$I$47)=4),0,(1+AD$14)*(1+AC$14)*(1+AB$14)*(1+AA$14)))) -> 1.164468551 | AE16: =IF($I$47<5,0,IF(OR(AE$5<1,AE$5>Inputs!$I$74),0,IF(OR(MOD(AE$5,$I$47)=1,MOD(AE$5,$I$47)=2,MOD(AE$5,$I$47)=3,MOD(AE$5,$I$47)=4),0,(1+AE$14)*(1+AD$14)*(1+AC$14)*(1+AB$14)))) -> 0 | AF16: =IF($I$47<5,0,IF(OR(AF$5<1,AF$5>Inputs!$I$74),0,IF(OR(MOD(AF$5,$I$47)=1,MOD(AF$5,$I$47)=2,MOD(AF$5,$I$47)=3,MOD(AF$5,$I$47)=4),0,(1+AF$14)*(1+AE$14)*(1+AD$14)*(1+AC$14)))) -> 0 | AG16: =IF($I$47<5,0,IF(OR(AG$5<1,AG$5>Inputs!$I$74),0,IF(OR(MOD(AG$5,$I$47)=1,MOD(AG$5,$I$47)=2,MOD(AG$5,$I$47)=3,MOD(AG$5,$I$47)=4),0,(1+AG$14)*(1+AF$14)*(1+AE$14)*(1+AD$14)))) -> 0 | AH16: =IF($I$47<5,0,IF(OR(AH$5<1,AH$5>Inputs!$I$74),0,IF(OR(MOD(AH$5,$I$47)=1,MOD(AH$5,$I$47)=2,MOD(AH$5,$I$47)=3,MOD(AH$5,$I$47)=4),0,(1+AH$14)*(1+AG$14)*(1+AF$14)*(1+AE$14)))) -> 0 | AI16: =IF($I$47<5,0,IF(OR(AI$5<1,AI$5>Inputs!$I$74),0,IF(OR(MOD(AI$5,$I$47)=1,MOD(AI$5,$I$47)=2,MOD(AI$5,$I$47)=3,MOD(AI$5,$I$47)=4),0,(1+AI$14)*(1+AH$14)*(1+AG$14)*(1+AF$14)))) -> 1.164468551 | AJ16: =IF($I$47<5,0,IF(OR(AJ$5<1,AJ$5>Inputs!$I$74),0,IF(OR(MOD(AJ$5,$I$47)=1,MOD(AJ$5,$I$47)=2,MOD(AJ$5,$I$47)=3,MOD(AJ$5,$I$47)=4),0,(1+AJ$14)*(1+AI$14)*(1+AH$14)*(1+AG$14)))) -> 0 | AK16: =IF($I$47<5,0,IF(OR(AK$5<1,AK$5>Inputs!$I$74),0,IF(OR(MOD(AK$5,$I$47)=1,MOD(AK$5,$I$47)=2,MOD(AK$5,$I$47)=3,MOD(AK$5,$I$47)=4),0,(1+AK$14)*(1+AJ$14)*(1+AI$14)*(1+AH$14)))) -> 0 | AL16: =IF($I$47<5,0,IF(OR(AL$5<1,AL$5>Inputs!$I$74),0,IF(OR(MOD(AL$5,$I$47)=1,MOD(AL$5,$I$47)=2,MOD(AL$5,$I$47)=3,MOD(AL$5,$I$47)=4),0,(1+AL$14)*(1+AK$14)*(1+AJ$14)*(1+AI$14)))) -> 0 | AM16: =IF($I$47<5,0,IF(OR(AM$5<1,AM$5>Inputs!$I$74),0,IF(OR(MOD(AM$5,$I$47)=1,MOD(AM$5,$I$47)=2,MOD(AM$5,$I$47)=3,MOD(AM$5,$I$47)=4),0,(1+AM$14)*(1+AL$14)*(1+AK$14)*(1+AJ$14)))) -> 0 | AN16: =IF($I$47<5,0,IF(OR(AN$5<1,AN$5>Inputs!$I$74),0,IF(OR(MOD(AN$5,$I$47)=1,MOD(AN$5,$I$47)=2,MOD(AN$5,$I$47)=3,MOD(AN$5,$I$47)=4),0,(1+AN$14)*(1+AM$14)*(1+AL$14)*(1+AK$14)))) -> 1.164468551 | AO16: =IF($I$47<5,0,IF(OR(AO$5<1,AO$5>Inputs!$I$74),0,IF(OR(MOD(AO$5,$I$47)=1,MOD(AO$5,$I$47)=2,MOD(AO$5,$I$47)=3,MOD(AO$5,$I$47)=4),0,(1+AO$14)*(1+AN$14)*(1+AM$14)*(1+AL$14)))) -> 0 | AP16: =IF($I$47<5,0,IF(OR(AP$5<1,AP$5>Inputs!$I$74),0,IF(OR(MOD(AP$5,$I$47)=1,MOD(AP$5,$I$47)=2,MOD(AP$5,$I$47)=3,MOD(AP$5,$I$47)=4),0,(1+AP$14)*(1+AO$14)*(1+AN$14)*(1+AM$14)))) -> 0 | AQ16: =IF($I$47<5,0,IF(OR(AQ$5<1,AQ$5>Inputs!$I$74),0,IF(OR(MOD(AQ$5,$I$47)=1,MOD(AQ$5,$I$47)=2,MOD(AQ$5,$I$47)=3,MOD(AQ$5,$I$47)=4),0,(1+AQ$14)*(1+AP$14)*(1+AO$14)*(1+AN$14)))) -> 0 | AR16: =IF($I$47<5,0,IF(OR(AR$5<1,AR$5>Inputs!$I$74),0,IF(OR(MOD(AR$5,$I$47)=1,MOD(AR$5,$I$47)=2,MOD(AR$5,$I$47)=3,MOD(AR$5,$I$47)=4),0,(1+AR$14)*(1+AQ$14)*(1+AP$14)*(1+AO$14)))) -> 0 | AS16: =IF($I$47<5,0,IF(OR(AS$5<1,AS$5>Inputs!$I$74),0,IF(OR(MOD(AS$5,$I$47)=1,MOD(AS$5,$I$47)=2,MOD(AS$5,$I$47)=3,MOD(AS$5,$I$47)=4),0,(1+AS$14)*(1+AR$14)*(1+AQ$14)*(1+AP$14)))) -> 0 | AT16: =IF($I$47<5,0,IF(OR(AT$5<1,AT$5>Inputs!$I$74),0,IF(OR(MOD(AT$5,$I$47)=1,MOD(AT$5,$I$47)=2,MOD(AT$5,$I$47)=3,MOD(AT$5,$I$47)=4),0,(1+AT$14)*(1+AS$14)*(1+AR$14)*(1+AQ$14)))) -> 0 | AU16: =IF($I$47<5,0,IF(OR(AU$5<1,AU$5>Inputs!$I$74),0,IF(OR(MOD(AU$5,$I$47)=1,MOD(AU$5,$I$47)=2,MOD(AU$5,$I$47)=3,MOD(AU$5,$I$47)=4),0,(1+AU$14)*(1+AT$14)*(1+AS$14)*(1+AR$14)))) -> 0 | AV16: =IF($I$47<5,0,IF(OR(AV$5<1,AV$5>Inputs!$I$74),0,IF(OR(MOD(AV$5,$I$47)=1,MOD(AV$5,$I$47)=2,MOD(AV$5,$I$47)=3,MOD(AV$5,$I$47)=4),0,(1+AV$14)*(1+AU$14)*(1+AT$14)*(1+AS$14)))) -> 0 | AW16: =IF($I$47<5,0,IF(OR(AW$5<1,AW$5>Inputs!$I$74),0,IF(OR(MOD(AW$5,$I$47)=1,MOD(AW$5,$I$47)=2,MOD(AW$5,$I$47)=3,MOD(AW$5,$I$47)=4),0,(1+AW$14)*(1+AV$14)*(1+AU$14)*(1+AT$14)))) -> 0 | AX16: =IF($I$47<5,0,IF(OR(AX$5<1,AX$5>Inputs!$I$74),0,IF(OR(MOD(AX$5,$I$47)=1,MOD(AX$5,$I$47)=2,MOD(AX$5,$I$47)=3,MOD(AX$5,$I$47)=4),0,(1+AX$14)*(1+AW$14)*(1+AV$14)*(1+AU$14)))) -> 0 | AY16: =IF($I$47<5,0,IF(OR(AY$5<1,AY$5>Inputs!$I$74),0,IF(OR(MOD(AY$5,$I$47)=1,MOD(AY$5,$I$47)=2,MOD(AY$5,$I$47)=3,MOD(AY$5,$I$47)=4),0,(1+AY$14)*(1+AX$14)*(1+AW$14)*(1+AV$14)))) -> 0 | AZ16: =IF($I$47<5,0,IF(OR(AZ$5<1,AZ$5>Inputs!$I$74),0,IF(OR(MOD(AZ$5,$I$47)=1,MOD(AZ$5,$I$47)=2,MOD(AZ$5,$I$47)=3,MOD(AZ$5,$I$47)=4),0,(1+AZ$14)*(1+AY$14)*(1+AX$14)*(1+AW$14)))) -> 0 | BA16: =IF($I$47<5,0,IF(OR(BA$5<1,BA$5>Inputs!$I$74),0,IF(OR(MOD(BA$5,$I$47)=1,MOD(BA$5,$I$47)=2,MOD(BA$5,$I$47)=3,MOD(BA$5,$I$47)=4),0,(1+BA$14)*(1+AZ$14)*(1+AY$14)*(1+AX$14)))) -> 0 | BB16: =IF($I$47<5,0,IF(OR(BB$5<1,BB$5>Inputs!$I$74),0,IF(OR(MOD(BB$5,$I$47)=1,MOD(BB$5,$I$47)=2,MOD(BB$5,$I$47)=3,MOD(BB$5,$I$47)=4),0,(1+BB$14)*(1+BA$14)*(1+AZ$14)*(1+AY$14)))) -> 0
E17: Four-year uplift factor | G17: scalar | H17: UFt2 | P17: =IF($I$47<4,0,IF(OR(P$5<1,P$5>Inputs!$I$74),0,IF(OR(MOD(P$5,$I$47)=1,MOD(P$5,$I$47)=2,MOD(P$5,$I$47)=3),0,(1+P$14)*(1+O$14)*(1+N$14)))) -> 0 | Q17: =IF($I$47<4,0,IF(OR(Q$5<1,Q$5>Inputs!$I$74),0,IF(OR(MOD(Q$5,$I$47)=1,MOD(Q$5,$I$47)=2,MOD(Q$5,$I$47)=3),0,(1+Q$14)*(1+P$14)*(1+O$14)))) -> 0 | R17: =IF($I$47<4,0,IF(OR(R$5<1,R$5>Inputs!$I$74),0,IF(OR(MOD(R$5,$I$47)=1,MOD(R$5,$I$47)=2,MOD(R$5,$I$47)=3),0,(1+R$14)*(1+Q$14)*(1+P$14)))) -> 0 | S17: =IF($I$47<4,0,IF(OR(S$5<1,S$5>Inputs!$I$74),0,IF(OR(MOD(S$5,$I$47)=1,MOD(S$5,$I$47)=2,MOD(S$5,$I$47)=3),0,(1+S$14)*(1+R$14)*(1+Q$14)))) -> 1.092574477 | T17: =IF($I$47<4,0,IF(OR(T$5<1,T$5>Inputs!$I$74),0,IF(OR(MOD(T$5,$I$47)=1,MOD(T$5,$I$47)=2,MOD(T$5,$I$47)=3),0,(1+T$14)*(1+S$14)*(1+R$14)))) -> 1.120974731 | U17: =IF($I$47<4,0,IF(OR(U$5<1,U$5>Inputs!$I$74),0,IF(OR(MOD(U$5,$I$47)=1,MOD(U$5,$I$47)=2,MOD(U$5,$I$47)=3),0,(1+U$14)*(1+T$14)*(1+S$14)))) -> 0 | V17: =IF($I$47<4,0,IF(OR(V$5<1,V$5>Inputs!$I$74),0,IF(OR(MOD(V$5,$I$47)=1,MOD(V$5,$I$47)=2,MOD(V$5,$I$47)=3),0,(1+V$14)*(1+U$14)*(1+T$14)))) -> 0 | W17: =IF($I$47<4,0,IF(OR(W$5<1,W$5>Inputs!$I$74),0,IF(OR(MOD(W$5,$I$47)=1,MOD(W$5,$I$47)=2,MOD(W$5,$I$47)=3),0,(1+W$14)*(1+V$14)*(1+U$14)))) -> 0 | X17: =IF($I$47<4,0,IF(OR(X$5<1,X$5>Inputs!$I$74),0,IF(OR(MOD(X$5,$I$47)=1,MOD(X$5,$I$47)=2,MOD(X$5,$I$47)=3),0,(1+X$14)*(1+W$14)*(1+V$14)))) -> 1.120974731 | Y17: =IF($I$47<4,0,IF(OR(Y$5<1,Y$5>Inputs!$I$74),0,IF(OR(MOD(Y$5,$I$47)=1,MOD(Y$5,$I$47)=2,MOD(Y$5,$I$47)=3),0,(1+Y$14)*(1+X$14)*(1+W$14)))) -> 1.120974731 | Z17: =IF($I$47<4,0,IF(OR(Z$5<1,Z$5>Inputs!$I$74),0,IF(OR(MOD(Z$5,$I$47)=1,MOD(Z$5,$I$47)=2,MOD(Z$5,$I$47)=3),0,(1+Z$14)*(1+Y$14)*(1+X$14)))) -> 0 | AA17: =IF($I$47<4,0,IF(OR(AA$5<1,AA$5>Inputs!$I$74),0,IF(OR(MOD(AA$5,$I$47)=1,MOD(AA$5,$I$47)=2,MOD(AA$5,$I$47)=3),0,(1+AA$14)*(1+Z$14)*(1+Y$14)))) -> 0 | AB17: =IF($I$47<4,0,IF(OR(AB$5<1,AB$5>Inputs!$I$74),0,IF(OR(MOD(AB$5,$I$47)=1,MOD(AB$5,$I$47)=2,MOD(AB$5,$I$47)=3),0,(1+AB$14)*(1+AA$14)*(1+Z$14)))) -> 0 | AC17: =IF($I$47<4,0,IF(OR(AC$5<1,AC$5>Inputs!$I$74),0,IF(OR(MOD(AC$5,$I$47)=1,MOD(AC$5,$I$47)=2,MOD(AC$5,$I$47)=3),0,(1+AC$14)*(1+AB$14)*(1+AA$14)))) -> 1.120974731 | AD17: =IF($I$47<4,0,IF(OR(AD$5<1,AD$5>Inputs!$I$74),0,IF(OR(MOD(AD$5,$I$47)=1,MOD(AD$5,$I$47)=2,MOD(AD$5,$I$47)=3),0,(1+AD$14)*(1+AC$14)*(1+AB$14)))) -> 1.120974731 | AE17: =IF($I$47<4,0,IF(OR(AE$5<1,AE$5>Inputs!$I$74),0,IF(OR(MOD(AE$5,$I$47)=1,MOD(AE$5,$I$47)=2,MOD(AE$5,$I$47)=3),0,(1+AE$14)*(1+AD$14)*(1+AC$14)))) -> 0 | AF17: =IF($I$47<4,0,IF(OR(AF$5<1,AF$5>Inputs!$I$74),0,IF(OR(MOD(AF$5,$I$47)=1,MOD(AF$5,$I$47)=2,MOD(AF$5,$I$47)=3),0,(1+AF$14)*(1+AE$14)*(1+AD$14)))) -> 0 | AG17: =IF($I$47<4,0,IF(OR(AG$5<1,AG$5>Inputs!$I$74),0,IF(OR(MOD(AG$5,$I$47)=1,MOD(AG$5,$I$47)=2,MOD(AG$5,$I$47)=3),0,(1+AG$14)*(1+AF$14)*(1+AE$14)))) -> 0 | AH17: =IF($I$47<4,0,IF(OR(AH$5<1,AH$5>Inputs!$I$74),0,IF(OR(MOD(AH$5,$I$47)=1,MOD(AH$5,$I$47)=2,MOD(AH$5,$I$47)=3),0,(1+AH$14)*(1+AG$14)*(1+AF$14)))) -> 1.120974731 | AI17: =IF($I$47<4,0,IF(OR(AI$5<1,AI$5>Inputs!$I$74),0,IF(OR(MOD(AI$5,$I$47)=1,MOD(AI$5,$I$47)=2,MOD(AI$5,$I$47)=3),0,(1+AI$14)*(1+AH$14)*(1+AG$14)))) -> 1.120974731 | AJ17: =IF($I$47<4,0,IF(OR(AJ$5<1,AJ$5>Inputs!$I$74),0,IF(OR(MOD(AJ$5,$I$47)=1,MOD(AJ$5,$I$47)=2,MOD(AJ$5,$I$47)=3),0,(1+AJ$14)*(1+AI$14)*(1+AH$14)))) -> 0 | AK17: =IF($I$47<4,0,IF(OR(AK$5<1,AK$5>Inputs!$I$74),0,IF(OR(MOD(AK$5,$I$47)=1,MOD(AK$5,$I$47)=2,MOD(AK$5,$I$47)=3),0,(1+AK$14)*(1+AJ$14)*(1+AI$14)))) -> 0 | AL17: =IF($I$47<4,0,IF(OR(AL$5<1,AL$5>Inputs!$I$74),0,IF(OR(MOD(AL$5,$I$47)=1,MOD(AL$5,$I$47)=2,MOD(AL$5,$I$47)=3),0,(1+AL$14)*(1+AK$14)*(1+AJ$14)))) -> 0 | AM17: =IF($I$47<4,0,IF(OR(AM$5<1,AM$5>Inputs!$I$74),0,IF(OR(MOD(AM$5,$I$47)=1,MOD(AM$5,$I$47)=2,MOD(AM$5,$I$47)=3),0,(1+AM$14)*(1+AL$14)*(1+AK$14)))) -> 1.120974731 | AN17: =IF($I$47<4,0,IF(OR(AN$5<1,AN$5>Inputs!$I$74),0,IF(OR(MOD(AN$5,$I$47)=1,MOD(AN$5,$I$47)=2,MOD(AN$5,$I$47)=3),0,(1+AN$14)*(1+AM$14)*(1+AL$14)))) -> 1.120974731 | AO17: =IF($I$47<4,0,IF(OR(AO$5<1,AO$5>Inputs!$I$74),0,IF(OR(MOD(AO$5,$I$47)=1,MOD(AO$5,$I$47)=2,MOD(AO$5,$I$47)=3),0,(1+AO$14)*(1+AN$14)*(1+AM$14)))) -> 0 | AP17: =IF($I$47<4,0,IF(OR(AP$5<1,AP$5>Inputs!$I$74),0,IF(OR(MOD(AP$5,$I$47)=1,MOD(AP$5,$I$47)=2,MOD(AP$5,$I$47)=3),0,(1+AP$14)*(1+AO$14)*(1+AN$14)))) -> 0 | AQ17: =IF($I$47<4,0,IF(OR(AQ$5<1,AQ$5>Inputs!$I$74),0,IF(OR(MOD(AQ$5,$I$47)=1,MOD(AQ$5,$I$47)=2,MOD(AQ$5,$I$47)=3),0,(1+AQ$14)*(1+AP$14)*(1+AO$14)))) -> 0 | AR17: =IF($I$47<4,0,IF(OR(AR$5<1,AR$5>Inputs!$I$74),0,IF(OR(MOD(AR$5,$I$47)=1,MOD(AR$5,$I$47)=2,MOD(AR$5,$I$47)=3),0,(1+AR$14)*(1+AQ$14)*(1+AP$14)))) -> 0 | AS17: =IF($I$47<4,0,IF(OR(AS$5<1,AS$5>Inputs!$I$74),0,IF(OR(MOD(AS$5,$I$47)=1,MOD(AS$5,$I$47)=2,MOD(AS$5,$I$47)=3),0,(1+AS$14)*(1+AR$14)*(1+AQ$14)))) -> 0 | AT17: =IF($I$47<4,0,IF(OR(AT$5<1,AT$5>Inputs!$I$74),0,IF(OR(MOD(AT$5,$I$47)=1,MOD(AT$5,$I$47)=2,MOD(AT$5,$I$47)=3),0,(1+AT$14)*(1+AS$14)*(1+AR$14)))) -> 0 | AU17: =IF($I$47<4,0,IF(OR(AU$5<1,AU$5>Inputs!$I$74),0,IF(OR(MOD(AU$5,$I$47)=1,MOD(AU$5,$I$47)=2,MOD(AU$5,$I$47)=3),0,(1+AU$14)*(1+AT$14)*(1+AS$14)))) -> 0 | AV17: =IF($I$47<4,0,IF(OR(AV$5<1,AV$5>Inputs!$I$74),0,IF(OR(MOD(AV$5,$I$47)=1,MOD(AV$5,$I$47)=2,MOD(AV$5,$I$47)=3),0,(1+AV$14)*(1+AU$14)*(1+AT$14)))) -> 0 | AW17: =IF($I$47<4,0,IF(OR(AW$5<1,AW$5>Inputs!$I$74),0,IF(OR(MOD(AW$5,$I$47)=1,MOD(AW$5,$I$47)=2,MOD(AW$5,$I$47)=3),0,(1+AW$14)*(1+AV$14)*(1+AU$14)))) -> 0 | AX17: =IF($I$47<4,0,IF(OR(AX$5<1,AX$5>Inputs!$I$74),0,IF(OR(MOD(AX$5,$I$47)=1,MOD(AX$5,$I$47)=2,MOD(AX$5,$I$47)=3),0,(1+AX$14)*(1+AW$14)*(1+AV$14)))) -> 0 | AY17: =IF($I$47<4,0,IF(OR(AY$5<1,AY$5>Inputs!$I$74),0,IF(OR(MOD(AY$5,$I$47)=1,MOD(AY$5,$I$47)=2,MOD(AY$5,$I$47)=3),0,(1+AY$14)*(1+AX$14)*(1+AW$14)))) -> 0 | AZ17: =IF($I$47<4,0,IF(OR(AZ$5<1,AZ$5>Inputs!$I$74),0,IF(OR(MOD(AZ$5,$I$47)=1,MOD(AZ$5,$I$47)=2,MOD(AZ$5,$I$47)=3),0,(1+AZ$14)*(1+AY$14)*(1+AX$14)))) -> 0 | BA17: =IF($I$47<4,0,IF(OR(BA$5<1,BA$5>Inputs!$I$74),0,IF(OR(MOD(BA$5,$I$47)=1,MOD(BA$5,$I$47)=2,MOD(BA$5,$I$47)=3),0,(1+BA$14)*(1+AZ$14)*(1+AY$14)))) -> 0 | BB17: =IF($I$47<4,0,IF(OR(BB$5<1,BB$5>Inputs!$I$74),0,IF(OR(MOD(BB$5,$I$47)=1,MOD(BB$5,$I$47)=2,MOD(BB$5,$I$47)=3),0,(1+BB$14)*(1+BA$14)*(1+AZ$14)))) -> 0
E18: Three-year uplift factor | G18: scalar | H18: UFt3 | P18: =IF($I$47<3,0,IF(OR(P$5<1,P$5>Inputs!$I$74),0,IF(OR(MOD(P$5,$I$47)=1,MOD(P$5,$I$47)=2),0,(1+P$14)*(1+O$14)))) -> 0 | Q18: =IF($I$47<3,0,IF(OR(Q$5<1,Q$5>Inputs!$I$74),0,IF(OR(MOD(Q$5,$I$47)=1,MOD(Q$5,$I$47)=2),0,(1+Q$14)*(1+P$14)))) -> 0 | R18: =IF($I$47<3,0,IF(OR(R$5<1,R$5>Inputs!$I$74),0,IF(OR(MOD(R$5,$I$47)=1,MOD(R$5,$I$47)=2),0,(1+R$14)*(1+Q$14)))) -> 1.051765958 | S18: =IF($I$47<3,0,IF(OR(S$5<1,S$5>Inputs!$I$74),0,IF(OR(MOD(S$5,$I$47)=1,MOD(S$5,$I$47)=2),0,(1+S$14)*(1+R$14)))) -> 1.07910544 | T18: =IF($I$47<3,0,IF(OR(T$5<1,T$5>Inputs!$I$74),0,IF(OR(MOD(T$5,$I$47)=1,MOD(T$5,$I$47)=2),0,(1+T$14)*(1+S$14)))) -> 1.07910544 | U18: =IF($I$47<3,0,IF(OR(U$5<1,U$5>Inputs!$I$74),0,IF(OR(MOD(U$5,$I$47)=1,MOD(U$5,$I$47)=2),0,(1+U$14)*(1+T$14)))) -> 0 | V18: =IF($I$47<3,0,IF(OR(V$5<1,V$5>Inputs!$I$74),0,IF(OR(MOD(V$5,$I$47)=1,MOD(V$5,$I$47)=2),0,(1+V$14)*(1+U$14)))) -> 0 | W18: =IF($I$47<3,0,IF(OR(W$5<1,W$5>Inputs!$I$74),0,IF(OR(MOD(W$5,$I$47)=1,MOD(W$5,$I$47)=2),0,(1+W$14)*(1+V$14)))) -> 1.07910544 | X18: =IF($I$47<3,0,IF(OR(X$5<1,X$5>Inputs!$I$74),0,IF(OR(MOD(X$5,$I$47)=1,MOD(X$5,$I$47)=2),0,(1+X$14)*(1+W$14)))) -> 1.07910544 | Y18: =IF($I$47<3,0,IF(OR(Y$5<1,Y$5>Inputs!$I$74),0,IF(OR(MOD(Y$5,$I$47)=1,MOD(Y$5,$I$47)=2),0,(1+Y$14)*(1+X$14)))) -> 1.07910544 | Z18: =IF($I$47<3,0,IF(OR(Z$5<1,Z$5>Inputs!$I$74),0,IF(OR(MOD(Z$5,$I$47)=1,MOD(Z$5,$I$47)=2),0,(1+Z$14)*(1+Y$14)))) -> 0 | AA18: =IF($I$47<3,0,IF(OR(AA$5<1,AA$5>Inputs!$I$74),0,IF(OR(MOD(AA$5,$I$47)=1,MOD(AA$5,$I$47)=2),0,(1+AA$14)*(1+Z$14)))) -> 0 | AB18: =IF($I$47<3,0,IF(OR(AB$5<1,AB$5>Inputs!$I$74),0,IF(OR(MOD(AB$5,$I$47)=1,MOD(AB$5,$I$47)=2),0,(1+AB$14)*(1+AA$14)))) -> 1.07910544 | AC18: =IF($I$47<3,0,IF(OR(AC$5<1,AC$5>Inputs!$I$74),0,IF(OR(MOD(AC$5,$I$47)=1,MOD(AC$5,$I$47)=2),0,(1+AC$14)*(1+AB$14)))) -> 1.07910544 | AD18: =IF($I$47<3,0,IF(OR(AD$5<1,AD$5>Inputs!$I$74),0,IF(OR(MOD(AD$5,$I$47)=1,MOD(AD$5,$I$47)=2),0,(1+AD$14)*(1+AC$14)))) -> 1.07910544 | AE18: =IF($I$47<3,0,IF(OR(AE$5<1,AE$5>Inputs!$I$74),0,IF(OR(MOD(AE$5,$I$47)=1,MOD(AE$5,$I$47)=2),0,(1+AE$14)*(1+AD$14)))) -> 0 | AF18: =IF($I$47<3,0,IF(OR(AF$5<1,AF$5>Inputs!$I$74),0,IF(OR(MOD(AF$5,$I$47)=1,MOD(AF$5,$I$47)=2),0,(1+AF$14)*(1+AE$14)))) -> 0 | AG18: =IF($I$47<3,0,IF(OR(AG$5<1,AG$5>Inputs!$I$74),0,IF(OR(MOD(AG$5,$I$47)=1,MOD(AG$5,$I$47)=2),0,(1+AG$14)*(1+AF$14)))) -> 1.07910544 | AH18: =IF($I$47<3,0,IF(OR(AH$5<1,AH$5>Inputs!$I$74),0,IF(OR(MOD(AH$5,$I$47)=1,MOD(AH$5,$I$47)=2),0,(1+AH$14)*(1+AG$14)))) -> 1.07910544 | AI18: =IF($I$47<3,0,IF(OR(AI$5<1,AI$5>Inputs!$I$74),0,IF(OR(MOD(AI$5,$I$47)=1,MOD(AI$5,$I$47)=2),0,(1+AI$14)*(1+AH$14)))) -> 1.07910544 | AJ18: =IF($I$47<3,0,IF(OR(AJ$5<1,AJ$5>Inputs!$I$74),0,IF(OR(MOD(AJ$5,$I$47)=1,MOD(AJ$5,$I$47)=2),0,(1+AJ$14)*(1+AI$14)))) -> 0 | AK18: =IF($I$47<3,0,IF(OR(AK$5<1,AK$5>Inputs!$I$74),0,IF(OR(MOD(AK$5,$I$47)=1,MOD(AK$5,$I$47)=2),0,(1+AK$14)*(1+AJ$14)))) -> 0 | AL18: =IF($I$47<3,0,IF(OR(AL$5<1,AL$5>Inputs!$I$74),0,IF(OR(MOD(AL$5,$I$47)=1,MOD(AL$5,$I$47)=2),0,(1+AL$14)*(1+AK$14)))) -> 1.07910544 | AM18: =IF($I$47<3,0,IF(OR(AM$5<1,AM$5>Inputs!$I$74),0,IF(OR(MOD(AM$5,$I$47)=1,MOD(AM$5,$I$47)=2),0,(1+AM$14)*(1+AL$14)))) -> 1.07910544 | AN18: =IF($I$47<3,0,IF(OR(AN$5<1,AN$5>Inputs!$I$74),0,IF(OR(MOD(AN$5,$I$47)=1,MOD(AN$5,$I$47)=2),0,(1+AN$14)*(1+AM$14)))) -> 1.07910544 | AO18: =IF($I$47<3,0,IF(OR(AO$5<1,AO$5>Inputs!$I$74),0,IF(OR(MOD(AO$5,$I$47)=1,MOD(AO$5,$I$47)=2),0,(1+AO$14)*(1+AN$14)))) -> 0 | AP18: =IF($I$47<3,0,IF(OR(AP$5<1,AP$5>Inputs!$I$74),0,IF(OR(MOD(AP$5,$I$47)=1,MOD(AP$5,$I$47)=2),0,(1+AP$14)*(1+AO$14)))) -> 0 | AQ18: =IF($I$47<3,0,IF(OR(AQ$5<1,AQ$5>Inputs!$I$74),0,IF(OR(MOD(AQ$5,$I$47)=1,MOD(AQ$5,$I$47)=2),0,(1+AQ$14)*(1+AP$14)))) -> 0 | AR18: =IF($I$47<3,0,IF(OR(AR$5<1,AR$5>Inputs!$I$74),0,IF(OR(MOD(AR$5,$I$47)=1,MOD(AR$5,$I$47)=2),0,(1+AR$14)*(1+AQ$14)))) -> 0 | AS18: =IF($I$47<3,0,IF(OR(AS$5<1,AS$5>Inputs!$I$74),0,IF(OR(MOD(AS$5,$I$47)=1,MOD(AS$5,$I$47)=2),0,(1+AS$14)*(1+AR$14)))) -> 0 | AT18: =IF($I$47<3,0,IF(OR(AT$5<1,AT$5>Inputs!$I$74),0,IF(OR(MOD(AT$5,$I$47)=1,MOD(AT$5,$I$47)=2),0,(1+AT$14)*(1+AS$14)))) -> 0 | AU18: =IF($I$47<3,0,IF(OR(AU$5<1,AU$5>Inputs!$I$74),0,IF(OR(MOD(AU$5,$I$47)=1,MOD(AU$5,$I$47)=2),0,(1+AU$14)*(1+AT$14)))) -> 0 | AV18: =IF($I$47<3,0,IF(OR(AV$5<1,AV$5>Inputs!$I$74),0,IF(OR(MOD(AV$5,$I$47)=1,MOD(AV$5,$I$47)=2),0,(1+AV$14)*(1+AU$14)))) -> 0 | AW18: =IF($I$47<3,0,IF(OR(AW$5<1,AW$5>Inputs!$I$74),0,IF(OR(MOD(AW$5,$I$47)=1,MOD(AW$5,$I$47)=2),0,(1+AW$14)*(1+AV$14)))) -> 0 | AX18: =IF($I$47<3,0,IF(OR(AX$5<1,AX$5>Inputs!$I$74),0,IF(OR(MOD(AX$5,$I$47)=1,MOD(AX$5,$I$47)=2),0,(1+AX$14)*(1+AW$14)))) -> 0 | AY18: =IF($I$47<3,0,IF(OR(AY$5<1,AY$5>Inputs!$I$74),0,IF(OR(MOD(AY$5,$I$47)=1,MOD(AY$5,$I$47)=2),0,(1+AY$14)*(1+AX$14)))) -> 0 | AZ18: =IF($I$47<3,0,IF(OR(AZ$5<1,AZ$5>Inputs!$I$74),0,IF(OR(MOD(AZ$5,$I$47)=1,MOD(AZ$5,$I$47)=2),0,(1+AZ$14)*(1+AY$14)))) -> 0 | BA18: =IF($I$47<3,0,IF(OR(BA$5<1,BA$5>Inputs!$I$74),0,IF(OR(MOD(BA$5,$I$47)=1,MOD(BA$5,$I$47)=2),0,(1+BA$14)*(1+AZ$14)))) -> 0 | BB18: =IF($I$47<3,0,IF(OR(BB$5<1,BB$5>Inputs!$I$74),0,IF(OR(MOD(BB$5,$I$47)=1,MOD(BB$5,$I$47)=2),0,(1+BB$14)*(1+BA$14)))) -> 0
E19: Two-year uplift factor | G19: scalar | H19: UFt4 | P19: =IF($I$47<2,0,IF(OR(P$5<1,P$5>Inputs!$I$74),0,IF(MOD(P$5,$I$47)=1,0,(1+P$14)))) -> 0 | Q19: =IF($I$47<2,0,IF(OR(Q$5<1,Q$5>Inputs!$I$74),0,IF(MOD(Q$5,$I$47)=1,0,(1+Q$14)))) -> 1.012481669 | R19: =IF($I$47<2,0,IF(OR(R$5<1,R$5>Inputs!$I$74),0,IF(MOD(R$5,$I$47)=1,0,(1+R$14)))) -> 1.0388 | S19: =IF($I$47<2,0,IF(OR(S$5<1,S$5>Inputs!$I$74),0,IF(MOD(S$5,$I$47)=1,0,(1+S$14)))) -> 1.0388 | T19: =IF($I$47<2,0,IF(OR(T$5<1,T$5>Inputs!$I$74),0,IF(MOD(T$5,$I$47)=1,0,(1+T$14)))) -> 1.0388 | U19: =IF($I$47<2,0,IF(OR(U$5<1,U$5>Inputs!$I$74),0,IF(MOD(U$5,$I$47)=1,0,(1+U$14)))) -> 0 | V19: =IF($I$47<2,0,IF(OR(V$5<1,V$5>Inputs!$I$74),0,IF(MOD(V$5,$I$47)=1,0,(1+V$14)))) -> 1.0388 | W19: =IF($I$47<2,0,IF(OR(W$5<1,W$5>Inputs!$I$74),0,IF(MOD(W$5,$I$47)=1,0,(1+W$14)))) -> 1.0388 | X19: =IF($I$47<2,0,IF(OR(X$5<1,X$5>Inputs!$I$74),0,IF(MOD(X$5,$I$47)=1,0,(1+X$14)))) -> 1.0388 | Y19: =IF($I$47<2,0,IF(OR(Y$5<1,Y$5>Inputs!$I$74),0,IF(MOD(Y$5,$I$47)=1,0,(1+Y$14)))) -> 1.0388 | Z19: =IF($I$47<2,0,IF(OR(Z$5<1,Z$5>Inputs!$I$74),0,IF(MOD(Z$5,$I$47)=1,0,(1+Z$14)))) -> 0 | AA19: =IF($I$47<2,0,IF(OR(AA$5<1,AA$5>Inputs!$I$74),0,IF(MOD(AA$5,$I$47)=1,0,(1+AA$14)))) -> 1.0388 | AB19: =IF($I$47<2,0,IF(OR(AB$5<1,AB$5>Inputs!$I$74),0,IF(MOD(AB$5,$I$47)=1,0,(1+AB$14)))) -> 1.0388 | AC19: =IF($I$47<2,0,IF(OR(AC$5<1,AC$5>Inputs!$I$74),0,IF(MOD(AC$5,$I$47)=1,0,(1+AC$14)))) -> 1.0388 | AD19: =IF($I$47<2,0,IF(OR(AD$5<1,AD$5>Inputs!$I$74),0,IF(MOD(AD$5,$I$47)=1,0,(1+AD$14)))) -> 1.0388 | AE19: =IF($I$47<2,0,IF(OR(AE$5<1,AE$5>Inputs!$I$74),0,IF(MOD(AE$5,$I$47)=1,0,(1+AE$14)))) -> 0 | AF19: =IF($I$47<2,0,IF(OR(AF$5<1,AF$5>Inputs!$I$74),0,IF(MOD(AF$5,$I$47)=1,0,(1+AF$14)))) -> 1.0388 | AG19: =IF($I$47<2,0,IF(OR(AG$5<1,AG$5>Inputs!$I$74),0,IF(MOD(AG$5,$I$47)=1,0,(1+AG$14)))) -> 1.0388 | AH19: =IF($I$47<2,0,IF(OR(AH$5<1,AH$5>Inputs!$I$74),0,IF(MOD(AH$5,$I$47)=1,0,(1+AH$14)))) -> 1.0388 | AI19: =IF($I$47<2,0,IF(OR(AI$5<1,AI$5>Inputs!$I$74),0,IF(MOD(AI$5,$I$47)=1,0,(1+AI$14)))) -> 1.0388 | AJ19: =IF($I$47<2,0,IF(OR(AJ$5<1,AJ$5>Inputs!$I$74),0,IF(MOD(AJ$5,$I$47)=1,0,(1+AJ$14)))) -> 0 | AK19: =IF($I$47<2,0,IF(OR(AK$5<1,AK$5>Inputs!$I$74),0,IF(MOD(AK$5,$I$47)=1,0,(1+AK$14)))) -> 1.0388 | AL19: =IF($I$47<2,0,IF(OR(AL$5<1,AL$5>Inputs!$I$74),0,IF(MOD(AL$5,$I$47)=1,0,(1+AL$14)))) -> 1.0388 | AM19: =IF($I$47<2,0,IF(OR(AM$5<1,AM$5>Inputs!$I$74),0,IF(MOD(AM$5,$I$47)=1,0,(1+AM$14)))) -> 1.0388 | AN19: =IF($I$47<2,0,IF(OR(AN$5<1,AN$5>Inputs!$I$74),0,IF(MOD(AN$5,$I$47)=1,0,(1+AN$14)))) -> 1.0388 | AO19: =IF($I$47<2,0,IF(OR(AO$5<1,AO$5>Inputs!$I$74),0,IF(MOD(AO$5,$I$47)=1,0,(1+AO$14)))) -> 0 | AP19: =IF($I$47<2,0,IF(OR(AP$5<1,AP$5>Inputs!$I$74),0,IF(MOD(AP$5,$I$47)=1,0,(1+AP$14)))) -> 0 | AQ19: =IF($I$47<2,0,IF(OR(AQ$5<1,AQ$5>Inputs!$I$74),0,IF(MOD(AQ$5,$I$47)=1,0,(1+AQ$14)))) -> 0 | AR19: =IF($I$47<2,0,IF(OR(AR$5<1,AR$5>Inputs!$I$74),0,IF(MOD(AR$5,$I$47)=1,0,(1+AR$14)))) -> 0 | AS19: =IF($I$47<2,0,IF(OR(AS$5<1,AS$5>Inputs!$I$74),0,IF(MOD(AS$5,$I$47)=1,0,(1+AS$14)))) -> 0 | AT19: =IF($I$47<2,0,IF(OR(AT$5<1,AT$5>Inputs!$I$74),0,IF(MOD(AT$5,$I$47)=1,0,(1+AT$14)))) -> 0 | AU19: =IF($I$47<2,0,IF(OR(AU$5<1,AU$5>Inputs!$I$74),0,IF(MOD(AU$5,$I$47)=1,0,(1+AU$14)))) -> 0 | AV19: =IF($I$47<2,0,IF(OR(AV$5<1,AV$5>Inputs!$I$74),0,IF(MOD(AV$5,$I$47)=1,0,(1+AV$14)))) -> 0 | AW19: =IF($I$47<2,0,IF(OR(AW$5<1,AW$5>Inputs!$I$74),0,IF(MOD(AW$5,$I$47)=1,0,(1+AW$14)))) -> 0 | AX19: =IF($I$47<2,0,IF(OR(AX$5<1,AX$5>Inputs!$I$74),0,IF(MOD(AX$5,$I$47)=1,0,(1+AX$14)))) -> 0 | AY19: =IF($I$47<2,0,IF(OR(AY$5<1,AY$5>Inputs!$I$74),0,IF(MOD(AY$5,$I$47)=1,0,(1+AY$14)))) -> 0 | AZ19: =IF($I$47<2,0,IF(OR(AZ$5<1,AZ$5>Inputs!$I$74),0,IF(MOD(AZ$5,$I$47)=1,0,(1+AZ$14)))) -> 0 | BA19: =IF($I$47<2,0,IF(OR(BA$5<1,BA$5>Inputs!$I$74),0,IF(MOD(BA$5,$I$47)=1,0,(1+BA$14)))) -> 0 | BB19: =IF($I$47<2,0,IF(OR(BB$5<1,BB$5>Inputs!$I$74),0,IF(MOD(BB$5,$I$47)=1,0,(1+BB$14)))) -> 0
E20: One-year uplift factor | G20: scalar | H20: UFt5 | P20: =IF(OR(P$5<1,P$5>Inputs!$I$74),0,1) -> 1 | Q20: =IF(OR(Q$5<1,Q$5>Inputs!$I$74),0,1) -> 1 | R20: =IF(OR(R$5<1,R$5>Inputs!$I$74),0,1) -> 1 | S20: =IF(OR(S$5<1,S$5>Inputs!$I$74),0,1) -> 1 | T20: =IF(OR(T$5<1,T$5>Inputs!$I$74),0,1) -> 1 | U20: =IF(OR(U$5<1,U$5>Inputs!$I$74),0,1) -> 1 | V20: =IF(OR(V$5<1,V$5>Inputs!$I$74),0,1) -> 1 | W20: =IF(OR(W$5<1,W$5>Inputs!$I$74),0,1) -> 1 | X20: =IF(OR(X$5<1,X$5>Inputs!$I$74),0,1) -> 1 | Y20: =IF(OR(Y$5<1,Y$5>Inputs!$I$74),0,1) -> 1 | Z20: =IF(OR(Z$5<1,Z$5>Inputs!$I$74),0,1) -> 1 | AA20: =IF(OR(AA$5<1,AA$5>Inputs!$I$74),0,1) -> 1 | AB20: =IF(OR(AB$5<1,AB$5>Inputs!$I$74),0,1) -> 1 | AC20: =IF(OR(AC$5<1,AC$5>Inputs!$I$74),0,1) -> 1 | AD20: =IF(OR(AD$5<1,AD$5>Inputs!$I$74),0,1) -> 1 | AE20: =IF(OR(AE$5<1,AE$5>Inputs!$I$74),0,1) -> 1 | AF20: =IF(OR(AF$5<1,AF$5>Inputs!$I$74),0,1) -> 1 | AG20: =IF(OR(AG$5<1,AG$5>Inputs!$I$74),0,1) -> 1 | AH20: =IF(OR(AH$5<1,AH$5>Inputs!$I$74),0,1) -> 1 | AI20: =IF(OR(AI$5<1,AI$5>Inputs!$I$74),0,1) -> 1 | AJ20: =IF(OR(AJ$5<1,AJ$5>Inputs!$I$74),0,1) -> 1 | AK20: =IF(OR(AK$5<1,AK$5>Inputs!$I$74),0,1) -> 1 | AL20: =IF(OR(AL$5<1,AL$5>Inputs!$I$74),0,1) -> 1 | AM20: =IF(OR(AM$5<1,AM$5>Inputs!$I$74),0,1) -> 1 | AN20: =IF(OR(AN$5<1,AN$5>Inputs!$I$74),0,1) -> 1 | AO20: =IF(OR(AO$5<1,AO$5>Inputs!$I$74),0,1) -> 0 | AP20: =IF(OR(AP$5<1,AP$5>Inputs!$I$74),0,1) -> 0 | AQ20: =IF(OR(AQ$5<1,AQ$5>Inputs!$I$74),0,1) -> 0 | AR20: =IF(OR(AR$5<1,AR$5>Inputs!$I$74),0,1) -> 0 | AS20: =IF(OR(AS$5<1,AS$5>Inputs!$I$74),0,1) -> 0 | AT20: =IF(OR(AT$5<1,AT$5>Inputs!$I$74),0,1) -> 0 | AU20: =IF(OR(AU$5<1,AU$5>Inputs!$I$74),0,1) -> 0 | AV20: =IF(OR(AV$5<1,AV$5>Inputs!$I$74),0,1) -> 0 | AW20: =IF(OR(AW$5<1,AW$5>Inputs!$I$74),0,1) -> 0 | AX20: =IF(OR(AX$5<1,AX$5>Inputs!$I$74),0,1) -> 0 | AY20: =IF(OR(AY$5<1,AY$5>Inputs!$I$74),0,1) -> 0 | AZ20: =IF(OR(AZ$5<1,AZ$5>Inputs!$I$74),0,1) -> 0 | BA20: =IF(OR(BA$5<1,BA$5>Inputs!$I$74),0,1) -> 0 | BB20: =IF(OR(BB$5<1,BB$5>Inputs!$I$74),0,1) -> 0
C22: Revenue assessed for cap and floor
E24: =Inputs!E107 -> Assessed revenue | G24: £m nominal prices | H24: ARt | P24: =Revenue!P13 -> 87.66546857 | Q24: =Revenue!Q13 -> 102 | R24: =Revenue!R13 -> 104.04 | S24: =Revenue!S13 -> 106.1208 | T24: =Revenue!T13 -> 108.243216 | U24: =Revenue!U13 -> 110.4080803 | V24: =Revenue!V13 -> 112.6162419 | W24: =Revenue!W13 -> 114.8685668 | X24: =Revenue!X13 -> 117.1659381 | Y24: =Revenue!Y13 -> 119.5092569 | Z24: =Revenue!Z13 -> 121.899442 | AA24: =Revenue!AA13 -> 124.3374308 | AB24: =Revenue!AB13 -> 126.8241795 | AC24: =Revenue!AC13 -> 129.360663 | AD24: =Revenue!AD13 -> 131.9478763 | AE24: =Revenue!AE13 -> 134.5868338 | AF24: =Revenue!AF13 -> 137.2785705 | AG24: =Revenue!AG13 -> 140.0241419 | AH24: =Revenue!AH13 -> 142.8246248 | AI24: =Revenue!AI13 -> 145.6811173 | AJ24: =Revenue!AJ13 -> 148.5947396 | AK24: =Revenue!AK13 -> 151.5666344 | AL24: =Revenue!AL13 -> 154.5979671 | AM24: =Revenue!AM13 -> 157.6899264 | AN24: =Revenue!AN13 -> 160.8437249 | AO24: =Revenue!AO13 -> 0 | AP24: =Revenue!AP13 -> 0 | AQ24: =Revenue!AQ13 -> 0 | AR24: =Revenue!AR13 -> 0 | AS24: =Revenue!AS13 -> 0 | AT24: =Revenue!AT13 -> 0 | AU24: =Revenue!AU13 -> 0 | AV24: =Revenue!AV13 -> 0 | AW24: =Revenue!AW13 -> 0 | AX24: =Revenue!AX13 -> 0 | AY24: =Revenue!AY13 -> 0 | AZ24: =Revenue!AZ13 -> 0 | BA24: =Revenue!BA13 -> 0 | BB24: =Revenue!BB13 -> 0
E25: =Availability!E12 -> Notional Floor (pre-availability incentive) | G25: £m nominal prices | H25: =Availability!H12 -> NFLt | P25: =Availability!P12 -> 44.75620727 | Q25: =Availability!Q12 -> 47.5613225 | R25: =Availability!R12 -> 47.5613225 | S25: =Availability!S12 -> 47.5613225 | T25: =Availability!T12 -> 47.5613225 | U25: =Availability!U12 -> 47.5613225 | V25: =Availability!V12 -> 47.5613225 | W25: =Availability!W12 -> 47.5613225 | X25: =Availability!X12 -> 47.5613225 | Y25: =Availability!Y12 -> 47.5613225 | Z25: =Availability!Z12 -> 47.5613225 | AA25: =Availability!AA12 -> 46.02457266 | AB25: =Availability!AB12 -> 46.02352009 | AC25: =Availability!AC12 -> 46.02352009 | AD25: =Availability!AD12 -> 46.02352009 | AE25: =Availability!AE12 -> 46.02352009 | AF25: =Availability!AF12 -> 46.02352009 | AG25: =Availability!AG12 -> 46.02352009 | AH25: =Availability!AH12 -> 46.02352009 | AI25: =Availability!AI12 -> 46.98390252 | AJ25: =Availability!AJ12 -> 47.66267748 | AK25: =Availability!AK12 -> 47.66267748 | AL25: =Availability!AL12 -> 46.44776937 | AM25: =Availability!AM12 -> 45.59101675 | AN25: =Availability!AN12 -> 49.36686413 | AO25: =Availability!AO12 -> 0 | AP25: =Availability!AP12 -> 0 | AQ25: =Availability!AQ12 -> 0 | AR25: =Availability!AR12 -> 0 | AS25: =Availability!AS12 -> 0 | AT25: =Availability!AT12 -> 0 | AU25: =Availability!AU12 -> 0 | AV25: =Availability!AV12 -> 0 | AW25: =Availability!AW12 -> 0 | AX25: =Availability!AX12 -> 0 | AY25: =Availability!AY12 -> 0 | AZ25: =Availability!AZ12 -> 0 | BA25: =Availability!BA12 -> 0 | BB25: =Availability!BB12 -> 0
E26: Floor (post availability incentive) | G26: £m nominal prices | H26: =Availability!H18 -> FLt | P26: =Availability!P18 -> 44.75620727 | Q26: =Availability!Q18 -> 47.5613225 | R26: =Availability!R18 -> 47.5613225 | S26: =Availability!S18 -> 47.5613225 | T26: =Availability!T18 -> 47.5613225 | U26: =Availability!U18 -> 47.5613225 | V26: =Availability!V18 -> 47.5613225 | W26: =Availability!W18 -> 47.5613225 | X26: =Availability!X18 -> 47.5613225 | Y26: =Availability!Y18 -> 47.5613225 | Z26: =Availability!Z18 -> 47.5613225 | AA26: =Availability!AA18 -> 46.02457266 | AB26: =Availability!AB18 -> 46.02352009 | AC26: =Availability!AC18 -> 46.02352009 | AD26: =Availability!AD18 -> 46.02352009 | AE26: =Availability!AE18 -> 46.02352009 | AF26: =Availability!AF18 -> 46.02352009 | AG26: =Availability!AG18 -> 46.02352009 | AH26: =Availability!AH18 -> 46.02352009 | AI26: =Availability!AI18 -> 46.98390252 | AJ26: =Availability!AJ18 -> 47.66267748 | AK26: =Availability!AK18 -> 47.66267748 | AL26: =Availability!AL18 -> 46.44776937 | AM26: =Availability!AM18 -> 45.59101675 | AN26: =Availability!AN18 -> 49.36686413 | AO26: =Availability!AO18 -> 0 | AP26: =Availability!AP18 -> 0 | AQ26: =Availability!AQ18 -> 0 | AR26: =Availability!AR18 -> 0 | AS26: =Availability!AS18 -> 0 | AT26: =Availability!AT18 -> 0 | AU26: =Availability!AU18 -> 0 | AV26: =Availability!AV18 -> 0 | AW26: =Availability!AW18 -> 0 | AX26: =Availability!AX18 -> 0 | AY26: =Availability!AY18 -> 0 | AZ26: =Availability!AZ18 -> 0 | BA26: =Availability!BA18 -> 0 | BB26: =Availability!BB18 -> 0
E28: Notional surplus assessed revenue | G28: £m nominal prices | H28: NSARt | P28: =IF(P26=0,P24-P25,0) -> 0 | Q28: =IF(Q26=0,Q24-Q25,0) -> 0 | R28: 0 | S28: 0 | T28: 0 | U28: 0 | V28: 0 | W28: 0 | X28: 0 | Y28: 0 | Z28: =IF(Z26=0,Z24-Z25,0) -> 0 | AA28: =IF(AA26=0,AA24-AA25,0) -> 0 | AB28: 0 | AC28: 0 | AD28: 0 | AE28: 0 | AF28: 0 | AG28: 0 | AH28: 0 | AI28: 0 | AJ28: 0 | AK28: 0 | AL28: 0 | AM28: 0 | AN28: 0 | AO28: 0 | AP28: 0 | AQ28: 0 | AR28: 0 | AS28: 0 | AT28: 0 | AU28: 0 | AV28: 0 | AW28: 0 | AX28: 0 | AY28: 0 | AZ28: 0 | BA28: 0 | BB28: 0
E29: Surplus assessed revenue | G29: £m nominal prices | H29: SARt | P29: =IF(P28>0,P28,0) -> 0 | Q29: 0 | R29: 0 | S29: 0 | T29: 0 | U29: 0 | V29: 0 | W29: 0 | X29: 0 | Y29: 0 | Z29: =IF(Z28>0,Z28,0) -> 0 | AA29: =IF(AA28>0,AA28,0) -> 0 | AB29: 0 | AC29: 0 | AD29: 0 | AE29: 0 | AF29: 0 | AG29: 0 | AH29: 0 | AI29: 0 | AJ29: 0 | AK29: 0 | AL29: 0 | AM29: 0 | AN29: 0 | AO29: 0 | AP29: 0 | AQ29: 0 | AR29: 0 | AS29: 0 | AT29: 0 | AU29: 0 | AV29: 0 | AW29: 0 | AX29: 0 | AY29: 0 | AZ29: 0 | BA29: 0 | BB29: 0
E31: =Availability!E17 -> Cap (post-availability incentive) | G31: £m nominal prices | H31: =Availability!H17 -> CLt | L31: 0 | M31: 0 | N31: 0 | O31: 0 | P31: =Availability!P17 -> 81.27098436 | Q31: =Availability!Q17 -> 86.3646795 | R31: =Availability!R17 -> 86.3646795 | S31: =Availability!S17 -> 86.3646795 | T31: =Availability!T17 -> 86.3646795 | U31: =Availability!U17 -> 86.3646795 | V31: =Availability!V17 -> 86.3646795 | W31: =Availability!W17 -> 86.3646795 | X31: =Availability!X17 -> 86.3646795 | Y31: =Availability!Y17 -> 86.3646795 | Z31: =Availability!Z17 -> 86.3646795 | AA31: =Availability!AA17 -> 84.85994257 | AB31: =Availability!AB17 -> 84.85891193 | AC31: =Availability!AC17 -> 84.85891193 | AD31: =Availability!AD17 -> 84.85891193 | AE31: =Availability!AE17 -> 84.85891193 | AF31: =Availability!AF17 -> 84.85891193 | AG31: =Availability!AG17 -> 84.85891193 | AH31: =Availability!AH17 -> 84.85891193 | AI31: =Availability!AI17 -> 85.70265544 | AJ31: =Availability!AJ17 -> 86.29899285 | AK31: =Availability!AK17 -> 86.29899285 | AL31: =Availability!AL17 -> 85.12693719 | AM31: =Availability!AM17 -> 84.30023906 | AN31: =Availability!AN17 -> 91.28198371 | AO31: =Availability!AO17 -> 0 | AP31: =Availability!AP17 -> 0 | AQ31: =Availability!AQ17 -> 0 | AR31: =Availability!AR17 -> 0 | AS31: =Availability!AS17 -> 0 | AT31: =Availability!AT17 -> 0 | AU31: =Availability!AU17 -> 0 | AV31: =Availability!AV17 -> 0 | AW31: =Availability!AW17 -> 0 | AX31: =Availability!AX17 -> 0 | AY31: =Availability!AY17 -> 0 | AZ31: =Availability!AZ17 -> 0 | BA31: =Availability!BA17 -> 0 | BB31: =Availability!BB17 -> 0
E32: Revenue assessed for cap | G32: £m nominal prices | H32: =H24 -> ARt | L32: 0 | M32: 0 | N32: 0 | O32: 0 | P32: =P24 -> 87.66546857 | Q32: 102 | R32: 104.04 | S32: 106.1208 | T32: 108.243216 | U32: 110.4080803 | V32: 112.6162419 | W32: 114.8685668 | X32: 117.1659381 | Y32: 119.5092569 | Z32: 121.899442 | AA32: =AA24 -> 124.3374308 | AB32: 126.8241795 | AC32: 129.360663 | AD32: 131.9478763 | AE32: 134.5868338 | AF32: 137.2785705 | AG32: 140.0241419 | AH32: 142.8246248 | AI32: 145.6811173 | AJ32: 148.5947396 | AK32: 151.5666344 | AL32: 154.5979671 | AM32: 157.6899264 | AN32: 160.8437249 | AO32: 0 | AP32: 0 | AQ32: 0 | AR32: 0 | AS32: 0 | AT32: 0 | AU32: 0 | AV32: 0 | AW32: 0 | AX32: 0 | AY32: 0 | AZ32: 0 | BA32: 0 | BB32: 0
E33: =Availability!E18 -> Floor (post-availability incentive) | G33: £m nominal prices | H33: =Availability!H18 -> FLt | L33: 0 | M33: 0 | N33: 0 | O33: 0 | P33: =P26 -> 44.75620727 | Q33: 47.5613225 | R33: 47.5613225 | S33: 47.5613225 | T33: 47.5613225 | U33: 47.5613225 | V33: 47.5613225 | W33: 47.5613225 | X33: 47.5613225 | Y33: 47.5613225 | Z33: 47.5613225 | AA33: =AA26 -> 46.02457266 | AB33: 46.02352009 | AC33: 46.02352009 | AD33: 46.02352009 | AE33: 46.02352009 | AF33: 46.02352009 | AG33: 46.02352009 | AH33: 46.02352009 | AI33: 46.98390252 | AJ33: 47.66267748 | AK33: 47.66267748 | AL33: 46.44776937 | AM33: 45.59101675 | AN33: 49.36686413 | AO33: 0 | AP33: 0 | AQ33: 0 | AR33: 0 | AS33: 0 | AT33: 0 | AU33: 0 | AV33: 0 | AW33: 0 | AX33: 0 | AY33: 0 | AZ33: 0 | BA33: 0 | BB33: 0
E34: Revenue assessed for floor | G34: £m nominal prices | H34: Choice of SARt or ARt | L34: 0 | M34: 0 | N34: 0 | O34: 0 | P34: =IF(P26=0,P29,P24) -> 87.66546857 | Q34: 102 | R34: 104.04 | S34: 106.1208 | T34: 108.243216 | U34: 110.4080803 | V34: 112.6162419 | W34: 114.8685668 | X34: 117.1659381 | Y34: 119.5092569 | Z34: 121.899442 | AA34: =IF(AA26=0,AA29,AA24) -> 124.3374308 | AB34: 126.8241795 | AC34: 129.360663 | AD34: 131.9478763 | AE34: 134.5868338 | AF34: 137.2785705 | AG34: 140.0241419 | AH34: 142.8246248 | AI34: 145.6811173 | AJ34: 148.5947396 | AK34: 151.5666344 | AL34: 154.5979671 | AM34: 157.6899264 | AN34: 160.8437249 | AO34: 0 | AP34: 0 | AQ34: 0 | AR34: 0 | AS34: 0 | AT34: 0 | AU34: 0 | AV34: 0 | AW34: 0 | AX34: 0 | AY34: 0 | AZ34: 0 | BA34: 0 | BB34: 0
E35: Within-period adjustment (assessed) | G35: £m nominal prices | H35: WPAt | L35: 0 | M35: 0 | N35: 0 | O35: 0 | P35: =Inputs!P109 -> 0 | Q35: =Inputs!Q109 -> 0 | R35: =Inputs!R109 -> 0 | S35: =Inputs!S109 -> 0 | T35: =Inputs!T109 -> 0 | U35: =Inputs!U109 -> 0 | V35: =Inputs!V109 -> 0 | W35: =Inputs!W109 -> 0 | X35: =Inputs!X109 -> 0 | Y35: =Inputs!Y109 -> 0 | Z35: =Inputs!Z109 -> 0 | AA35: =Inputs!AA109 -> 0 | AB35: =Inputs!AB109 -> 0 | AC35: =Inputs!AC109 -> 0 | AD35: =Inputs!AD109 -> 0 | AE35: =Inputs!AE109 -> 0 | AF35: =Inputs!AF109 -> 0 | AG35: =Inputs!AG109 -> 0 | AH35: =Inputs!AH109 -> 0 | AI35: =Inputs!AI109 -> 0 | AJ35: =Inputs!AJ109 -> 0 | AK35: =Inputs!AK109 -> 0 | AL35: =Inputs!AL109 -> 0 | AM35: =Inputs!AM109 -> 0 | AN35: =Inputs!AN109 -> 0 | AO35: =Inputs!AO109 -> 0 | AP35: =Inputs!AP109 -> 0 | AQ35: =Inputs!AQ109 -> 0 | AR35: =Inputs!AR109 -> 0 | AS35: =Inputs!AS109 -> 0 | AT35: =Inputs!AT109 -> 0 | AU35: =Inputs!AU109 -> 0 | AV35: =Inputs!AV109 -> 0 | AW35: =Inputs!AW109 -> 0 | AX35: =Inputs!AX109 -> 0 | AY35: =Inputs!AY109 -> 0 | AZ35: =Inputs!AZ109 -> 0 | BA35: =Inputs!BA109 -> 0 | BB35: =Inputs!BB109 -> 0
C37: NPV of assessed revenue for cap and floor
E39: ="NPV of "&E31 -> NPV of Cap (post-availability incentive) | G39: £m nominal prices | H39: CLNap | P39: =MMULT(L31:P31,P$16:P$20) -> 81.27098436 | Q39: 168.6500614 | R39: 261.5583633 | S39: =MMULT(O31:S31,S$16:S$20) -> 358.0715073 | T39: =MMULT(P31:T31,T$16:T$20) -> 458.3293613 | U39: 86.3646795 | V39: 176.0803086 | W39: 269.276904 | X39: 366.0895274 | Y39: 466.6584806 | Z39: =MMULT(V31:Z31,Z$16:Z$20) -> 86.3646795 | AA39: =MMULT(W31:AA31,AA$16:AA$20) -> 174.5755716 | AB39: 266.2080157 | AC39: 361.3957987 | AD39: 460.2768676 | AE39: 84.85891193 | AF39: 173.0103496 | AG39: 264.5820631 | AH39: 359.7067591 | AI39: 459.3660368 | AJ39: 86.29899285 | AK39: 175.9463866 | AL39: 267.9000436 | AM39: 362.5948044 | AN39: 467.9454665 | AO39: 0 | AP39: 0 | AQ39: 0 | AR39: 0 | AS39: 0 | AT39: 0 | AU39: 0 | AV39: 0 | AW39: 0 | AX39: 0 | AY39: 0 | AZ39: 0 | BA39: 0 | BB39: 0
E40: ="NPV of "&E32 -> NPV of Revenue assessed for cap | G40: £m nominal prices | H40: ARNap | P40: 87.66546857 | Q40: 190.7596799 | R40: 302.2011555 | S40: 420.0473604 | T40: =MMULT(P32:T32,T$16:T$20) -> 544.5884139 | U40: 110.4080803 | V40: 227.3081558 | W40: 350.996279 | X40: 481.7808727 | Y40: 619.9832274 | Z40: =MMULT(V32:Z32,Z$16:Z$20) -> 121.899442 | AA40: 250.9665712 | AB40: 387.5282536 | AC40: 531.9250129 | AD40: 684.5115797 | AE40: 134.5868338 | AF40: 277.0873735 | AG40: 427.8625055 | AH40: 587.2881955 | AI40: 755.7560947 | AJ40: 148.5947396 | AK40: 305.9268499 | AL40: 472.3947787 | AM40: 648.4136226 | AN40: 834.4157961 | AO40: 0 | AP40: 0 | AQ40: 0 | AR40: 0 | AS40: 0 | AT40: 0 | AU40: 0 | AV40: 0 | AW40: 0 | AX40: 0 | AY40: 0 | AZ40: 0 | BA40: 0 | BB40: 0
E41: ="NPV of "&E33 -> NPV of Floor (post-availability incentive) | G41: £m nominal prices | H41: FLNap | P41: 44.75620727 | Q41: 92.87616194 | R41: 144.0410795 | S41: 197.1911959 | T41: =MMULT(P33:T33,T$16:T$20) -> 252.4035368 | U41: 47.5613225 | V41: 96.96802431 | W41: 148.2917061 | X41: 201.6067468 | Y41: 256.9904111 | Z41: 47.5613225 | AA41: 95.43127447 | AB41: 145.157528 | AC41: 196.8131602 | AD41: 250.4730309 | AE41: 46.02352009 | AF41: 93.83275276 | AG41: 143.4969837 | AH41: 195.0881867 | AI41: 249.6415109 | AJ41: 47.66267748 | AK41: 97.17466685 | AL41: 147.3928133 | AM41: 198.7026712 | AN41: 255.779199 | AO41: 0 | AP41: 0 | AQ41: 0 | AR41: 0 | AS41: 0 | AT41: 0 | AU41: 0 | AV41: 0 | AW41: 0 | AX41: 0 | AY41: 0 | AZ41: 0 | BA41: 0 | BB41: 0
E42: ="NPV of "&E34 -> NPV of Revenue assessed for floor | G42: £m nominal prices | H42: ARNap | P42: 87.66546857 | Q42: 190.7596799 | R42: 302.2011555 | S42: 420.0473604 | T42: =MMULT(P34:T34,T$16:T$20) -> 544.5884139 | U42: 110.4080803 | V42: 227.3081558 | W42: 350.996279 | X42: 481.7808727 | Y42: 619.9832274 | Z42: 121.899442 | AA42: 250.9665712 | AB42: 387.5282536 | AC42: 531.9250129 | AD42: 684.5115797 | AE42: 134.5868338 | AF42: 277.0873735 | AG42: 427.8625055 | AH42: 587.2881955 | AI42: 755.7560947 | AJ42: 148.5947396 | AK42: 305.9268499 | AL42: 472.3947787 | AM42: 648.4136226 | AN42: =MMULT(AJ34:AN34,AN$16:AN$20) -> 834.4157961 | AO42: 0 | AP42: 0 | AQ42: 0 | AR42: 0 | AS42: 0 | AT42: 0 | AU42: 0 | AV42: 0 | AW42: 0 | AX42: 0 | AY42: 0 | AZ42: 0 | BA42: 0 | BB42: 0
E43: ="NPV of "&E35 -> NPV of Within-period adjustment (assessed) | G43: £m nominal prices | H43: WPANap | P43: 0 | Q43: 0 | R43: 0 | S43: 0 | T43: =MMULT(P35:T35,T$16:T$20) -> 0 | U43: 0 | V43: 0 | W43: 0 | X43: 0 | Y43: 0 | Z43: 0 | AA43: 0 | AB43: 0 | AC43: 0 | AD43: 0 | AE43: 0 | AF43: 0 | AG43: 0 | AH43: 0 | AI43: 0 | AJ43: 0 | AK43: 0 | AL43: 0 | AM43: 0 | AN43: 0 | AO43: 0 | AP43: 0 | AQ43: 0 | AR43: 0 | AS43: 0 | AT43: 0 | AU43: 0 | AV43: 0 | AW43: 0 | AX43: 0 | AY43: 0 | AZ43: 0 | BA43: 0 | BB43: 0
C45: Assessed adjustment
E47: =Inputs!E75 -> Assessment period length | G47: =Inputs!G75 -> full years | I47: =Inputs!I75 -> 5
E48: Assessment year flag | G48: flag | P48: =AND(MOD(P$5,$I47)=0,P$5>=$I47) -> FALSE | Q48: FALSE | R48: FALSE | S48: FALSE | T48: =AND(MOD(T$5,$I47)=0,T$5>=$I47) -> TRUE | U48: FALSE | V48: FALSE | W48: FALSE | X48: FALSE | Y48: TRUE | Z48: =AND(MOD(Z$5,$I47)=0,Z$5>=$I47) -> FALSE | AA48: =AND(MOD(AA$5,$I47)=0,AA$5>=$I47) -> FALSE | AB48: FALSE | AC48: FALSE | AD48: TRUE | AE48: FALSE | AF48: FALSE | AG48: FALSE | AH48: FALSE | AI48: TRUE | AJ48: FALSE | AK48: FALSE | AL48: FALSE | AM48: FALSE | AN48: TRUE | AO48: FALSE | AP48: FALSE | AQ48: FALSE | AR48: FALSE | AS48: TRUE | AT48: FALSE | AU48: FALSE | AV48: FALSE | AW48: FALSE | AX48: TRUE | AY48: FALSE | AZ48: FALSE | BA48: FALSE | BB48: FALSE
E50: Relevant revenue at Cap | G50: £m nominal prices | H50: RRACap | P50: =P40-P39 -> 6.394484213 | Q50: 22.10961855 | R50: 40.64279224 | S50: 61.97585308 | T50: 86.25905267 | U50: 24.04340082 | V50: 51.22784719 | W50: 81.71937492 | X50: 115.6913453 | Y50: 153.3247468 | Z50: 35.5347625 | AA50: 76.39099955 | AB50: 121.3202379 | AC50: 170.5292142 | AD50: 224.2347121 | AE50: 49.72792191 | AF50: 104.0770239 | AG50: 163.2804424 | AH50: 227.5814364 | AI50: 296.3900579 | AJ50: 62.29574675 | AK50: 129.9804633 | AL50: 204.4947351 | AM50: 285.8188182 | AN50: 366.4703296 | AO50: 0 | AP50: 0 | AQ50: 0 | AR50: 0 | AS50: 0 | AT50: 0 | AU50: 0 | AV50: 0 | AW50: 0 | AX50: 0 | AY50: 0 | AZ50: 0 | BA50: 0 | BB50: 0
E51: Revenue excess at Cap | G51: £m nominal prices | H51: RECap | P51: =IF(P50>0,P50,0) -> 6.394484213 | Q51: 22.10961855 | R51: 40.64279224 | S51: 61.97585308 | T51: 86.25905267 | U51: 24.04340082 | V51: 51.22784719 | W51: 81.71937492 | X51: 115.6913453 | Y51: 153.3247468 | Z51: =IF(Z50>0,Z50,0) -> 35.5347625 | AA51: =IF(AA50>0,AA50,0) -> 76.39099955 | AB51: 121.3202379 | AC51: 170.5292142 | AD51: 224.2347121 | AE51: 49.72792191 | AF51: 104.0770239 | AG51: 163.2804424 | AH51: 227.5814364 | AI51: 296.3900579 | AJ51: 62.29574675 | AK51: 129.9804633 | AL51: 204.4947351 | AM51: 285.8188182 | AN51: 366.4703296 | AO51: 0 | AP51: 0 | AQ51: 0 | AR51: 0 | AS51: 0 | AT51: 0 | AU51: 0 | AV51: 0 | AW51: 0 | AX51: 0 | AY51: 0 | AZ51: 0 | BA51: 0 | BB51: 0
E53: Relevant revenue at Floor | G53: £m nominal prices | H53: RRAFap | P53: =P41-P42 -> -42.9092613 | Q53: -97.88351801 | R53: -158.160076 | S53: -222.8561645 | T53: -292.1848771 | U53: -62.84675782 | V53: -130.3401315 | W53: -202.7045728 | X53: -280.1741259 | Y53: -362.9928163 | Z53: -74.3381195 | AA53: -155.5352967 | AB53: -242.3707256 | AC53: -335.1118527 | AD53: -434.0385488 | AE53: -88.56331374 | AF53: -183.2546207 | AG53: -284.3655218 | AH53: -392.2000088 | AI53: -506.1145838 | AJ53: -100.9320621 | AK53: -208.752183 | AL53: -325.0019654 | AM53: -449.7109514 | AN53: -578.6365971 | AO53: 0 | AP53: 0 | AQ53: 0 | AR53: 0 | AS53: 0 | AT53: 0 | AU53: 0 | AV53: 0 | AW53: 0 | AX53: 0 | AY53: 0 | AZ53: 0 | BA53: 0 | BB53: 0
E54: Revenue shortfall at Floor | G54: £m nominal prices | H54: RSFap | P54: =IF(P53>0,P53,0) -> 0 | Q54: 0 | R54: 0 | S54: 0 | T54: 0 | U54: 0 | V54: 0 | W54: 0 | X54: 0 | Y54: 0 | Z54: =IF(Z53>0,Z53,0) -> 0 | AA54: =IF(AA53>0,AA53,0) -> 0 | AB54: 0 | AC54: 0 | AD54: 0 | AE54: 0 | AF54: 0 | AG54: 0 | AH54: 0 | AI54: 0 | AJ54: 0 | AK54: 0 | AL54: 0 | AM54: 0 | AN54: 0 | AO54: 0 | AP54: 0 | AQ54: 0 | AR54: 0 | AS54: 0 | AT54: 0 | AU54: 0 | AV54: 0 | AW54: 0 | AX54: 0 | AY54: 0 | AZ54: 0 | BA54: 0 | BB54: 0
E56: =E43 -> NPV of Within-period adjustment (assessed) | G56: £m nominal prices | H56: =H43 -> WPANap | P56: =P43 -> 0 | Q56: =Q43 -> 0 | R56: 0 | S56: 0 | T56: 0 | U56: 0 | V56: 0 | W56: 0 | X56: 0 | Y56: 0 | Z56: 0 | AA56: 0 | AB56: 0 | AC56: 0 | AD56: 0 | AE56: 0 | AF56: 0 | AG56: 0 | AH56: 0 | AI56: 0 | AJ56: 0 | AK56: 0 | AL56: 0 | AM56: 0 | AN56: 0 | AO56: 0 | AP56: 0 | AQ56: 0 | AR56: 0 | AS56: 0 | AT56: 0 | AU56: 0 | AV56: 0 | AW56: 0 | AX56: 0 | AY56: 0 | AZ56: 0 | BA56: 0 | BB56: 0
E58: Cap and Floor revenue adjustment - Unadjusted for end of period | G58: £m nominal prices | P58: =IF(P51>0,-P51-P56,IF(P54>0,P54-P56,-P56)) -> -6.394484213 | Q58: =IF(Q51>0,-Q51-Q56,IF(Q54>0,Q54-Q56,-Q56)) -> -22.10961855 | R58: -40.64279224 | S58: -61.97585308 | T58: -86.25905267 | U58: -24.04340082 | V58: -51.22784719 | W58: -81.71937492 | X58: -115.6913453 | Y58: -153.3247468 | Z58: -35.5347625 | AA58: -76.39099955 | AB58: -121.3202379 | AC58: -170.5292142 | AD58: -224.2347121 | AE58: -49.72792191 | AF58: -104.0770239 | AG58: -163.2804424 | AH58: -227.5814364 | AI58: -296.3900579 | AJ58: -62.29574675 | AK58: -129.9804633 | AL58: -204.4947351 | AM58: -285.8188182 | AN58: -366.4703296 | AO58: =IF(AO51>0,-AO51-AO56,IF(AO54>0,AO54-AO56,-AO56)) -> 0 | AP58: 0 | AQ58: 0 | AR58: 0 | AS58: 0 | AT58: 0 | AU58: 0 | AV58: 0 | AW58: 0 | AX58: 0 | AY58: 0 | AZ58: 0 | BA58: 0 | BB58: 0
E60: End of period Cap and Floor revenue adjustment | G60: £m nominal prices | H60: CFAap | P60: =P58*P48 -> 0 | Q60: =Q58*Q48 -> 0 | R60: 0 | S60: 0 | T60: =T58*T48 -> -86.25905267 | U60: 0 | V60: 0 | W60: 0 | X60: 0 | Y60: -153.3247468 | Z60: =Z58*Z48 -> 0 | AA60: =AA58*AA48 -> 0 | AB60: 0 | AC60: 0 | AD60: -224.2347121 | AE60: 0 | AF60: 0 | AG60: 0 | AH60: 0 | AI60: -296.3900579 | AJ60: 0 | AK60: 0 | AL60: 0 | AM60: 0 | AN60: -366.4703296 | AO60: 0 | AP60: 0 | AQ60: 0 | AR60: 0 | AS60: 0 | AT60: 0 | AU60: 0 | AV60: 0 | AW60: 0 | AX60: 0 | AY60: 0 | AZ60: 0 | BA60: 0 | BB60: 0
B62: Revenue adjustment for changes in non-controllable Opex
E64: PPPI index | G64: scalar | H64: =H11 -> PPPIt | O64: =O11 -> 1.130441667 | P64: 1.1407 | Q64: 1.1118 | R64: 1.1118 | S64: 1.1118 | T64: 1.1118 | U64: 1.1118 | V64: 1.1118 | W64: 1.1118 | X64: 1.1118 | Y64: 1.1118 | Z64: 1.1118 | AA64: 1.1118 | AB64: 1.1118 | AC64: 1.1118 | AD64: 1.1118 | AE64: 1.1118 | AF64: 1.1118 | AG64: 1.1118 | AH64: 1.1118 | AI64: 1.1118 | AJ64: 1.1118 | AK64: 1.1118 | AL64: 1.1118 | AM64: 1.1118 | AN64: 1.1118 | AO64: 1.1118 | AP64: 1.1118 | AQ64: 1.1118 | AR64: 2.327383874 | AS64: 2.387078328 | AT64: 2.448361075 | AU64: 2.511275712 | AV64: 2.575867064 | AW64: 2.642181218 | AX64: 2.71026556 | AY64: 2.78016881 | AZ64: 2.851941063 | BA64: 2.925633828 | BB64: 3.001300066
E66: =Inputs!E83 -> Non-controllable Opex (actual) | G66: £m nominal prices | H66: ONCOCt | P66: =Costs!P21 -> 0.8766546857 | Q66: =Costs!Q21 -> 1.05 | R66: =Costs!R21 -> 1.1025 | S66: =Costs!S21 -> 1.157625 | T66: =Costs!T21 -> 1.21550625 | U66: =Costs!U21 -> 1.276281563 | V66: =Costs!V21 -> 1.340095641 | W66: =Costs!W21 -> 1.407100423 | X66: =Costs!X21 -> 1.477455444 | Y66: =Costs!Y21 -> 1.551328216 | Z66: =Costs!Z21 -> 1.628894627 | AA66: =Costs!AA21 -> 1.710339358 | AB66: =Costs!AB21 -> 1.795856326 | AC66: =Costs!AC21 -> 1.885649142 | AD66: =Costs!AD21 -> 1.979931599 | AE66: =Costs!AE21 -> 2.078928179 | AF66: =Costs!AF21 -> 2.182874588 | AG66: =Costs!AG21 -> 2.292018318 | AH66: =Costs!AH21 -> 2.406619234 | AI66: =Costs!AI21 -> 2.526950195 | AJ66: =Costs!AJ21 -> 2.653297705 | AK66: =Costs!AK21 -> 2.78596259 | AL66: =Costs!AL21 -> 2.92526072 | AM66: =Costs!AM21 -> 3.071523756 | AN66: =Costs!AN21 -> 3.225099944 | AO66: =Costs!AO21 -> 0 | AP66: =Costs!AP21 -> 0 | AQ66: =Costs!AQ21 -> 0 | AR66: =Costs!AR21 -> 0 | AS66: =Costs!AS21 -> 0 | AT66: =Costs!AT21 -> 0 | AU66: =Costs!AU21 -> 0 | AV66: =Costs!AV21 -> 0 | AW66: =Costs!AW21 -> 0 | AX66: =Costs!AX21 -> 0 | AY66: =Costs!AY21 -> 0 | AZ66: =Costs!AZ21 -> 0 | BA66: =Costs!BA21 -> 0 | BB66: =Costs!BB21 -> 0
E67: Non-controllable Opex (baseline) | G67: £m nominal prices | H67: BNCOCt | P67: =Costs!P13*P64 -> 1.394253998 | Q67: =Costs!Q13*Q64 -> 1.358930127 | R67: =Costs!R13*R64 -> 1.358930127 | S67: =Costs!S13*S64 -> 1.358930127 | T67: =Costs!T13*T64 -> 1.358930127 | U67: =Costs!U13*U64 -> 1.358930127 | V67: =Costs!V13*V64 -> 1.358930127 | W67: =Costs!W13*W64 -> 1.358930127 | X67: =Costs!X13*X64 -> 1.358930127 | Y67: =Costs!Y13*Y64 -> 1.358930127 | Z67: =Costs!Z13*Z64 -> 1.358930127 | AA67: =Costs!AA13*AA64 -> 1.358930127 | AB67: =Costs!AB13*AB64 -> 1.358930127 | AC67: =Costs!AC13*AC64 -> 1.358930127 | AD67: =Costs!AD13*AD64 -> 1.358930127 | AE67: =Costs!AE13*AE64 -> 1.358930127 | AF67: =Costs!AF13*AF64 -> 1.358930127 | AG67: =Costs!AG13*AG64 -> 1.358930127 | AH67: =Costs!AH13*AH64 -> 1.358930127 | AI67: =Costs!AI13*AI64 -> 1.358930127 | AJ67: =Costs!AJ13*AJ64 -> 1.358930127 | AK67: =Costs!AK13*AK64 -> 1.358930127 | AL67: =Costs!AL13*AL64 -> 1.358930127 | AM67: =Costs!AM13*AM64 -> 1.358930127 | AN67: =Costs!AN13*AN64 -> 1.358930127 | AO67: =Costs!AO13*AO64 -> 0 | AP67: =Costs!AP13*AP64 -> 0 | AQ67: =Costs!AQ13*AQ64 -> 0 | AR67: =Costs!AR13*AR64 -> 0 | AS67: =Costs!AS13*AS64 -> 0 | AT67: =Costs!AT13*AT64 -> 0 | AU67: =Costs!AU13*AU64 -> 0 | AV67: =Costs!AV13*AV64 -> 0 | AW67: =Costs!AW13*AW64 -> 0 | AX67: =Costs!AX13*AX64 -> 0 | AY67: =Costs!AY13*AY64 -> 0 | AZ67: =Costs!AZ13*AZ64 -> 0 | BA67: =Costs!BA13*BA64 -> 0 | BB67: =Costs!BB13*BB64 -> 0
E68: Non-controllable Opex change from baseline | G68: £m nominal prices | H68: DNCOCt | P68: =P66-P67 -> -0.5175993126 | Q68: -0.3089301265 | R68: -0.2564301265 | S68: -0.2013051265 | T68: -0.1434238765 | U68: -0.08264856401 | V68: -0.01883448589 | W68: 0.04817029614 | X68: 0.1185253173 | Y68: 0.1923980895 | Z68: =Z66-Z67 -> 0.2699645003 | AA68: =AA66-AA67 -> 0.3514092316 | AB68: 0.4369261995 | AC68: 0.5267190158 | AD68: 0.6210014729 | AE68: 0.7199980529 | AF68: 0.8239444619 | AG68: 0.9330881913 | AH68: 1.047689107 | AI68: 1.168020069 | AJ68: 1.294367579 | AK68: 1.427032464 | AL68: 1.566330593 | AM68: 1.712593629 | AN68: 1.866169817 | AO68: 0 | AP68: 0 | AQ68: 0 | AR68: 0 | AS68: 0 | AT68: 0 | AU68: 0 | AV68: 0 | AW68: 0 | AX68: 0 | AY68: 0 | AZ68: 0 | BA68: 0 | BB68: 0
E70: Adjustment to non-controllable Opex (from NRA efficiency and economic review) | G70: £m nominal prices | P70: =Costs!P27 -> 0 | Q70: =Costs!Q27 -> 0 | R70: =Costs!R27 -> 0 | S70: =Costs!S27 -> 0 | T70: =Costs!T27 -> 0 | U70: =Costs!U27 -> 0 | V70: =Costs!V27 -> 0 | W70: =Costs!W27 -> 0 | X70: =Costs!X27 -> 0 | Y70: =Costs!Y27 -> 0 | Z70: =Costs!Z27 -> 0 | AA70: =Costs!AA27 -> 0 | AB70: =Costs!AB27 -> 0 | AC70: =Costs!AC27 -> 0 | AD70: =Costs!AD27 -> 0 | AE70: =Costs!AE27 -> 0 | AF70: =Costs!AF27 -> 0 | AG70: =Costs!AG27 -> 0 | AH70: =Costs!AH27 -> 0 | AI70: =Costs!AI27 -> 0 | AJ70: =Costs!AJ27 -> 0 | AK70: =Costs!AK27 -> 0 | AL70: =Costs!AL27 -> 0 | AM70: =Costs!AM27 -> 0 | AN70: =Costs!AN27 -> 0 | AO70: =Costs!AO27 -> 0 | AP70: =Costs!AP27 -> 0 | AQ70: =Costs!AQ27 -> 0 | AR70: =Costs!AR27 -> 0 | AS70: =Costs!AS27 -> 0 | AT70: =Costs!AT27 -> 0 | AU70: =Costs!AU27 -> 0 | AV70: =Costs!AV27 -> 0 | AW70: =Costs!AW27 -> 0 | AX70: =Costs!AX27 -> 0 | AY70: =Costs!AY27 -> 0 | AZ70: =Costs!AZ27 -> 0 | BA70: =Costs!BA27 -> 0 | BB70: =Costs!BB27 -> 0
E72: Total non-controllable Opex change from baseline (including NRA) | G72: £m nominal prices | H72: NCOCt | L72: 0 | M72: 0 | N72: 0 | O72: 0 | P72: =P68+P70 -> -0.5175993126 | Q72: =Q68+Q70 -> -0.3089301265 | R72: -0.2564301265 | S72: -0.2013051265 | T72: -0.1434238765 | U72: -0.08264856401 | V72: -0.01883448589 | W72: 0.04817029614 | X72: 0.1185253173 | Y72: 0.1923980895 | Z72: =Z68+Z70 -> 0.2699645003 | AA72: =AA68+AA70 -> 0.3514092316 | AB72: 0.4369261995 | AC72: 0.5267190158 | AD72: 0.6210014729 | AE72: 0.7199980529 | AF72: 0.8239444619 | AG72: 0.9330881913 | AH72: 1.047689107 | AI72: 1.168020069 | AJ72: 1.294367579 | AK72: 1.427032464 | AL72: 1.566330593 | AM72: 1.712593629 | AN72: 1.866169817 | AO72: 0 | AP72: 0 | AQ72: 0 | AR72: 0 | AS72: 0 | AT72: 0 | AU72: 0 | AV72: 0 | AW72: 0 | AX72: 0 | AY72: 0 | AZ72: 0 | BA72: 0 | BB72: 0
E74: Pass-through revenue adjustment (assessed) - Unadjusted for end of period | G74: £m nominal prices | P74: =MMULT(L72:P72,P$16:P$20) -> -0.5175993126 | Q74: =MMULT(M72:Q72,Q$16:Q$20) -> -0.8329899425 | R74: =MMULT(N72:R72,R$16:R$20) -> -1.121740079 | S74: =MMULT(O72:S72,S$16:S$20) -> -1.36656872 | T74: =MMULT(P72:T72,T$16:T$20) -> -1.563015463 | U74: =MMULT(Q72:U72,U$16:U$20) -> -0.08264856401 | V74: -0.1046898142 | W74: -0.06058148284 | X74: 0.05559327291 | Y74: 0.2501483814 | Z74: =MMULT(V72:Z72,Z$16:Z$20) -> 0.2699645003 | AA74: =MMULT(W72:AA72,AA$16:AA$20) -> 0.6318483545 | AB74: 1.09329027 | AC74: 1.662428948 | AD74: 2.347932665 | AE74: 0.7199980529 | AF74: 1.571878439 | AG74: 2.565955514 | AH74: 3.713203695 | AI74: 5.025296067 | AJ74: 1.294367579 | AK74: 2.771621505 | AL74: 4.445491012 | AM74: 6.330569693 | AN74: 8.442365614 | AO74: 0 | AP74: 0 | AQ74: 0 | AR74: 0 | AS74: 0 | AT74: 0 | AU74: 0 | AV74: 0 | AW74: 0 | AX74: 0 | AY74: 0 | AZ74: 0 | BA74: 0 | BB74: 0
E76: End of period pass-through revenue adjustment (assessed) | G76: £m nominal prices | H76: PTAap | P76: =P74*P48 -> 0 | Q76: 0 | R76: 0 | S76: 0 | T76: -1.563015463 | U76: 0 | V76: 0 | W76: 0 | X76: 0 | Y76: 0.2501483814 | Z76: 0 | AA76: 0 | AB76: 0 | AC76: 0 | AD76: 2.347932665 | AE76: 0 | AF76: 0 | AG76: 0 | AH76: 0 | AI76: 5.025296067 | AJ76: 0 | AK76: 0 | AL76: 0 | AM76: 0 | AN76: 8.442365614 | AO76: 0 | AP76: 0 | AQ76: 0 | AR76: 0 | AS76: 0 | AT76: 0 | AU76: 0 | AV76: 0 | AW76: 0 | AX76: 0 | AY76: 0 | AZ76: 0 | BA76: 0 | BB76: 0
B78: End of sheet

Sheet Revenue Adjustment
A1: Revenue Adjustment | H1: Licence
E2: Parameter | G2: Units | H2: Terminology | I2: Constant | O2: Annual values
E3: Year commencing | O3: =Inputs!O3 -> 2018-01-01 | P3: =Inputs!P3 -> 2019-01-01 | Q3: =Inputs!Q3 -> 2020-01-01 | R3: =Inputs!R3 -> 2021-01-01 | S3: =Inputs!S3 -> 2022-01-01 | T3: =Inputs!T3 -> 2023-01-01 | U3: =Inputs!U3 -> 2024-01-01 | V3: =Inputs!V3 -> 2025-01-01 | W3: =Inputs!W3 -> 2026-01-01 | X3: =Inputs!X3 -> 2027-01-01 | Y3: =Inputs!Y3 -> 2028-01-01 | Z3: =Inputs!Z3 -> 2029-01-01 | AA3: =Inputs!AA3 -> 2030-01-01 | AB3: =Inputs!AB3 -> 2031-01-01 | AC3: =Inputs!AC3 -> 2032-01-01 | AD3: =Inputs!AD3 -> 2033-01-01 | AE3: =Inputs!AE3 -> 2034-01-01 | AF3: =Inputs!AF3 -> 2035-01-01 | AG3: =Inputs!AG3 -> 2036-01-01 | AH3: =Inputs!AH3 -> 2037-01-01 | AI3: =Inputs!AI3 -> 2038-01-01 | AJ3: =Inputs!AJ3 -> 2039-01-01 | AK3: =Inputs!AK3 -> 2040-01-01 | AL3: =Inputs!AL3 -> 2041-01-01 | AM3: =Inputs!AM3 -> 2042-01-01 | AN3: =Inputs!AN3 -> 2043-01-01 | AO3: =Inputs!AO3 -> 2044-01-01 | AP3: =Inputs!AP3 -> 2045-01-01 | AQ3: =Inputs!AQ3 -> 2046-01-01 | AR3: =Inputs!AR3 -> 2047-01-01 | AS3: =Inputs!AS3 -> 2048-01-01 | AT3: =Inputs!AT3 -> 2049-01-01 | AU3: =Inputs!AU3 -> 2050-01-01 | AV3: =Inputs!AV3 -> 2051-01-01 | AW3: =Inputs!AW3 -> 2052-01-01 | AX3: =Inputs!AX3 -> 2053-01-01 | AY3: =Inputs!AY3 -> 2054-01-01 | AZ3: =Inputs!AZ3 -> 2055-01-01 | BA3: =Inputs!BA3 -> 2056-01-01 | BB3: =Inputs!BB3 -> 2057-01-01
E4: Year ending | O4: =Inputs!O4 -> 2018-12-31 | P4: =Inputs!P4 -> 2019-12-31 | Q4: =Inputs!Q4 -> 2020-12-31 | R4: =Inputs!R4 -> 2021-12-31 | S4: =Inputs!S4 -> 2022-12-31 | T4: =Inputs!T4 -> 2023-12-31 | U4: =Inputs!U4 -> 2024-12-31 | V4: =Inputs!V4 -> 2025-12-31 | W4: =Inputs!W4 -> 2026-12-31 | X4: =Inputs!X4 -> 2027-12-31 | Y4: =Inputs!Y4 -> 2028-12-31 | Z4: =Inputs!Z4 -> 2029-12-31 | AA4: =Inputs!AA4 -> 2030-12-31 | AB4: =Inputs!AB4 -> 2031-12-31 | AC4: =Inputs!AC4 -> 2032-12-31 | AD4: =Inputs!AD4 -> 2033-12-31 | AE4: =Inputs!AE4 -> 2034-12-31 | AF4: =Inputs!AF4 -> 2035-12-31 | AG4: =Inputs!AG4 -> 2036-12-31 | AH4: =Inputs!AH4 -> 2037-12-31 | AI4: =Inputs!AI4 -> 2038-12-31 | AJ4: =Inputs!AJ4 -> 2039-12-31 | AK4: =Inputs!AK4 -> 2040-12-31 | AL4: =Inputs!AL4 -> 2041-12-31 | AM4: =Inputs!AM4 -> 2042-12-31 | AN4: =Inputs!AN4 -> 2043-12-31 | AO4: =Inputs!AO4 -> 2044-12-31 | AP4: =Inputs!AP4 -> 2045-12-31 | AQ4: =Inputs!AQ4 -> 2046-12-31 | AR4: =Inputs!AR4 -> 2047-12-31 | AS4: =Inputs!AS4 -> 2048-12-31 | AT4: =Inputs!AT4 -> 2049-12-31 | AU4: =Inputs!AU4 -> 2050-12-31 | AV4: =Inputs!AV4 -> 2051-12-31 | AW4: =Inputs!AW4 -> 2052-12-31 | AX4: =Inputs!AX4 -> 2053-12-31 | AY4: =Inputs!AY4 -> 2054-12-31 | AZ4: =Inputs!AZ4 -> 2055-12-31 | BA4: =Inputs!BA4 -> 2056-12-31 | BB4: =Inputs!BB4 -> 2057-12-31
E5: Operational year | O5: =Inputs!O5 -> 0 | P5: =Inputs!P5 -> 1 | Q5: =Inputs!Q5 -> 2 | R5: =Inputs!R5 -> 3 | S5: =Inputs!S5 -> 4 | T5: =Inputs!T5 -> 5 | U5: =Inputs!U5 -> 6 | V5: =Inputs!V5 -> 7 | W5: =Inputs!W5 -> 8 | X5: =Inputs!X5 -> 9 | Y5: =Inputs!Y5 -> 10 | Z5: =Inputs!Z5 -> 11 | AA5: =Inputs!AA5 -> 12 | AB5: =Inputs!AB5 -> 13 | AC5: =Inputs!AC5 -> 14 | AD5: =Inputs!AD5 -> 15 | AE5: =Inputs!AE5 -> 16 | AF5: =Inputs!AF5 -> 17 | AG5: =Inputs!AG5 -> 18 | AH5: =Inputs!AH5 -> 19 | AI5: =Inputs!AI5 -> 20 | AJ5: =Inputs!AJ5 -> 21 | AK5: =Inputs!AK5 -> 22 | AL5: =Inputs!AL5 -> 23 | AM5: =Inputs!AM5 -> 24 | AN5: =Inputs!AN5 -> 25 | AO5: =Inputs!AO5 -> 26 | AP5: =Inputs!AP5 -> 27 | AQ5: =Inputs!AQ5 -> 28 | AR5: =Inputs!AR5 -> 29 | AS5: =Inputs!AS5 -> 30 | AT5: =Inputs!AT5 -> 31 | AU5: =Inputs!AU5 -> 32 | AV5: =Inputs!AV5 -> 33 | AW5: =Inputs!AW5 -> 34 | AX5: =Inputs!AX5 -> 35 | AY5: =Inputs!AY5 -> 36 | AZ5: =Inputs!AZ5 -> 37 | BA5: =Inputs!BA5 -> 38 | BB5: =Inputs!BB5 -> 39
B7: Model outputs
C9: Cap and Floor levels
E11: =Availability!E17 -> Cap (post-availability incentive) | G11: £m nominal prices | H11: CLt | P11: =Availability!P17 -> 81.27098436 | Q11: =Availability!Q17 -> 86.3646795 | R11: =Availability!R17 -> 86.3646795 | S11: =Availability!S17 -> 86.3646795 | T11: =Availability!T17 -> 86.3646795 | U11: =Availability!U17 -> 86.3646795 | V11: =Availability!V17 -> 86.3646795 | W11: =Availability!W17 -> 86.3646795 | X11: =Availability!X17 -> 86.3646795 | Y11: =Availability!Y17 -> 86.3646795 | Z11: =Availability!Z17 -> 86.3646795 | AA11: =Availability!AA17 -> 84.85994257 | AB11: =Availability!AB17 -> 84.85891193 | AC11: =Availability!AC17 -> 84.85891193 | AD11: =Availability!AD17 -> 84.85891193 | AE11: =Availability!AE17 -> 84.85891193 | AF11: =Availability!AF17 -> 84.85891193 | AG11: =Availability!AG17 -> 84.85891193 | AH11: =Availability!AH17 -> 84.85891193 | AI11: =Availability!AI17 -> 85.70265544 | AJ11: =Availability!AJ17 -> 86.29899285 | AK11: =Availability!AK17 -> 86.29899285 | AL11: =Availability!AL17 -> 85.12693719 | AM11: =Availability!AM17 -> 84.30023906 | AN11: =Availability!AN17 -> 91.28198371 | AO11: =Availability!AO17 -> 0 | AP11: =Availability!AP17 -> 0 | AQ11: =Availability!AQ17 -> 0 | AR11: =Availability!AR17 -> 0 | AS11: =Availability!AS17 -> 0 | AT11: =Availability!AT17 -> 0 | AU11: =Availability!AU17 -> 0 | AV11: =Availability!AV17 -> 0 | AW11: =Availability!AW17 -> 0 | AX11: =Availability!AX17 -> 0 | AY11: =Availability!AY17 -> 0 | AZ11: =Availability!AZ17 -> 0 | BA11: =Availability!BA17 -> 0 | BB11: =Availability!BB17 -> 0
E12: =Availability!E18 -> Floor (post-availability incentive) | G12: £m nominal prices | H12: FLt | P12: =Availability!P18 -> 44.75620727 | Q12: =Availability!Q18 -> 47.5613225 | R12: =Availability!R18 -> 47.5613225 | S12: =Availability!S18 -> 47.5613225 | T12: =Availability!T18 -> 47.5613225 | U12: =Availability!U18 -> 47.5613225 | V12: =Availability!V18 -> 47.5613225 | W12: =Availability!W18 -> 47.5613225 | X12: =Availability!X18 -> 47.5613225 | Y12: =Availability!Y18 -> 47.5613225 | Z12: =Availability!Z18 -> 47.5613225 | AA12: =Availability!AA18 -> 46.02457266 | AB12: =Availability!AB18 -> 46.02352009 | AC12: =Availability!AC18 -> 46.02352009 | AD12: =Availability!AD18 -> 46.02352009 | AE12: =Availability!AE18 -> 46.02352009 | AF12: =Availability!AF18 -> 46.02352009 | AG12: =Availability!AG18 -> 46.02352009 | AH12: =Availability!AH18 -> 46.02352009 | AI12: =Availability!AI18 -> 46.98390252 | AJ12: =Availability!AJ18 -> 47.66267748 | AK12: =Availability!AK18 -> 47.66267748 | AL12: =Availability!AL18 -> 46.44776937 | AM12: =Availability!AM18 -> 45.59101675 | AN12: =Availability!AN18 -> 49.36686413 | AO12: =Availability!AO18 -> 0 | AP12: =Availability!AP18 -> 0 | AQ12: =Availability!AQ18 -> 0 | AR12: =Availability!AR18 -> 0 | AS12: =Availability!AS18 -> 0 | AT12: =Availability!AT18 -> 0 | AU12: =Availability!AU18 -> 0 | AV12: =Availability!AV18 -> 0 | AW12: =Availability!AW18 -> 0 | AX12: =Availability!AX18 -> 0 | AY12: =Availability!AY18 -> 0 | AZ12: =Availability!AZ18 -> 0 | BA12: =Availability!BA18 -> 0 | BB12: =Availability!BB18 -> 0
C14: Amounts due to or from GB consumers
E16: GB consumer share | I16: =Inputs!$I$77 -> 0.5
E18: GB share of end of period revenue adjustment (negative value: payment to consumers; positive value: payment from consumers) | G18: £m nominal prices | H18: ICFap | P18: =$I$16*(Assessment!P60+Assessment!P76) -> 0 | Q18: =$I$16*(Assessment!Q60+Assessment!Q76) -> 0 | R18: =$I$16*(Assessment!R60+Assessment!R76) -> 0 | S18: =$I$16*(Assessment!S60+Assessment!S76) -> 0 | T18: =$I$16*(Assessment!T60+Assessment!T76) -> -43.91103407 | U18: =$I$16*(Assessment!U60+Assessment!U76) -> 0 | V18: =$I$16*(Assessment!V60+Assessment!V76) -> 0 | W18: =$I$16*(Assessment!W60+Assessment!W76) -> 0 | X18: =$I$16*(Assessment!X60+Assessment!X76) -> 0 | Y18: =$I$16*(Assessment!Y60+Assessment!Y76) -> -76.53729922 | Z18: =$I$16*(Assessment!Z60+Assessment!Z76) -> 0 | AA18: =$I$16*(Assessment!AA60+Assessment!AA76) -> 0 | AB18: =$I$16*(Assessment!AB60+Assessment!AB76) -> 0 | AC18: =$I$16*(Assessment!AC60+Assessment!AC76) -> 0 | AD18: =$I$16*(Assessment!AD60+Assessment!AD76) -> -110.9433897 | AE18: =$I$16*(Assessment!AE60+Assessment!AE76) -> 0 | AF18: =$I$16*(Assessment!AF60+Assessment!AF76) -> 0 | AG18: =$I$16*(Assessment!AG60+Assessment!AG76) -> 0 | AH18: =$I$16*(Assessment!AH60+Assessment!AH76) -> 0 | AI18: =$I$16*(Assessment!AI60+Assessment!AI76) -> -145.6823809 | AJ18: =$I$16*(Assessment!AJ60+Assessment!AJ76) -> 0 | AK18: =$I$16*(Assessment!AK60+Assessment!AK76) -> 0 | AL18: =$I$16*(Assessment!AL60+Assessment!AL76) -> 0 | AM18: =$I$16*(Assessment!AM60+Assessment!AM76) -> 0 | AN18: =$I$16*(Assessment!AN60+Assessment!AN76) -> -179.013982 | AO18: =$I$16*(Assessment!AO60+Assessment!AO76) -> 0 | AP18: =$I$16*(Assessment!AP60+Assessment!AP76) -> 0 | AQ18: =$I$16*(Assessment!AQ60+Assessment!AQ76) -> 0 | AR18: =$I$16*(Assessment!AR60+Assessment!AR76) -> 0 | AS18: =$I$16*(Assessment!AS60+Assessment!AS76) -> 0 | AT18: =$I$16*(Assessment!AT60+Assessment!AT76) -> 0 | AU18: =$I$16*(Assessment!AU60+Assessment!AU76) -> 0 | AV18: =$I$16*(Assessment!AV60+Assessment!AV76) -> 0 | AW18: =$I$16*(Assessment!AW60+Assessment!AW76) -> 0 | AX18: =$I$16*(Assessment!AX60+Assessment!AX76) -> 0 | AY18: =$I$16*(Assessment!AY60+Assessment!AY76) -> 0 | AZ18: =$I$16*(Assessment!AZ60+Assessment!AZ76) -> 0 | BA18: =$I$16*(Assessment!BA60+Assessment!BA76) -> 0 | BB18: =$I$16*(Assessment!BB60+Assessment!BB76) -> 0
E20: GB share of within-period revenue adjustment (negative value: payment to consumers; positive value: payment from consumers) | G20: £m nominal prices | H20: ICFpap | P20: =$I$16*Assessment!P35 -> 0 | Q20: =$I$16*Assessment!Q35 -> 0 | R20: =$I$16*Assessment!R35 -> 0 | S20: =$I$16*Assessment!S35 -> 0 | T20: =$I$16*Assessment!T35 -> 0 | U20: =$I$16*Assessment!U35 -> 0 | V20: =$I$16*Assessment!V35 -> 0 | W20: =$I$16*Assessment!W35 -> 0 | X20: =$I$16*Assessment!X35 -> 0 | Y20: =$I$16*Assessment!Y35 -> 0 | Z20: =$I$16*Assessment!Z35 -> 0 | AA20: =$I$16*Assessment!AA35 -> 0 | AB20: =$I$16*Assessment!AB35 -> 0 | AC20: =$I$16*Assessment!AC35 -> 0 | AD20: =$I$16*Assessment!AD35 -> 0 | AE20: =$I$16*Assessment!AE35 -> 0 | AF20: =$I$16*Assessment!AF35 -> 0 | AG20: =$I$16*Assessment!AG35 -> 0 | AH20: =$I$16*Assessment!AH35 -> 0 | AI20: =$I$16*Assessment!AI35 -> 0 | AJ20: =$I$16*Assessment!AJ35 -> 0 | AK20: =$I$16*Assessment!AK35 -> 0 | AL20: =$I$16*Assessment!AL35 -> 0 | AM20: =$I$16*Assessment!AM35 -> 0 | AN20: =$I$16*Assessment!AN35 -> 0 | AO20: =$I$16*Assessment!AO35 -> 0 | AP20: =$I$16*Assessment!AP35 -> 0 | AQ20: =$I$16*Assessment!AQ35 -> 0 | AR20: =$I$16*Assessment!AR35 -> 0 | AS20: =$I$16*Assessment!AS35 -> 0 | AT20: =$I$16*Assessment!AT35 -> 0 | AU20: =$I$16*Assessment!AU35 -> 0 | AV20: =$I$16*Assessment!AV35 -> 0 | AW20: =$I$16*Assessment!AW35 -> 0 | AX20: =$I$16*Assessment!AX35 -> 0 | AY20: =$I$16*Assessment!AY35 -> 0 | AZ20: =$I$16*Assessment!AZ35 -> 0 | BA20: =$I$16*Assessment!BA35 -> 0 | BB20: =$I$16*Assessment!BB35 -> 0
B22: End of sheet
